Organisation Name,Organisation Code,Effective Date,Directorate  Where Expenditure Incurred,Supplier Name,Payment Date,Transaction Number,Gross Amount,Purpose of Spend,Merchant Category,Card Transaction
WALSALL COUNCIL,HTTP://OPENDATACOMMUNITIES.ORG/ID/METROPOLITAN-DISTRICT-COUNCIL/WALSALL,30/09/2020,CHILDRENS SERVICES,PAYPAL *CRYSTALRADI,01/07/2020,H59620200702AYFWVYEWC-1,156.00,ST FRANCIS OF ASSISI CATHOLIC -OPERATIONAL MAINTENANCE,PROFESSIONAL SERVICES,GPC
WALSALL COUNCIL,HTTP://OPENDATACOMMUNITIES.ORG/ID/METROPOLITAN-DISTRICT-COUNCIL/WALSALL,30/09/2020,CHILDRENS SERVICES,ALLPAY *WHG,01/07/2020,H59620200702BIYSBRSAS-1,207.12,SAFEGUARDING & FAMILY SUPPORT-SECTION 1/17CHILD CARE ACT 198,"ORGANIZATIONS, CHARITABLE AND SOCIAL SERVICE",GPC
WALSALL COUNCIL,HTTP://OPENDATACOMMUNITIES.ORG/ID/METROPOLITAN-DISTRICT-COUNCIL/WALSALL,30/09/2020,CHILDRENS SERVICES,AMZNMKTPLACE,01/07/2020,H59620200702BLYITQYZN-1,62.93,ADMINISTRATIVE SUPPLIES-MATERIALS,MISCELLANEOUS AND SPECIALTY RETAIL STORES,GPC
WALSALL COUNCIL,HTTP://OPENDATACOMMUNITIES.ORG/ID/METROPOLITAN-DISTRICT-COUNCIL/WALSALL,30/09/2020,RESOURCES & TRANSFORMATION,HIMLEY COUNTRY HOTEL,01/07/2020,H59620200702DBPLCBHOH-1,600.00,BED & BREAKFAST PAYMENTS-BED & BREAKFAST PAYMENTS,"HOTELS, MOTELS, RESORTS",GPC
WALSALL COUNCIL,HTTP://OPENDATACOMMUNITIES.ORG/ID/METROPOLITAN-DISTRICT-COUNCIL/WALSALL,30/09/2020,CHILDRENS SERVICES - SCHOOLS,AMAZON.CO.UK*Q30F09YR5,01/07/2020,H59620200702DDIUAMXDH-1,26.39,E19-MATERIALS,OTHER DIRECT MARKETING-OTHER DIRECT MARKETERS,GPC
WALSALL COUNCIL,HTTP://OPENDATACOMMUNITIES.ORG/ID/METROPOLITAN-DISTRICT-COUNCIL/WALSALL,30/09/2020,RESOURCES & TRANSFORMATION,METRO INNS WALSALL,01/07/2020,H59620200702DGUOLQFVL-1,45.00,BED & BREAKFAST PAYMENTS-BED & BREAKFAST PAYMENTS,"HOTELS, MOTELS, RESORTS",GPC
WALSALL COUNCIL,HTTP://OPENDATACOMMUNITIES.ORG/ID/METROPOLITAN-DISTRICT-COUNCIL/WALSALL,30/09/2020,CHILDRENS SERVICES,VISTAPR*VISTAPRINT.COM,01/07/2020,H59620200702DKQGYLJTH-1,75.89,ADMINISTRATIVE SUPPLIES-MATERIALS,MISCELLANEOUS PUBLISHING AND PRINTING,GPC
WALSALL COUNCIL,HTTP://OPENDATACOMMUNITIES.ORG/ID/METROPOLITAN-DISTRICT-COUNCIL/WALSALL,30/09/2020,CHILDRENS SERVICES,WALSALL COUNCIL,01/07/2020,H59620200702DNCDKQURY-1,33.00,SAFEGUARDING & FAMILY SUPPORT-FEES & LICENCES,GOVERNMENT SERVICES,GPC
WALSALL COUNCIL,HTTP://OPENDATACOMMUNITIES.ORG/ID/METROPOLITAN-DISTRICT-COUNCIL/WALSALL,30/09/2020,ECONOMY & ENVIRONMENT,B & Q 1276,01/07/2020,H59620200702DRPGYHCJD-1,32.72,DEPOT-PURCHASE OF FURNITURE & EQUIPM,HOME SUPPLY WAREHOUSE STORES,GPC
WALSALL COUNCIL,HTTP://OPENDATACOMMUNITIES.ORG/ID/METROPOLITAN-DISTRICT-COUNCIL/WALSALL,30/09/2020,CHILDRENS SERVICES,AMZNMKTPLACE,01/07/2020,H59620200702DUYVHWHHL-1,31.96,ICT-MATERIALS,MISCELLANEOUS AND SPECIALTY RETAIL STORES,GPC
WALSALL COUNCIL,HTTP://OPENDATACOMMUNITIES.ORG/ID/METROPOLITAN-DISTRICT-COUNCIL/WALSALL,30/09/2020,CHILDRENS SERVICES,AMZNMKTPLACE,01/07/2020,H59620200702DUYVHWHHL-2,10.26,BASIC STATIONERY-MATERIALS,MISCELLANEOUS AND SPECIALTY RETAIL STORES,GPC
WALSALL COUNCIL,HTTP://OPENDATACOMMUNITIES.ORG/ID/METROPOLITAN-DISTRICT-COUNCIL/WALSALL,30/09/2020,ECONOMY & ENVIRONMENT,FACEBK M5FT7UWMK2,01/07/2020,H59620200702DWTLDXPSC-1,-30.00,YEI ESF FUNDING-PUBLICITY & ADVERTISING (NON S,,GPC
WALSALL COUNCIL,HTTP://OPENDATACOMMUNITIES.ORG/ID/METROPOLITAN-DISTRICT-COUNCIL/WALSALL,30/09/2020,ECONOMY & ENVIRONMENT,FACEBK M5FT7UWMK2,01/07/2020,H59620200702DWTLDXPSC-2,-30.00,YEI (IMPACT) PROGRAMME-PUBLICITY & ADVERTISING (NON S,,GPC
WALSALL COUNCIL,HTTP://OPENDATACOMMUNITIES.ORG/ID/METROPOLITAN-DISTRICT-COUNCIL/WALSALL,30/09/2020,ECONOMY & ENVIRONMENT,SQ *T.MORGAN & SONS(LOCK,01/07/2020,H59620200702EALLLVMEG-1,174.60,INFRASTRUCTURE MAINTENANCE-MATERIALS,"GENERAL CONTRACTORS, RESIDENTIAL AND COMMERCIAL",GPC
WALSALL COUNCIL,HTTP://OPENDATACOMMUNITIES.ORG/ID/METROPOLITAN-DISTRICT-COUNCIL/WALSALL,30/09/2020,ECONOMY & ENVIRONMENT,SCREWFIX DIRECT,01/07/2020,H59620200702ESQYNMHZT-1,149.99,INFRASTRUCTURE MAINTENANCE-PURCHASE OF FURNITURE & EQUIPM,HOME SUPPLY WAREHOUSE STORES,GPC
WALSALL COUNCIL,HTTP://OPENDATACOMMUNITIES.ORG/ID/METROPOLITAN-DISTRICT-COUNCIL/WALSALL,30/09/2020,CHILDRENS SERVICES,HTTP://WWW.FORWARDPRODUC,01/07/2020,H59620200702FDXETHTFL-1,47.33,CURRICULUM STOCK-MATERIALS,"STATIONERY, OFFICE SUPPLIES AND WRITING PAPER",GPC
WALSALL COUNCIL,HTTP://OPENDATACOMMUNITIES.ORG/ID/METROPOLITAN-DISTRICT-COUNCIL/WALSALL,30/09/2020,CHILDRENS SERVICES,AMAZON.CO.UK*GG47Y1W15,01/07/2020,H59620200702FKOBBHWOQ-1,32.80,PELSALL VILLAGE SCHOOL-OPERATIONAL MAINTENANCE,OTHER DIRECT MARKETING-OTHER DIRECT MARKETERS,GPC
WALSALL COUNCIL,HTTP://OPENDATACOMMUNITIES.ORG/ID/METROPOLITAN-DISTRICT-COUNCIL/WALSALL,30/09/2020,CHILDRENS SERVICES,BAKER ROSS,01/07/2020,H59620200702FQOMNYYDB-1,194.95,EARLY HELP HUB-PROFESSIONAL SERVICES-PRIV CON,"ARTIST SUPPLY STORES, CRAFT SHOPS",GPC
WALSALL COUNCIL,HTTP://OPENDATACOMMUNITIES.ORG/ID/METROPOLITAN-DISTRICT-COUNCIL/WALSALL,30/09/2020,CHILDRENS SERVICES,AMZNMKTPLACE,01/07/2020,H59620200702GEJOKSTUM-1,29.74,"43A HILTON ROAD, WILLENHALL-PURCHASE OF FURNITURE & EQUIPM",MISCELLANEOUS AND SPECIALTY RETAIL STORES,GPC
WALSALL COUNCIL,HTTP://OPENDATACOMMUNITIES.ORG/ID/METROPOLITAN-DISTRICT-COUNCIL/WALSALL,30/09/2020,RESOURCES & TRANSFORMATION,123 REG LTD,01/07/2020,H59620200702GKZDLQPMH-1,11.99,APPLICATIONS-COMPUTER EQUIPMENT,DIRECT MARKETING CONTINUITY SUBSCRIPTION MERCHANTS,GPC
WALSALL COUNCIL,HTTP://OPENDATACOMMUNITIES.ORG/ID/METROPOLITAN-DISTRICT-COUNCIL/WALSALL,30/09/2020,CHILDRENS SERVICES - SCHOOLS,EUROFFICE.CO.UK,01/07/2020,H59620200702GOGKNHKMG-1,52.06,ADMINISTRATIVE SUPPLIES-MATERIALS,"OFFICE, SCHOOL SUPPLY, AND STATIONERY STORES",GPC
WALSALL COUNCIL,HTTP://OPENDATACOMMUNITIES.ORG/ID/METROPOLITAN-DISTRICT-COUNCIL/WALSALL,30/09/2020,CHILDRENS SERVICES,AMZNMKTPLACE AMAZON.CO.UK,01/07/2020,H59620200702HGPRWRMIB-1,7.34,"43A HILTON ROAD, WILLENHALL-RESIDENTS PERSONAL EXPENSES-AL",MISCELLANEOUS AND SPECIALTY RETAIL STORES,GPC
WALSALL COUNCIL,HTTP://OPENDATACOMMUNITIES.ORG/ID/METROPOLITAN-DISTRICT-COUNCIL/WALSALL,30/09/2020,ECONOMY & ENVIRONMENT,B & Q 1276,01/07/2020,H59620200702HQYRLNULH-1,28.68,INFRASTRUCTURE MAINTENANCE-MATERIALS,HOME SUPPLY WAREHOUSE STORES,GPC
WALSALL COUNCIL,HTTP://OPENDATACOMMUNITIES.ORG/ID/METROPOLITAN-DISTRICT-COUNCIL/WALSALL,30/09/2020,CHILDRENS SERVICES - SCHOOLS,AMZNMKTPLACE,01/07/2020,H59620200702IGJDEQTIK-1,11.99,CHUCKERY PRIMARY SCHOOL-OPERATIONAL MAINTENANCE,MISCELLANEOUS AND SPECIALTY RETAIL STORES,GPC
WALSALL COUNCIL,HTTP://OPENDATACOMMUNITIES.ORG/ID/METROPOLITAN-DISTRICT-COUNCIL/WALSALL,30/09/2020,CHILDRENS SERVICES,GEN REGISTER OFFICE,01/07/2020,H59620200702IHUETIHKZ-1,146.00,SAFEGUARDING & FAMILY SUPPORT-FEES & LICENCES,GOVERNMENT SERVICES,GPC
WALSALL COUNCIL,HTTP://OPENDATACOMMUNITIES.ORG/ID/METROPOLITAN-DISTRICT-COUNCIL/WALSALL,30/09/2020,RESOURCES & TRANSFORMATION,J9 ACCOMODATION,01/07/2020,H59620200702ILHGYUKEW-1,476.67,HOMELESSNESS PREVENTION STRATE-OTHER EMPLOYEES FEES & EXPENSE,REAL ESTATE MANAGERS - RENTALS,GPC
WALSALL COUNCIL,HTTP://OPENDATACOMMUNITIES.ORG/ID/METROPOLITAN-DISTRICT-COUNCIL/WALSALL,30/09/2020,CHILDRENS SERVICES,AMZNMKTPLACE AMAZON.CO.UK,01/07/2020,H59620200702IODTAIVDI-1,1.99,"43A HILTON ROAD, WILLENHALL-RESIDENTS PERSONAL EXPENSES-AL",MISCELLANEOUS AND SPECIALTY RETAIL STORES,GPC
WALSALL COUNCIL,HTTP://OPENDATACOMMUNITIES.ORG/ID/METROPOLITAN-DISTRICT-COUNCIL/WALSALL,30/09/2020,CHILDRENS SERVICES,AMAZON.CO.UK*NY4HT8QF5,01/07/2020,H59620200702IUGCEAKLS-1,36.99,PELSALL VILLAGE SCHOOL-OPERATIONAL MAINTENANCE,OTHER DIRECT MARKETING-OTHER DIRECT MARKETERS,GPC
WALSALL COUNCIL,HTTP://OPENDATACOMMUNITIES.ORG/ID/METROPOLITAN-DISTRICT-COUNCIL/WALSALL,30/09/2020,CHILDRENS SERVICES - SCHOOLS,02035190705 BOOK+,01/07/2020,H59620200702IXVXMGWLJ-1,25.51,E19-MATERIALS,"CONSULTING, MANAGEMENT, AND PR SERVICES",GPC
WALSALL COUNCIL,HTTP://OPENDATACOMMUNITIES.ORG/ID/METROPOLITAN-DISTRICT-COUNCIL/WALSALL,30/09/2020,CHILDRENS SERVICES - SCHOOLS,02035190705 BOOK+,01/07/2020,H59620200702IXVXMGWLJ-2,2.94,E19-POSTAGES & COURIER SERVICES,"CONSULTING, MANAGEMENT, AND PR SERVICES",GPC
WALSALL COUNCIL,HTTP://OPENDATACOMMUNITIES.ORG/ID/METROPOLITAN-DISTRICT-COUNCIL/WALSALL,30/09/2020,CHILDRENS SERVICES,AMZNMKTPLACE,01/07/2020,H59620200702JBNLXALUC-1,1.96,LOCALITY FAMILY SUPPORT-WEST-STATIONERY & GENERAL OFFICE SU,MISCELLANEOUS AND SPECIALTY RETAIL STORES,GPC
WALSALL COUNCIL,HTTP://OPENDATACOMMUNITIES.ORG/ID/METROPOLITAN-DISTRICT-COUNCIL/WALSALL,30/09/2020,CHILDRENS SERVICES,AMZNMKTPLACE AMAZON.CO.UK,01/07/2020,H59620200702JJKOXEBZJ-1,145.87,EARLY HELP HUB-PROFESSIONAL SERVICES-PRIV CON,MISCELLANEOUS AND SPECIALTY RETAIL STORES,GPC
WALSALL COUNCIL,HTTP://OPENDATACOMMUNITIES.ORG/ID/METROPOLITAN-DISTRICT-COUNCIL/WALSALL,30/09/2020,CHILDRENS SERVICES,AMZNMKTPLACE,01/07/2020,H59620200702JVWQACHHX-1,4.99,ADMINISTRATIVE SUPPLIES-STATIONERY & GENERAL OFFICE SU,MISCELLANEOUS AND SPECIALTY RETAIL STORES,GPC
WALSALL COUNCIL,HTTP://OPENDATACOMMUNITIES.ORG/ID/METROPOLITAN-DISTRICT-COUNCIL/WALSALL,30/09/2020,RESOURCES & TRANSFORMATION,METRO INNS WALSALL,01/07/2020,H59620200702KBMYYRTRR-1,152.00,BED & BREAKFAST PAYMENTS-BED & BREAKFAST PAYMENTS,"HOTELS, MOTELS, RESORTS",GPC
WALSALL COUNCIL,HTTP://OPENDATACOMMUNITIES.ORG/ID/METROPOLITAN-DISTRICT-COUNCIL/WALSALL,30/09/2020,CHILDRENS SERVICES,AMZNMKTPLACE AMAZON.CO.UK,01/07/2020,H59620200702KRTLGUUSM-1,1.49,"43A HILTON ROAD, WILLENHALL-RESIDENTS PERSONAL EXPENSES-AL",MISCELLANEOUS AND SPECIALTY RETAIL STORES,GPC
WALSALL COUNCIL,HTTP://OPENDATACOMMUNITIES.ORG/ID/METROPOLITAN-DISTRICT-COUNCIL/WALSALL,30/09/2020,CHILDRENS SERVICES,AMZNMKTPLACE,01/07/2020,H59620200702KWAQSZVSM-1,28.97,CONTACT SESSIONAL STAFF-SECTION 34 (CONTACT),MISCELLANEOUS AND SPECIALTY RETAIL STORES,GPC
WALSALL COUNCIL,HTTP://OPENDATACOMMUNITIES.ORG/ID/METROPOLITAN-DISTRICT-COUNCIL/WALSALL,30/09/2020,CHILDRENS SERVICES,TESCO STORE 3351,01/07/2020,H59620200702LAMCFYQPY-1,1.50,EARLY HELP HUB-EVENTS & VISUAL ARTS,GROCERY STORES AND SUPERMARKETS,GPC
WALSALL COUNCIL,HTTP://OPENDATACOMMUNITIES.ORG/ID/METROPOLITAN-DISTRICT-COUNCIL/WALSALL,30/09/2020,CHILDRENS SERVICES,TESCO STORE 3351,01/07/2020,H59620200702LAMCFYQPY-2,13.40,EARLY HELP HUB-EVENTS & VISUAL ARTS,GROCERY STORES AND SUPERMARKETS,GPC
WALSALL COUNCIL,HTTP://OPENDATACOMMUNITIES.ORG/ID/METROPOLITAN-DISTRICT-COUNCIL/WALSALL,30/09/2020,CHILDRENS SERVICES,AMZNMKTPLACE,01/07/2020,H59620200702LFAIRWWGO-1,8.99,"43A HILTON ROAD, WILLENHALL-RESIDENTS PERSONAL EXPENSES-AL",MISCELLANEOUS AND SPECIALTY RETAIL STORES,GPC
WALSALL COUNCIL,HTTP://OPENDATACOMMUNITIES.ORG/ID/METROPOLITAN-DISTRICT-COUNCIL/WALSALL,30/09/2020,CHILDRENS SERVICES,AMZNMKTPLACE,01/07/2020,H59620200702LJGJITGSK-1,7.99,"43A HILTON ROAD, WILLENHALL-RESIDENTS PERSONAL EXPENSES-AL",MISCELLANEOUS AND SPECIALTY RETAIL STORES,GPC
WALSALL COUNCIL,HTTP://OPENDATACOMMUNITIES.ORG/ID/METROPOLITAN-DISTRICT-COUNCIL/WALSALL,30/09/2020,CHILDRENS SERVICES,AMZNMKTPLACE,01/07/2020,H59620200702LQKMDBKSY-1,14.03,PELSALL VILLAGE SCHOOL-OPERATIONAL MAINTENANCE,MISCELLANEOUS AND SPECIALTY RETAIL STORES,GPC
WALSALL COUNCIL,HTTP://OPENDATACOMMUNITIES.ORG/ID/METROPOLITAN-DISTRICT-COUNCIL/WALSALL,30/09/2020,ECONOMY & ENVIRONMENT,AMZNMKTPLACE,01/07/2020,H59620200702LUYCMEUQX-1,19.98,OAK PARK-STATIONERY & GENERAL OFFICE SU,MISCELLANEOUS AND SPECIALTY RETAIL STORES,GPC
WALSALL COUNCIL,HTTP://OPENDATACOMMUNITIES.ORG/ID/METROPOLITAN-DISTRICT-COUNCIL/WALSALL,30/09/2020,CHILDRENS SERVICES,FINDEL EDUCATION,01/07/2020,H59620200702MJYXWINXI-1,93.34,CURRICULUM STOCK-MATERIALS,OTHER DIRECT MARKETING-OTHER DIRECT MARKETERS,GPC
WALSALL COUNCIL,HTTP://OPENDATACOMMUNITIES.ORG/ID/METROPOLITAN-DISTRICT-COUNCIL/WALSALL,30/09/2020,CHILDRENS SERVICES - SCHOOLS,FINDEL EDUCATION,01/07/2020,H59620200702MYKWWCONN-1,101.92,E19-MATERIALS,OTHER DIRECT MARKETING-OTHER DIRECT MARKETERS,GPC
WALSALL COUNCIL,HTTP://OPENDATACOMMUNITIES.ORG/ID/METROPOLITAN-DISTRICT-COUNCIL/WALSALL,30/09/2020,CHILDRENS SERVICES,W M MORRISON STORE,01/07/2020,H59620200702NHPOYVCEU-1,11.00,BLUEBELLS-PURCHASE OF FURNITURE & EQUIPM,GROCERY STORES AND SUPERMARKETS,GPC
WALSALL COUNCIL,HTTP://OPENDATACOMMUNITIES.ORG/ID/METROPOLITAN-DISTRICT-COUNCIL/WALSALL,30/09/2020,CHILDRENS SERVICES,W M MORRISON STORE,01/07/2020,H59620200702NHPOYVCEU-2,2.00,BLUEBELLS-FOOD & DRINK SUPPLIES,GROCERY STORES AND SUPERMARKETS,GPC
WALSALL COUNCIL,HTTP://OPENDATACOMMUNITIES.ORG/ID/METROPOLITAN-DISTRICT-COUNCIL/WALSALL,30/09/2020,RESOURCES & TRANSFORMATION,METRO INNS WALSALL,01/07/2020,H59620200702NKVGVMQKX-1,114.00,WALSALL CRISIS SUPPORT SCHEME-HOTEL ACCOMMODATION-EMPLOYEES,"HOTELS, MOTELS, RESORTS",GPC
WALSALL COUNCIL,HTTP://OPENDATACOMMUNITIES.ORG/ID/METROPOLITAN-DISTRICT-COUNCIL/WALSALL,30/09/2020,CHILDRENS SERVICES,AMZNMKTPLACE AMAZON.CO.UK,01/07/2020,H59620200702NMGGGMKOJ-1,2.49,"43A HILTON ROAD, WILLENHALL-RESIDENTS PERSONAL EXPENSES-AL",MISCELLANEOUS AND SPECIALTY RETAIL STORES,GPC
WALSALL COUNCIL,HTTP://OPENDATACOMMUNITIES.ORG/ID/METROPOLITAN-DISTRICT-COUNCIL/WALSALL,30/09/2020,CHILDRENS SERVICES,AMZNMKTPLACE,01/07/2020,H59620200702NOXCMIJGI-1,14.86,PELSALL VILLAGE SCHOOL-OPERATIONAL MAINTENANCE,MISCELLANEOUS AND SPECIALTY RETAIL STORES,GPC
WALSALL COUNCIL,HTTP://OPENDATACOMMUNITIES.ORG/ID/METROPOLITAN-DISTRICT-COUNCIL/WALSALL,30/09/2020,CHILDRENS SERVICES,AMZ*BRIT_BOOKS,01/07/2020,H59620200702ONUECBLTQ-1,-5.20,INFORMATION SERVICES-STATIONERY & GENERAL OFFICE SU,MISCELLANEOUS AND SPECIALTY RETAIL STORES,GPC
WALSALL COUNCIL,HTTP://OPENDATACOMMUNITIES.ORG/ID/METROPOLITAN-DISTRICT-COUNCIL/WALSALL,30/09/2020,CHILDRENS SERVICES,AMZNMKTPLACE,01/07/2020,H59620200702OXWUUUKIZ-1,29.99,ST FRANCIS OF ASSISI CATHOLIC -OPERATIONAL MAINTENANCE,MISCELLANEOUS AND SPECIALTY RETAIL STORES,GPC
WALSALL COUNCIL,HTTP://OPENDATACOMMUNITIES.ORG/ID/METROPOLITAN-DISTRICT-COUNCIL/WALSALL,30/09/2020,RESOURCES & TRANSFORMATION,ROMAN WAY HOTEL,01/07/2020,H59620200702QLMTVWPAI-1,300.00,BED & BREAKFAST PAYMENTS-BED & BREAKFAST PAYMENTS,"HOTELS, MOTELS, RESORTS",GPC
WALSALL COUNCIL,HTTP://OPENDATACOMMUNITIES.ORG/ID/METROPOLITAN-DISTRICT-COUNCIL/WALSALL,30/09/2020,ECONOMY & ENVIRONMENT,WILKO RETAIL LIMITED,01/07/2020,H59620200702QTBJETACX-1,5.00,LIBRARY OPERATIONS - MOBILE SE-CLEANING MATERIALS,MISCELLANEOUS GENERAL MERCHANDISE,GPC
WALSALL COUNCIL,HTTP://OPENDATACOMMUNITIES.ORG/ID/METROPOLITAN-DISTRICT-COUNCIL/WALSALL,30/09/2020,CHILDRENS SERVICES,247 CARS WILLENHALL LTD,01/07/2020,H59620200702RCXXUTJVC-1,20.80,SAFEGUARDING & FAMILY SUPPORT-SECTION 1/17CHILD CARE ACT 198,TAXI SERVICES,GPC
WALSALL COUNCIL,HTTP://OPENDATACOMMUNITIES.ORG/ID/METROPOLITAN-DISTRICT-COUNCIL/WALSALL,30/09/2020,CHILDRENS SERVICES,AMZNMKTPLACE,01/07/2020,H59620200702SQJKCTZWZ-1,29.31,"43A HILTON ROAD, WILLENHALL-RESIDENTS PERSONAL EXPENSES-AL",MISCELLANEOUS AND SPECIALTY RETAIL STORES,GPC
WALSALL COUNCIL,HTTP://OPENDATACOMMUNITIES.ORG/ID/METROPOLITAN-DISTRICT-COUNCIL/WALSALL,30/09/2020,CHILDRENS SERVICES,WALSALL COUNCIL,01/07/2020,H59620200702SYIGQIMIK-1,33.00,SAFEGUARDING & FAMILY SUPPORT-FEES & LICENCES,GOVERNMENT SERVICES,GPC
WALSALL COUNCIL,HTTP://OPENDATACOMMUNITIES.ORG/ID/METROPOLITAN-DISTRICT-COUNCIL/WALSALL,30/09/2020,CHILDRENS SERVICES,AMZNMKTPLACE,01/07/2020,H59620200702TUKBQMKMX-1,42.47,FAMILY PLACEMENTS-STATIONERY & GENERAL OFFICE SU,MISCELLANEOUS AND SPECIALTY RETAIL STORES,GPC
WALSALL COUNCIL,HTTP://OPENDATACOMMUNITIES.ORG/ID/METROPOLITAN-DISTRICT-COUNCIL/WALSALL,30/09/2020,CHILDRENS SERVICES,AMZNMKTPLACE,01/07/2020,H59620200702TYTYPLJCM-1,16.99,FAMILY PLACEMENTS-STATIONERY & GENERAL OFFICE SU,MISCELLANEOUS AND SPECIALTY RETAIL STORES,GPC
WALSALL COUNCIL,HTTP://OPENDATACOMMUNITIES.ORG/ID/METROPOLITAN-DISTRICT-COUNCIL/WALSALL,30/09/2020,CHILDRENS SERVICES,AMZNMKTPLACE,01/07/2020,H59620200702TYTYPLJCM-2,1.00,FAMILY PLACEMENTS-POSTAGES & COURIER SERVICES,MISCELLANEOUS AND SPECIALTY RETAIL STORES,GPC
WALSALL COUNCIL,HTTP://OPENDATACOMMUNITIES.ORG/ID/METROPOLITAN-DISTRICT-COUNCIL/WALSALL,30/09/2020,CHILDRENS SERVICES,AMZNMKTPLACE,01/07/2020,H59620200702UJFIEOYCM-1,22.89,CONTACT SESSIONAL STAFF-STATIONERY & GENERAL OFFICE SU,MISCELLANEOUS AND SPECIALTY RETAIL STORES,GPC
WALSALL COUNCIL,HTTP://OPENDATACOMMUNITIES.ORG/ID/METROPOLITAN-DISTRICT-COUNCIL/WALSALL,30/09/2020,CHILDRENS SERVICES,AMZNMKTPLACE,01/07/2020,H59620200702UKMUOGJJV-1,2.64,LOCALITY FAMILY SUPPORT-WEST-STATIONERY & GENERAL OFFICE SU,MISCELLANEOUS AND SPECIALTY RETAIL STORES,GPC
WALSALL COUNCIL,HTTP://OPENDATACOMMUNITIES.ORG/ID/METROPOLITAN-DISTRICT-COUNCIL/WALSALL,30/09/2020,CHILDRENS SERVICES,HTTP://WWW.FORWARDPRODUC,01/07/2020,H59620200702UPZSWGGDV-1,52.96,ADMINISTRATIVE SUPPLIES-MATERIALS,"STATIONERY, OFFICE SUPPLIES AND WRITING PAPER",GPC
WALSALL COUNCIL,HTTP://OPENDATACOMMUNITIES.ORG/ID/METROPOLITAN-DISTRICT-COUNCIL/WALSALL,30/09/2020,CHILDRENS SERVICES,WWW.PSHE-ASSOCIATION.O,01/07/2020,H59620200702VFLUUGTEN-1,50.00,GENERAL RESOURCES-MATERIALS,"ORGANIZATIONS, CHARITABLE AND SOCIAL SERVICE",GPC
WALSALL COUNCIL,HTTP://OPENDATACOMMUNITIES.ORG/ID/METROPOLITAN-DISTRICT-COUNCIL/WALSALL,30/09/2020,CHILDRENS SERVICES,AMZNMKTPLACE,01/07/2020,H59620200702VHPODGXEP-1,143.91,CONTACT SESSIONAL STAFF-STATIONERY & GENERAL OFFICE SU,MISCELLANEOUS AND SPECIALTY RETAIL STORES,GPC
WALSALL COUNCIL,HTTP://OPENDATACOMMUNITIES.ORG/ID/METROPOLITAN-DISTRICT-COUNCIL/WALSALL,30/09/2020,CHILDRENS SERVICES,AMZNMKTPLACE AMAZON.CO.UK,01/07/2020,H59620200702VJSZQWUOB-1,1.89,"43A HILTON ROAD, WILLENHALL-RESIDENTS PERSONAL EXPENSES-AL",MISCELLANEOUS AND SPECIALTY RETAIL STORES,GPC
WALSALL COUNCIL,HTTP://OPENDATACOMMUNITIES.ORG/ID/METROPOLITAN-DISTRICT-COUNCIL/WALSALL,30/09/2020,RESOURCES & TRANSFORMATION,ARTHUR BRETT CATER,01/07/2020,H59620200702VPCGSLVBR-1,76.59,CATERING - SCHOOLS-FOOD & DRINK SUPPLIES,MISCELLANEOUS FOOD STORES & CONVENIENCE STORES,GPC
WALSALL COUNCIL,HTTP://OPENDATACOMMUNITIES.ORG/ID/METROPOLITAN-DISTRICT-COUNCIL/WALSALL,30/09/2020,ECONOMY & ENVIRONMENT,WWW.RIGHTDIRECTIONS.CO,01/07/2020,H59620200702WGEFCFORC-1,3.00,BLOXWICH LEISURE CENTRE-CONSULTANT FEES,"CONSULTING, MANAGEMENT, AND PR SERVICES",GPC
WALSALL COUNCIL,HTTP://OPENDATACOMMUNITIES.ORG/ID/METROPOLITAN-DISTRICT-COUNCIL/WALSALL,30/09/2020,CHILDRENS SERVICES,AMZNMKTPLACE,01/07/2020,H59620200702XUNFPQKSN-1,13.98,GENERAL-MATERIALS,MISCELLANEOUS AND SPECIALTY RETAIL STORES,GPC
WALSALL COUNCIL,HTTP://OPENDATACOMMUNITIES.ORG/ID/METROPOLITAN-DISTRICT-COUNCIL/WALSALL,30/09/2020,CHILDRENS SERVICES,AMZNMKTPLACE,01/07/2020,H59620200702YBVUFLILU-1,5.50,"43A HILTON ROAD, WILLENHALL-RESIDENTS PERSONAL EXPENSES-AL",MISCELLANEOUS AND SPECIALTY RETAIL STORES,GPC
WALSALL COUNCIL,HTTP://OPENDATACOMMUNITIES.ORG/ID/METROPOLITAN-DISTRICT-COUNCIL/WALSALL,30/09/2020,ECONOMY & ENVIRONMENT,AMZNMKTPLACE AMAZON.CO.UK,01/07/2020,H59620200702YODDSCGND-1,35.71,LIBRARY OPERATIONS CENTRAL-STATIONERY & GENERAL OFFICE SU,MISCELLANEOUS AND SPECIALTY RETAIL STORES,GPC
WALSALL COUNCIL,HTTP://OPENDATACOMMUNITIES.ORG/ID/METROPOLITAN-DISTRICT-COUNCIL/WALSALL,30/09/2020,CHILDRENS SERVICES,SKY DIGITAL INTERN,01/07/2020,H59620200702ZMIOKZWYB-1,20.00,"43A HILTON ROAD, WILLENHALL-RESIDENTS PERSONAL EXPENSES-AL","CABLE, SATELLITE & OTHER PAY TV AND RADIO SERVICES",GPC
WALSALL COUNCIL,HTTP://OPENDATACOMMUNITIES.ORG/ID/METROPOLITAN-DISTRICT-COUNCIL/WALSALL,30/09/2020,CHILDRENS SERVICES - SCHOOLS,WWW.CROSSBOWEDUCATION.COM,01/07/2020,H59620200702ZYOGNAIQU-1,78.18,E19-MATERIALS,"OFFICE, SCHOOL SUPPLY, AND STATIONERY STORES",GPC
WALSALL COUNCIL,HTTP://OPENDATACOMMUNITIES.ORG/ID/METROPOLITAN-DISTRICT-COUNCIL/WALSALL,30/09/2020,RESOURCES & TRANSFORMATION,ARTHUR BRETT CATER,02/07/2020,H59620200703ARDWPYTVH-1,70.23,CATERING - SCHOOLS-FOOD & DRINK SUPPLIES,MISCELLANEOUS FOOD STORES & CONVENIENCE STORES,GPC
WALSALL COUNCIL,HTTP://OPENDATACOMMUNITIES.ORG/ID/METROPOLITAN-DISTRICT-COUNCIL/WALSALL,30/09/2020,CHILDRENS SERVICES - SCHOOLS,IKEA LTD 142 BIRMINGHAM M,02/07/2020,H59620200703ARTWEHTMB-1,128.00,E19-MATERIALS,"EQUIPMENT, FURNITURE, AND HOME FURNISHINGS STORES ",GPC
WALSALL COUNCIL,HTTP://OPENDATACOMMUNITIES.ORG/ID/METROPOLITAN-DISTRICT-COUNCIL/WALSALL,30/09/2020,RESOURCES & TRANSFORMATION,ARTHUR BRETT CATER,02/07/2020,H59620200703BAIUQSLGN-1,11.75,CATERING - SCHOOLS-FOOD & DRINK SUPPLIES,MISCELLANEOUS FOOD STORES & CONVENIENCE STORES,GPC
WALSALL COUNCIL,HTTP://OPENDATACOMMUNITIES.ORG/ID/METROPOLITAN-DISTRICT-COUNCIL/WALSALL,30/09/2020,RESOURCES & TRANSFORMATION,HIMLEY COUNTRY HOTEL,02/07/2020,H59620200703BJXDCDRMF-1,300.00,BED & BREAKFAST PAYMENTS-BED & BREAKFAST PAYMENTS,"HOTELS, MOTELS, RESORTS",GPC
WALSALL COUNCIL,HTTP://OPENDATACOMMUNITIES.ORG/ID/METROPOLITAN-DISTRICT-COUNCIL/WALSALL,30/09/2020,CHILDRENS SERVICES,ASDA SUPERSTORE,02/07/2020,H59620200703BNXWMUDVE-1,22.00,REDRUTH ROAD-PURCHASE OF FURNITURE & EQUIPM,GROCERY STORES AND SUPERMARKETS,GPC
WALSALL COUNCIL,HTTP://OPENDATACOMMUNITIES.ORG/ID/METROPOLITAN-DISTRICT-COUNCIL/WALSALL,30/09/2020,ECONOMY & ENVIRONMENT,BLAKEMORE FOODSERVICE,02/07/2020,H59620200703CAMKVFPCP-1,512.00,CIVIC LEADERSHIP AND MOBILISIN-STATIONERY & GENERAL OFFICE SU,CATERERS,GPC
WALSALL COUNCIL,HTTP://OPENDATACOMMUNITIES.ORG/ID/METROPOLITAN-DISTRICT-COUNCIL/WALSALL,30/09/2020,RESOURCES & TRANSFORMATION,ARTHUR BRETT CATER,02/07/2020,H59620200703CBDFCDFRU-1,30.66,CATERING - SCHOOLS-FOOD & DRINK SUPPLIES,MISCELLANEOUS FOOD STORES & CONVENIENCE STORES,GPC
WALSALL COUNCIL,HTTP://OPENDATACOMMUNITIES.ORG/ID/METROPOLITAN-DISTRICT-COUNCIL/WALSALL,30/09/2020,RESOURCES & TRANSFORMATION,ARTHUR BRETT CATER,02/07/2020,H59620200703CLWQMBDVH-1,23.60,CATERING - SCHOOLS-FOOD & DRINK SUPPLIES,MISCELLANEOUS FOOD STORES & CONVENIENCE STORES,GPC
WALSALL COUNCIL,HTTP://OPENDATACOMMUNITIES.ORG/ID/METROPOLITAN-DISTRICT-COUNCIL/WALSALL,30/09/2020,CHILDRENS SERVICES,AMZNMKTPLACE AMAZON.CO.UK,02/07/2020,H59620200703DFBNONHRG-1,12.47,"43A HILTON ROAD, WILLENHALL-RESIDENTS PERSONAL EXPENSES-AL",MISCELLANEOUS AND SPECIALTY RETAIL STORES,GPC
WALSALL COUNCIL,HTTP://OPENDATACOMMUNITIES.ORG/ID/METROPOLITAN-DISTRICT-COUNCIL/WALSALL,30/09/2020,CHILDRENS SERVICES,AMZNMKTPLACE,02/07/2020,H59620200703DUSWCWYZX-1,29.99,CONTACT SESSIONAL STAFF-STATIONERY & GENERAL OFFICE SU,MISCELLANEOUS AND SPECIALTY RETAIL STORES,GPC
WALSALL COUNCIL,HTTP://OPENDATACOMMUNITIES.ORG/ID/METROPOLITAN-DISTRICT-COUNCIL/WALSALL,30/09/2020,CHILDRENS SERVICES,AMZNMKTPLACE AMAZON.CO.UK,02/07/2020,H59620200703DYNQSHDTC-1,19.96,EARLY HELP HUB-PROFESSIONAL SERVICES-PRIV CON,MISCELLANEOUS AND SPECIALTY RETAIL STORES,GPC
WALSALL COUNCIL,HTTP://OPENDATACOMMUNITIES.ORG/ID/METROPOLITAN-DISTRICT-COUNCIL/WALSALL,30/09/2020,RESOURCES & TRANSFORMATION,JOHAL DAIRIES LTD,02/07/2020,H59620200703EOKXEIUVM-1,15.04,CATERING - SCHOOLS-FOOD & DRINK SUPPLIES,OTHER NONDURABLE GOODS,GPC
WALSALL COUNCIL,HTTP://OPENDATACOMMUNITIES.ORG/ID/METROPOLITAN-DISTRICT-COUNCIL/WALSALL,30/09/2020,RESOURCES & TRANSFORMATION,JOHAL DAIRIES LTD,02/07/2020,H59620200703FFNPXTTQK-1,7.37,CATERING - SCHOOLS-FOOD & DRINK SUPPLIES,OTHER NONDURABLE GOODS,GPC
WALSALL COUNCIL,HTTP://OPENDATACOMMUNITIES.ORG/ID/METROPOLITAN-DISTRICT-COUNCIL/WALSALL,30/09/2020,RESOURCES & TRANSFORMATION,JOHAL DAIRIES LTD,02/07/2020,H59620200703FLMDFPGUS-1,6.18,CATERING - SCHOOLS-FOOD & DRINK SUPPLIES,OTHER NONDURABLE GOODS,GPC
WALSALL COUNCIL,HTTP://OPENDATACOMMUNITIES.ORG/ID/METROPOLITAN-DISTRICT-COUNCIL/WALSALL,30/09/2020,RESOURCES & TRANSFORMATION,JOHAL DAIRIES LTD,02/07/2020,H59620200703FRSCSVFTX-1,26.11,CATERING - SCHOOLS-FOOD & DRINK SUPPLIES,OTHER NONDURABLE GOODS,GPC
WALSALL COUNCIL,HTTP://OPENDATACOMMUNITIES.ORG/ID/METROPOLITAN-DISTRICT-COUNCIL/WALSALL,30/09/2020,CHILDRENS SERVICES - SCHOOLS,GOOGLE *GSUITE_CADMUSS,02/07/2020,H59620200703FXMIMOCGQ-1,8.28,CADMUS FEDERATION-COMPUTER EQUIPMENT,COMPUTER NETWORK/INFORMATION SERVICES,GPC
WALSALL COUNCIL,HTTP://OPENDATACOMMUNITIES.ORG/ID/METROPOLITAN-DISTRICT-COUNCIL/WALSALL,30/09/2020,CHILDRENS SERVICES,WWW.BANNERUK.COM,02/07/2020,H59620200703GXNMKTCXC-1,74.23,LOCALITY FAMILY SUPPORT-NORTH-STATIONERY & GENERAL OFFICE SU,"STATIONERY, OFFICE SUPPLIES AND WRITING PAPER",GPC
WALSALL COUNCIL,HTTP://OPENDATACOMMUNITIES.ORG/ID/METROPOLITAN-DISTRICT-COUNCIL/WALSALL,30/09/2020,RESOURCES & TRANSFORMATION,JOHAL DAIRIES LTD,02/07/2020,H59620200703HOWTXUVNX-1,29.71,CATERING - SCHOOLS-FOOD & DRINK SUPPLIES,OTHER NONDURABLE GOODS,GPC
WALSALL COUNCIL,HTTP://OPENDATACOMMUNITIES.ORG/ID/METROPOLITAN-DISTRICT-COUNCIL/WALSALL,30/09/2020,CHILDRENS SERVICES,WWW.GL-EDUCATION.C,02/07/2020,H59620200703HTCZYKXWK-1,333.35,EDUCATIONAL PSYCHOLOGISTS-LIBRARY BOOKS,BOOK STORES,GPC
WALSALL COUNCIL,HTTP://OPENDATACOMMUNITIES.ORG/ID/METROPOLITAN-DISTRICT-COUNCIL/WALSALL,30/09/2020,CHILDRENS SERVICES,POUNDLAND,02/07/2020,H59620200703IAYJTWYDV-1,2.00,TARGETED YOUTH WORK-EXTERNALLY FUNDED COMMISSION P,DISCOUNT STORES,GPC
WALSALL COUNCIL,HTTP://OPENDATACOMMUNITIES.ORG/ID/METROPOLITAN-DISTRICT-COUNCIL/WALSALL,30/09/2020,CHILDRENS SERVICES,POUNDLAND,02/07/2020,H59620200703IAYJTWYDV-2,15.50,TARGETED YOUTH WORK-EXTERNALLY FUNDED COMMISSION P,DISCOUNT STORES,GPC
WALSALL COUNCIL,HTTP://OPENDATACOMMUNITIES.ORG/ID/METROPOLITAN-DISTRICT-COUNCIL/WALSALL,30/09/2020,RESOURCES & TRANSFORMATION,ARTHUR BRETT CATER,02/07/2020,H59620200703ILIRCNVNH-1,49.15,CATERING - SCHOOLS-FOOD & DRINK SUPPLIES,MISCELLANEOUS FOOD STORES & CONVENIENCE STORES,GPC
WALSALL COUNCIL,HTTP://OPENDATACOMMUNITIES.ORG/ID/METROPOLITAN-DISTRICT-COUNCIL/WALSALL,30/09/2020,CHILDRENS SERVICES,ASDA SUPERSTORE,02/07/2020,H59620200703IRJRWGDUN-1,5.75,REDRUTH ROAD-FOOD & DRINK SUPPLIES,GROCERY STORES AND SUPERMARKETS,GPC
WALSALL COUNCIL,HTTP://OPENDATACOMMUNITIES.ORG/ID/METROPOLITAN-DISTRICT-COUNCIL/WALSALL,30/09/2020,CHILDRENS SERVICES,AMZNMKTPLACE AMAZON.CO.UK,02/07/2020,H59620200703ISCBKOFQR-1,15.98,EARLY HELP HUB-PROFESSIONAL SERVICES-PRIV CON,MISCELLANEOUS AND SPECIALTY RETAIL STORES,GPC
WALSALL COUNCIL,HTTP://OPENDATACOMMUNITIES.ORG/ID/METROPOLITAN-DISTRICT-COUNCIL/WALSALL,30/09/2020,RESOURCES & TRANSFORMATION,BLAKEMORE FOODSERVICE,02/07/2020,H59620200703IXNKTHHJK-1,145.17,CATERING - SCHOOLS-FOOD & DRINK SUPPLIES,CATERERS,GPC
WALSALL COUNCIL,HTTP://OPENDATACOMMUNITIES.ORG/ID/METROPOLITAN-DISTRICT-COUNCIL/WALSALL,30/09/2020,RESOURCES & TRANSFORMATION,ARTHUR BRETT CATER,02/07/2020,H59620200703JKBJIXJXL-1,15.94,CATERING - SCHOOLS-FOOD & DRINK SUPPLIES,MISCELLANEOUS FOOD STORES & CONVENIENCE STORES,GPC
WALSALL COUNCIL,HTTP://OPENDATACOMMUNITIES.ORG/ID/METROPOLITAN-DISTRICT-COUNCIL/WALSALL,30/09/2020,ECONOMY & ENVIRONMENT,MIDLANDNEWS.COM,02/07/2020,H59620200703JNWXMFRPV-1,416.40,DEVELOPMENT MANAGEMENT-SUBSCRIPTIONS,NEWS DEALERS AND NEWSSTANDS,GPC
WALSALL COUNCIL,HTTP://OPENDATACOMMUNITIES.ORG/ID/METROPOLITAN-DISTRICT-COUNCIL/WALSALL,30/09/2020,CHILDRENS SERVICES,JD SPORTS INTERNET,02/07/2020,H59620200703JOBFMBWSD-1,95.00,TRANSITION AND LEAVING CARE PL-CLOTHING & LAUNDRY,SPORTING GOODS STORES,GPC
WALSALL COUNCIL,HTTP://OPENDATACOMMUNITIES.ORG/ID/METROPOLITAN-DISTRICT-COUNCIL/WALSALL,30/09/2020,RESOURCES & TRANSFORMATION,JOHAL DAIRIES LTD,02/07/2020,H59620200703JRFVSXKZX-1,24.32,CATERING - SCHOOLS-FOOD & DRINK SUPPLIES,OTHER NONDURABLE GOODS,GPC
WALSALL COUNCIL,HTTP://OPENDATACOMMUNITIES.ORG/ID/METROPOLITAN-DISTRICT-COUNCIL/WALSALL,30/09/2020,CHILDRENS SERVICES,CH FURNITURE SUPPLIES,02/07/2020,H59620200703KGKBSCZJY-1,290.00,TRANSITION AND LEAVING CARE PL-CARE LEAVERS MTCE PAYMENTS,"EQUIPMENT, FURNITURE, AND HOME FURNISHINGS STORES ",GPC
WALSALL COUNCIL,HTTP://OPENDATACOMMUNITIES.ORG/ID/METROPOLITAN-DISTRICT-COUNCIL/WALSALL,30/09/2020,CHILDRENS SERVICES,AMZNMKTPLACE,02/07/2020,H59620200703KGVGHLUIN-1,2.99,"43A HILTON ROAD, WILLENHALL-RESIDENTS PERSONAL EXPENSES-AL",MISCELLANEOUS AND SPECIALTY RETAIL STORES,GPC
WALSALL COUNCIL,HTTP://OPENDATACOMMUNITIES.ORG/ID/METROPOLITAN-DISTRICT-COUNCIL/WALSALL,30/09/2020,ECONOMY & ENVIRONMENT,WWW.RIGHTDIRECTIONS.CO,02/07/2020,H59620200703KMUWQSKTJ-1,3.00,OAK PARK-EXTERNAL TRAINING,"CONSULTING, MANAGEMENT, AND PR SERVICES",GPC
WALSALL COUNCIL,HTTP://OPENDATACOMMUNITIES.ORG/ID/METROPOLITAN-DISTRICT-COUNCIL/WALSALL,30/09/2020,CHILDRENS SERVICES - SCHOOLS,AMAZON.CO.UK*8447P2V95,02/07/2020,H59620200703LEPYSHNAP-1,26.39,E19-MATERIALS,OTHER DIRECT MARKETING-OTHER DIRECT MARKETERS,GPC
WALSALL COUNCIL,HTTP://OPENDATACOMMUNITIES.ORG/ID/METROPOLITAN-DISTRICT-COUNCIL/WALSALL,30/09/2020,RESOURCES & TRANSFORMATION,BLAKEMORE FOODSERVICE,02/07/2020,H59620200703LIVSCPXIB-1,92.11,CATERING - SCHOOLS-FOOD & DRINK SUPPLIES,CATERERS,GPC
WALSALL COUNCIL,HTTP://OPENDATACOMMUNITIES.ORG/ID/METROPOLITAN-DISTRICT-COUNCIL/WALSALL,30/09/2020,RESOURCES & TRANSFORMATION,BLAKEMORE FOODSERVICE,02/07/2020,H59620200703LIVSCPXIB-2,26.49,CATERING - SCHOOLS-FOOD & DRINK SUPPLIES,CATERERS,GPC
WALSALL COUNCIL,HTTP://OPENDATACOMMUNITIES.ORG/ID/METROPOLITAN-DISTRICT-COUNCIL/WALSALL,30/09/2020,RESOURCES & TRANSFORMATION,ARTHUR BRETT CATER,02/07/2020,H59620200703LWPESEEMG-1,41.97,CATERING - SCHOOLS-FOOD & DRINK SUPPLIES,MISCELLANEOUS FOOD STORES & CONVENIENCE STORES,GPC
WALSALL COUNCIL,HTTP://OPENDATACOMMUNITIES.ORG/ID/METROPOLITAN-DISTRICT-COUNCIL/WALSALL,30/09/2020,CHILDRENS SERVICES,AMAZON.CO.UK*186V03WU5,02/07/2020,H59620200703MAMXVMVSN-1,94.69,VIRTUAL SCHOOL - CENTRAL PUPIL-OTHER EXPENSES,OTHER DIRECT MARKETING-OTHER DIRECT MARKETERS,GPC
WALSALL COUNCIL,HTTP://OPENDATACOMMUNITIES.ORG/ID/METROPOLITAN-DISTRICT-COUNCIL/WALSALL,30/09/2020,CHILDRENS SERVICES,AMAZON.CO.UK*186V03WU5,02/07/2020,H59620200703MAMXVMVSN-2,83.30,VIRTUAL SCHOOL - CENTRAL PUPIL-OTHER EXPENSES,OTHER DIRECT MARKETING-OTHER DIRECT MARKETERS,GPC
WALSALL COUNCIL,HTTP://OPENDATACOMMUNITIES.ORG/ID/METROPOLITAN-DISTRICT-COUNCIL/WALSALL,30/09/2020,ECONOMY & ENVIRONMENT,FOREIGN EXCHANGE FEE,02/07/2020,H59620200703MJYXJNXJM-1,0.25,NAG - TEMPORARY EXHIBITIONS-POSTAGES & COURIER SERVICES,,GPC
WALSALL COUNCIL,HTTP://OPENDATACOMMUNITIES.ORG/ID/METROPOLITAN-DISTRICT-COUNCIL/WALSALL,30/09/2020,ADULT SOCIAL CARE,WILKO RETAIL LIMITED,02/07/2020,H59620200703MNNDJLOXO-1,6.00,GOSCOTE-MATERIALS,MISCELLANEOUS GENERAL MERCHANDISE,GPC
WALSALL COUNCIL,HTTP://OPENDATACOMMUNITIES.ORG/ID/METROPOLITAN-DISTRICT-COUNCIL/WALSALL,30/09/2020,CHILDRENS SERVICES - SCHOOLS,123 REG LTD,02/07/2020,H59620200703MQIEGUKVL-1,11.99,CADMUS FEDERATION-MATERIALS,DIRECT MARKETING CONTINUITY SUBSCRIPTION MERCHANTS,GPC
WALSALL COUNCIL,HTTP://OPENDATACOMMUNITIES.ORG/ID/METROPOLITAN-DISTRICT-COUNCIL/WALSALL,30/09/2020,RESOURCES & TRANSFORMATION,JOHAL DAIRIES LTD,02/07/2020,H59620200703NCMBLYRRS-1,11.78,CATERING - SCHOOLS-FOOD & DRINK SUPPLIES,OTHER NONDURABLE GOODS,GPC
WALSALL COUNCIL,HTTP://OPENDATACOMMUNITIES.ORG/ID/METROPOLITAN-DISTRICT-COUNCIL/WALSALL,30/09/2020,ECONOMY & ENVIRONMENT,WWW.RIGHTDIRECTIONS.CO,02/07/2020,H59620200703NIRJZYNSE-1,3.00,WALSALL GALA CENTRE-CONSULTANT FEES,"CONSULTING, MANAGEMENT, AND PR SERVICES",GPC
WALSALL COUNCIL,HTTP://OPENDATACOMMUNITIES.ORG/ID/METROPOLITAN-DISTRICT-COUNCIL/WALSALL,30/09/2020,CHILDRENS SERVICES,POST OFFICE COUNTER,02/07/2020,H59620200703NVKQPDOFR-1,6.18,SPECIAL FACILITIES-MATERIALS,POSTAL SERVICES - GOVERNMENT ONLY,GPC
WALSALL COUNCIL,HTTP://OPENDATACOMMUNITIES.ORG/ID/METROPOLITAN-DISTRICT-COUNCIL/WALSALL,30/09/2020,RESOURCES & TRANSFORMATION,ARTHUR BRETT CATER,02/07/2020,H59620200703OBERRFAKE-1,48.46,CATERING - SCHOOLS-FOOD & DRINK SUPPLIES,MISCELLANEOUS FOOD STORES & CONVENIENCE STORES,GPC
WALSALL COUNCIL,HTTP://OPENDATACOMMUNITIES.ORG/ID/METROPOLITAN-DISTRICT-COUNCIL/WALSALL,30/09/2020,CHILDRENS SERVICES,WWW.BANNERUK.COM,02/07/2020,H59620200703OHXNBIAIQ-1,41.24,SAFEGUARDING & FAMILY SUPPORT-STATIONERY & GENERAL OFFICE SU,"STATIONERY, OFFICE SUPPLIES AND WRITING PAPER",GPC
WALSALL COUNCIL,HTTP://OPENDATACOMMUNITIES.ORG/ID/METROPOLITAN-DISTRICT-COUNCIL/WALSALL,30/09/2020,CHILDRENS SERVICES,WWW.BANNERUK.COM,02/07/2020,H59620200703OHXNBIAIQ-2,41.24,FAMILY PLACEMENTS-STATIONERY & GENERAL OFFICE SU,"STATIONERY, OFFICE SUPPLIES AND WRITING PAPER",GPC
WALSALL COUNCIL,HTTP://OPENDATACOMMUNITIES.ORG/ID/METROPOLITAN-DISTRICT-COUNCIL/WALSALL,30/09/2020,CHILDRENS SERVICES,WWW.BANNERUK.COM,02/07/2020,H59620200703OHXNBIAIQ-3,41.24,CONTACT SESSIONAL STAFF-STATIONERY & GENERAL OFFICE SU,"STATIONERY, OFFICE SUPPLIES AND WRITING PAPER",GPC
WALSALL COUNCIL,HTTP://OPENDATACOMMUNITIES.ORG/ID/METROPOLITAN-DISTRICT-COUNCIL/WALSALL,30/09/2020,CHILDRENS SERVICES,WWW.BANNERUK.COM,02/07/2020,H59620200703PTONPEWLC-1,49.49,BIRCHILLS CHILDCARE SERVICES-STATIONERY & GENERAL OFFICE SU,"STATIONERY, OFFICE SUPPLIES AND WRITING PAPER",GPC
WALSALL COUNCIL,HTTP://OPENDATACOMMUNITIES.ORG/ID/METROPOLITAN-DISTRICT-COUNCIL/WALSALL,30/09/2020,RESOURCES & TRANSFORMATION,JOHAL DAIRIES LTD,02/07/2020,H59620200703PWQTTQJGB-1,12.36,CATERING - SCHOOLS-FOOD & DRINK SUPPLIES,OTHER NONDURABLE GOODS,GPC
WALSALL COUNCIL,HTTP://OPENDATACOMMUNITIES.ORG/ID/METROPOLITAN-DISTRICT-COUNCIL/WALSALL,30/09/2020,RESOURCES & TRANSFORMATION,JOHAL DAIRIES LTD,02/07/2020,H59620200703QAXPIQWVR-1,39.73,CATERING - SCHOOLS-FOOD & DRINK SUPPLIES,OTHER NONDURABLE GOODS,GPC
WALSALL COUNCIL,HTTP://OPENDATACOMMUNITIES.ORG/ID/METROPOLITAN-DISTRICT-COUNCIL/WALSALL,30/09/2020,RESOURCES & TRANSFORMATION,ARTHUR BRETT CATER,02/07/2020,H59620200703QPWBSUOFM-1,23.96,CATERING - SCHOOLS-FOOD & DRINK SUPPLIES,MISCELLANEOUS FOOD STORES & CONVENIENCE STORES,GPC
WALSALL COUNCIL,HTTP://OPENDATACOMMUNITIES.ORG/ID/METROPOLITAN-DISTRICT-COUNCIL/WALSALL,30/09/2020,CHILDRENS SERVICES,POST OFFICE COUNTER,02/07/2020,H59620200703QQDWTQZXK-1,32.96,SPECIAL FACILITIES-MATERIALS,POSTAL SERVICES - GOVERNMENT ONLY,GPC
WALSALL COUNCIL,HTTP://OPENDATACOMMUNITIES.ORG/ID/METROPOLITAN-DISTRICT-COUNCIL/WALSALL,30/09/2020,RESOURCES & TRANSFORMATION,NOBISCO LIMITED,02/07/2020,H59620200703RBKSITUYN-1,16.84,CATERING - SCHOOLS-FOOD & DRINK SUPPLIES,OTHER INDUSTRIAL SUPPLIES,GPC
WALSALL COUNCIL,HTTP://OPENDATACOMMUNITIES.ORG/ID/METROPOLITAN-DISTRICT-COUNCIL/WALSALL,30/09/2020,RESOURCES & TRANSFORMATION,ARTHUR BRETT CATER,02/07/2020,H59620200703RHSNBLLOB-1,5.06,CATERING - SCHOOLS-FOOD & DRINK SUPPLIES,MISCELLANEOUS FOOD STORES & CONVENIENCE STORES,GPC
WALSALL COUNCIL,HTTP://OPENDATACOMMUNITIES.ORG/ID/METROPOLITAN-DISTRICT-COUNCIL/WALSALL,30/09/2020,CHILDRENS SERVICES,AMZNMKTPLACE,02/07/2020,H59620200703RIMMSXBSC-1,19.99,SAFEGUARDING & FAMILY SUPPORT-SECTION 34 (CONTACT),MISCELLANEOUS AND SPECIALTY RETAIL STORES,GPC
WALSALL COUNCIL,HTTP://OPENDATACOMMUNITIES.ORG/ID/METROPOLITAN-DISTRICT-COUNCIL/WALSALL,30/09/2020,CHILDRENS SERVICES,AMZNMKTPLACE,02/07/2020,H59620200703RIMMSXBSC-2,14.24,CONTACT SESSIONAL STAFF-SECTION 34 (CONTACT),MISCELLANEOUS AND SPECIALTY RETAIL STORES,GPC
WALSALL COUNCIL,HTTP://OPENDATACOMMUNITIES.ORG/ID/METROPOLITAN-DISTRICT-COUNCIL/WALSALL,30/09/2020,CHILDRENS SERVICES,AMZNMKTPLACE,02/07/2020,H59620200703RIMMSXBSC-3,1.25,CONTACT SESSIONAL STAFF-POSTAGES & COURIER SERVICES,MISCELLANEOUS AND SPECIALTY RETAIL STORES,GPC
WALSALL COUNCIL,HTTP://OPENDATACOMMUNITIES.ORG/ID/METROPOLITAN-DISTRICT-COUNCIL/WALSALL,30/09/2020,CHILDRENS SERVICES,AMZNMKTPLACE,02/07/2020,H59620200703RUEFHRCEN-1,13.32,REDRUTH ROAD-RESIDENTS PERSONAL EXPENSES-AL,MISCELLANEOUS AND SPECIALTY RETAIL STORES,GPC
WALSALL COUNCIL,HTTP://OPENDATACOMMUNITIES.ORG/ID/METROPOLITAN-DISTRICT-COUNCIL/WALSALL,30/09/2020,CHILDRENS SERVICES - SCHOOLS,02035190705 BOOK+,02/07/2020,H59620200703RWKBCYRDB-1,68.75,E19-MATERIALS,"CONSULTING, MANAGEMENT, AND PR SERVICES",GPC
WALSALL COUNCIL,HTTP://OPENDATACOMMUNITIES.ORG/ID/METROPOLITAN-DISTRICT-COUNCIL/WALSALL,30/09/2020,CHILDRENS SERVICES - SCHOOLS,02035190705 BOOK+,02/07/2020,H59620200703RWKBCYRDB-2,2.94,E19-POSTAGES & COURIER SERVICES,"CONSULTING, MANAGEMENT, AND PR SERVICES",GPC
WALSALL COUNCIL,HTTP://OPENDATACOMMUNITIES.ORG/ID/METROPOLITAN-DISTRICT-COUNCIL/WALSALL,30/09/2020,RESOURCES & TRANSFORMATION,JOHAL DAIRIES LTD,02/07/2020,H59620200703SDOKXLQDT-1,21.36,CATERING - SCHOOLS-FOOD & DRINK SUPPLIES,OTHER NONDURABLE GOODS,GPC
WALSALL COUNCIL,HTTP://OPENDATACOMMUNITIES.ORG/ID/METROPOLITAN-DISTRICT-COUNCIL/WALSALL,30/09/2020,CHILDRENS SERVICES,AMZNMKTPLACE,02/07/2020,H59620200703SGCOWGRIE-1,13.99,LOCALITY FAMILY SUPPORT-WEST-STATIONERY & GENERAL OFFICE SU,MISCELLANEOUS AND SPECIALTY RETAIL STORES,GPC
WALSALL COUNCIL,HTTP://OPENDATACOMMUNITIES.ORG/ID/METROPOLITAN-DISTRICT-COUNCIL/WALSALL,30/09/2020,RESOURCES & TRANSFORMATION,J2 EFAX PLUS SERVICE,02/07/2020,H59620200703SGTGMOZDZ-1,19.20,RECHARGEABLE EQUIPMENT-COMPUTER EQUIPMENT,DIRECT MARKETING CONTINUITY SUBSCRIPTION MERCHANTS,GPC
WALSALL COUNCIL,HTTP://OPENDATACOMMUNITIES.ORG/ID/METROPOLITAN-DISTRICT-COUNCIL/WALSALL,30/09/2020,CHILDRENS SERVICES,BCC REGISTER OFFIC,02/07/2020,H59620200703SHDPGFFGK-1,14.50,SAFEGUARDING & FAMILY SUPPORT-FEES & LICENCES,GOVERNMENT SERVICES,GPC
WALSALL COUNCIL,HTTP://OPENDATACOMMUNITIES.ORG/ID/METROPOLITAN-DISTRICT-COUNCIL/WALSALL,30/09/2020,CHILDRENS SERVICES,W M MORRISON STORE,02/07/2020,H59620200703SIEBJVXWB-1,18.24,BLUEBELLS-STATIONERY & GENERAL OFFICE SU,GROCERY STORES AND SUPERMARKETS,GPC
WALSALL COUNCIL,HTTP://OPENDATACOMMUNITIES.ORG/ID/METROPOLITAN-DISTRICT-COUNCIL/WALSALL,30/09/2020,CHILDRENS SERVICES,AMZNMKTPLACE AMAZON.CO.UK,02/07/2020,H59620200703SORBBWNIS-1,35.97,EARLY HELP HUB-PROFESSIONAL SERVICES-PRIV CON,MISCELLANEOUS AND SPECIALTY RETAIL STORES,GPC
WALSALL COUNCIL,HTTP://OPENDATACOMMUNITIES.ORG/ID/METROPOLITAN-DISTRICT-COUNCIL/WALSALL,30/09/2020,CHILDRENS SERVICES,AMZNMKTPLACE AMAZON.CO.UK,02/07/2020,H59620200703SORBBWNIS-2,49.95,EARLY HELP HUB-PROFESSIONAL SERVICES-PRIV CON,MISCELLANEOUS AND SPECIALTY RETAIL STORES,GPC
WALSALL COUNCIL,HTTP://OPENDATACOMMUNITIES.ORG/ID/METROPOLITAN-DISTRICT-COUNCIL/WALSALL,30/09/2020,ECONOMY & ENVIRONMENT,WETRANSFER,02/07/2020,H59620200703SPXYCQEOS-1,9.08,NAG - TEMPORARY EXHIBITIONS-POSTAGES & COURIER SERVICES,"COMPUTER PROGRAM, SYSTEM DESIGN",GPC
WALSALL COUNCIL,HTTP://OPENDATACOMMUNITIES.ORG/ID/METROPOLITAN-DISTRICT-COUNCIL/WALSALL,30/09/2020,ECONOMY & ENVIRONMENT,WWW.STOPSLIP.CO.UK,02/07/2020,H59620200703SRMRFWTFC-1,36.89,LIBRARY OPERATIONS CENTRAL-MATERIALS,LUMBER & BUILDING MATERIALS STORES,GPC
WALSALL COUNCIL,HTTP://OPENDATACOMMUNITIES.ORG/ID/METROPOLITAN-DISTRICT-COUNCIL/WALSALL,30/09/2020,CHILDRENS SERVICES,WWW.THEWORKS.CO.UK,02/07/2020,H59620200703SSOKHFQYM-1,203.99,EARLY HELP HUB-PROFESSIONAL SERVICES-PRIV CON,DISCOUNT STORES,GPC
WALSALL COUNCIL,HTTP://OPENDATACOMMUNITIES.ORG/ID/METROPOLITAN-DISTRICT-COUNCIL/WALSALL,30/09/2020,RESOURCES & TRANSFORMATION,ARTHUR BRETT CATER,02/07/2020,H59620200703TCIYVBFYU-1,51.28,CATERING - SCHOOLS-FOOD & DRINK SUPPLIES,MISCELLANEOUS FOOD STORES & CONVENIENCE STORES,GPC
WALSALL COUNCIL,HTTP://OPENDATACOMMUNITIES.ORG/ID/METROPOLITAN-DISTRICT-COUNCIL/WALSALL,30/09/2020,CHILDRENS SERVICES,PAYPAL *KIMMIKRAFT,02/07/2020,H59620200703TQHDMFKES-1,368.00,ADMINISTRATIVE SUPPLIES-MATERIALS,PROFESSIONAL SERVICES,GPC
WALSALL COUNCIL,HTTP://OPENDATACOMMUNITIES.ORG/ID/METROPOLITAN-DISTRICT-COUNCIL/WALSALL,30/09/2020,RESOURCES & TRANSFORMATION,ARTHUR BRETT CATER,02/07/2020,H59620200703UEGJWSINN-1,34.05,CATERING - SCHOOLS-FOOD & DRINK SUPPLIES,MISCELLANEOUS FOOD STORES & CONVENIENCE STORES,GPC
WALSALL COUNCIL,HTTP://OPENDATACOMMUNITIES.ORG/ID/METROPOLITAN-DISTRICT-COUNCIL/WALSALL,30/09/2020,RESOURCES & TRANSFORMATION,ARTHUR BRETT CATER,02/07/2020,H59620200703UFHSUPDSG-1,16.61,CATERING - SCHOOLS-FOOD & DRINK SUPPLIES,MISCELLANEOUS FOOD STORES & CONVENIENCE STORES,GPC
WALSALL COUNCIL,HTTP://OPENDATACOMMUNITIES.ORG/ID/METROPOLITAN-DISTRICT-COUNCIL/WALSALL,30/09/2020,CHILDRENS SERVICES,B&M RETAIL LTD,02/07/2020,H59620200703UJPVGGHIL-1,120.98,TRANSITION AND LEAVING CARE PL-CARE LEAVERS MTCE PAYMENTS,DISCOUNT STORES,GPC
WALSALL COUNCIL,HTTP://OPENDATACOMMUNITIES.ORG/ID/METROPOLITAN-DISTRICT-COUNCIL/WALSALL,30/09/2020,RESOURCES & TRANSFORMATION,JOHAL DAIRIES LTD,02/07/2020,H59620200703UKSZEHUXU-1,43.44,CATERING - SCHOOLS-FOOD & DRINK SUPPLIES,OTHER NONDURABLE GOODS,GPC
WALSALL COUNCIL,HTTP://OPENDATACOMMUNITIES.ORG/ID/METROPOLITAN-DISTRICT-COUNCIL/WALSALL,30/09/2020,RESOURCES & TRANSFORMATION,METRO INNS WALSALL,02/07/2020,H59620200703UPXMIMRIL-1,76.00,BED & BREAKFAST PAYMENTS-BED & BREAKFAST PAYMENTS,"HOTELS, MOTELS, RESORTS",GPC
WALSALL COUNCIL,HTTP://OPENDATACOMMUNITIES.ORG/ID/METROPOLITAN-DISTRICT-COUNCIL/WALSALL,30/09/2020,RESOURCES & TRANSFORMATION,JOHAL DAIRIES LTD,02/07/2020,H59620200703UUOYSNFQY-1,18.76,CATERING - SCHOOLS-FOOD & DRINK SUPPLIES,OTHER NONDURABLE GOODS,GPC
WALSALL COUNCIL,HTTP://OPENDATACOMMUNITIES.ORG/ID/METROPOLITAN-DISTRICT-COUNCIL/WALSALL,30/09/2020,CHILDRENS SERVICES,SCREWFIX DIRECT,02/07/2020,H59620200703UUWXMNCUG-1,96.99,PELSALL EDC-PURCHASE OF FURNITURE & EQUIPM,HOME SUPPLY WAREHOUSE STORES,GPC
WALSALL COUNCIL,HTTP://OPENDATACOMMUNITIES.ORG/ID/METROPOLITAN-DISTRICT-COUNCIL/WALSALL,30/09/2020,RESOURCES & TRANSFORMATION,POST OFFICE COUNTER,02/07/2020,H59620200703UYMWSSTBH-1,2.06,ACCOMMODATION SERVICES MANAGEM-POSTAGES & COURIER SERVICES,POSTAL SERVICES - GOVERNMENT ONLY,GPC
WALSALL COUNCIL,HTTP://OPENDATACOMMUNITIES.ORG/ID/METROPOLITAN-DISTRICT-COUNCIL/WALSALL,30/09/2020,RESOURCES & TRANSFORMATION,HOME BARGAINS WOLVERHA,02/07/2020,H59620200703VKGLQCTXC-1,6.17,ACCOMMODATION SERVICES MANAGEM-MATERIALS,HARDWARE STORES,GPC
WALSALL COUNCIL,HTTP://OPENDATACOMMUNITIES.ORG/ID/METROPOLITAN-DISTRICT-COUNCIL/WALSALL,30/09/2020,RESOURCES & TRANSFORMATION,ARTHUR BRETT CATER,02/07/2020,H59620200703VRHZGGFFP-1,23.00,CATERING - SCHOOLS-FOOD & DRINK SUPPLIES,MISCELLANEOUS FOOD STORES & CONVENIENCE STORES,GPC
WALSALL COUNCIL,HTTP://OPENDATACOMMUNITIES.ORG/ID/METROPOLITAN-DISTRICT-COUNCIL/WALSALL,30/09/2020,RESOURCES & TRANSFORMATION,BLAKEMORE FOODSERVICE,02/07/2020,H59620200703WDWBUKWTS-1,122.22,CATERING - SCHOOLS-FOOD & DRINK SUPPLIES,CATERERS,GPC
WALSALL COUNCIL,HTTP://OPENDATACOMMUNITIES.ORG/ID/METROPOLITAN-DISTRICT-COUNCIL/WALSALL,30/09/2020,RESOURCES & TRANSFORMATION,BLAKEMORE FOODSERVICE,02/07/2020,H59620200703WDWBUKWTS-2,8.83,CATERING - SCHOOLS-FOOD & DRINK SUPPLIES,CATERERS,GPC
WALSALL COUNCIL,HTTP://OPENDATACOMMUNITIES.ORG/ID/METROPOLITAN-DISTRICT-COUNCIL/WALSALL,30/09/2020,CHILDRENS SERVICES,AMZNMKTPLACE,02/07/2020,H59620200703WFYHXYTMY-1,8.60,PELSALL VILLAGE SCHOOL-OPERATIONAL MAINTENANCE,MISCELLANEOUS AND SPECIALTY RETAIL STORES,GPC
WALSALL COUNCIL,HTTP://OPENDATACOMMUNITIES.ORG/ID/METROPOLITAN-DISTRICT-COUNCIL/WALSALL,30/09/2020,CHILDRENS SERVICES,TVLICENSING.CO.UK,02/07/2020,H59620200703WHVQNYJTD-1,157.50,TRANSITION AND LEAVING CARE PL-FEES & LICENCES,"CONSULTING, MANAGEMENT, AND PR SERVICES",GPC
WALSALL COUNCIL,HTTP://OPENDATACOMMUNITIES.ORG/ID/METROPOLITAN-DISTRICT-COUNCIL/WALSALL,30/09/2020,RESOURCES & TRANSFORMATION,JOHAL DAIRIES LTD,02/07/2020,H59620200703WJSPHQKMR-1,4.70,CATERING - SCHOOLS-FOOD & DRINK SUPPLIES,OTHER NONDURABLE GOODS,GPC
WALSALL COUNCIL,HTTP://OPENDATACOMMUNITIES.ORG/ID/METROPOLITAN-DISTRICT-COUNCIL/WALSALL,30/09/2020,CHILDRENS SERVICES,AQUAID WATERCOOLERS,02/07/2020,H59620200703WTJVHUJHC-1,429.60,PELSALL EDC-FOOD & DRINK SUPPLIES,MISCELLANEOUS GENERAL MERCHANDISE,GPC
WALSALL COUNCIL,HTTP://OPENDATACOMMUNITIES.ORG/ID/METROPOLITAN-DISTRICT-COUNCIL/WALSALL,30/09/2020,CHILDRENS SERVICES - SCHOOLS,AMAZON.CO.UK*CI7UF8BY5,02/07/2020,H59620200703WVLBHRPZF-1,26.39,E19-MATERIALS,OTHER DIRECT MARKETING-OTHER DIRECT MARKETERS,GPC
WALSALL COUNCIL,HTTP://OPENDATACOMMUNITIES.ORG/ID/METROPOLITAN-DISTRICT-COUNCIL/WALSALL,30/09/2020,RESOURCES & TRANSFORMATION,JOHAL DAIRIES LTD,02/07/2020,H59620200703XCRXPWNBP-1,42.20,CATERING - SCHOOLS-FOOD & DRINK SUPPLIES,OTHER NONDURABLE GOODS,GPC
WALSALL COUNCIL,HTTP://OPENDATACOMMUNITIES.ORG/ID/METROPOLITAN-DISTRICT-COUNCIL/WALSALL,30/09/2020,RESOURCES & TRANSFORMATION,JOHAL DAIRIES LTD,02/07/2020,H59620200703XDGHTGZIZ-1,11.96,CATERING - SCHOOLS-FOOD & DRINK SUPPLIES,OTHER NONDURABLE GOODS,GPC
WALSALL COUNCIL,HTTP://OPENDATACOMMUNITIES.ORG/ID/METROPOLITAN-DISTRICT-COUNCIL/WALSALL,30/09/2020,CHILDRENS SERVICES,AMZNMKTPLACE,02/07/2020,H59620200703XFIEFPRRT-1,1.00,"43A HILTON ROAD, WILLENHALL-RESIDENTS PERSONAL EXPENSES-AL",MISCELLANEOUS AND SPECIALTY RETAIL STORES,GPC
WALSALL COUNCIL,HTTP://OPENDATACOMMUNITIES.ORG/ID/METROPOLITAN-DISTRICT-COUNCIL/WALSALL,30/09/2020,RESOURCES & TRANSFORMATION,WWW.SCC.COM,02/07/2020,H59620200703XRLPIHRHU-1,333.00,RECHARGEABLE EQUIPMENT-COMPUTER EQUIPMENT,"COMPUTERS, COMPUTER PERIPHERAL EQUIPMENT, SOFTWARE",GPC
WALSALL COUNCIL,HTTP://OPENDATACOMMUNITIES.ORG/ID/METROPOLITAN-DISTRICT-COUNCIL/WALSALL,30/09/2020,CHILDRENS SERVICES,PAYPAL *ETSY.COM,02/07/2020,H59620200703XVEFQDCAS-1,90.00,REWARDS-MATERIALS,MISCELLANEOUS ACCESSORY AND APPAREL STORES,GPC
WALSALL COUNCIL,HTTP://OPENDATACOMMUNITIES.ORG/ID/METROPOLITAN-DISTRICT-COUNCIL/WALSALL,30/09/2020,RESOURCES & TRANSFORMATION,JOHAL DAIRIES LTD,02/07/2020,H59620200703YCHFHDSSL-1,9.13,CATERING - SCHOOLS-FOOD & DRINK SUPPLIES,OTHER NONDURABLE GOODS,GPC
WALSALL COUNCIL,HTTP://OPENDATACOMMUNITIES.ORG/ID/METROPOLITAN-DISTRICT-COUNCIL/WALSALL,30/09/2020,RESOURCES & TRANSFORMATION,BLAKEMORE FOODSERVICE,02/07/2020,H59620200703YIWYGQEWV-1,103.08,CATERING - SCHOOLS-FOOD & DRINK SUPPLIES,CATERERS,GPC
WALSALL COUNCIL,HTTP://OPENDATACOMMUNITIES.ORG/ID/METROPOLITAN-DISTRICT-COUNCIL/WALSALL,30/09/2020,RESOURCES & TRANSFORMATION,BLAKEMORE FOODSERVICE,02/07/2020,H59620200703YIWYGQEWV-2,17.66,CATERING - SCHOOLS-FOOD & DRINK SUPPLIES,CATERERS,GPC
WALSALL COUNCIL,HTTP://OPENDATACOMMUNITIES.ORG/ID/METROPOLITAN-DISTRICT-COUNCIL/WALSALL,30/09/2020,CHILDRENS SERVICES,AMZNMKTPLACE,02/07/2020,H59620200703YKCPZNVWE-1,10.75,PELSALL VILLAGE SCHOOL-OPERATIONAL MAINTENANCE,MISCELLANEOUS AND SPECIALTY RETAIL STORES,GPC
WALSALL COUNCIL,HTTP://OPENDATACOMMUNITIES.ORG/ID/METROPOLITAN-DISTRICT-COUNCIL/WALSALL,30/09/2020,CHILDRENS SERVICES,AMZNMKTPLACE,02/07/2020,H59620200703YPHYEDSJE-1,13.92,STUDENT SUPPORT & MENTORING-MATERIALS,MISCELLANEOUS AND SPECIALTY RETAIL STORES,GPC
WALSALL COUNCIL,HTTP://OPENDATACOMMUNITIES.ORG/ID/METROPOLITAN-DISTRICT-COUNCIL/WALSALL,30/09/2020,CHILDRENS SERVICES,SPEEDY FREIGHT,02/07/2020,H59620200703YSWWFNWOS-1,60.00,SAFEGUARDING & FAMILY SUPPORT-PROFESSIONAL FEES & SERVICES,MOTOR FREIGHT CARRIERS,GPC
WALSALL COUNCIL,HTTP://OPENDATACOMMUNITIES.ORG/ID/METROPOLITAN-DISTRICT-COUNCIL/WALSALL,30/09/2020,RESOURCES & TRANSFORMATION,ARTHUR BRETT CATER,02/07/2020,H59620200703YYURVMPIL-1,75.99,CATERING - SCHOOLS-FOOD & DRINK SUPPLIES,MISCELLANEOUS FOOD STORES & CONVENIENCE STORES,GPC
WALSALL COUNCIL,HTTP://OPENDATACOMMUNITIES.ORG/ID/METROPOLITAN-DISTRICT-COUNCIL/WALSALL,30/09/2020,RESOURCES & TRANSFORMATION,ARTHUR BRETT CATER,02/07/2020,H59620200703ZPBTCIGJJ-1,28.24,CATERING - SCHOOLS-FOOD & DRINK SUPPLIES,MISCELLANEOUS FOOD STORES & CONVENIENCE STORES,GPC
WALSALL COUNCIL,HTTP://OPENDATACOMMUNITIES.ORG/ID/METROPOLITAN-DISTRICT-COUNCIL/WALSALL,30/09/2020,RESOURCES & TRANSFORMATION,ARTHUR BRETT CATER,02/07/2020,H59620200703ZTIFASSVC-1,92.16,CATERING - SCHOOLS-FOOD & DRINK SUPPLIES,MISCELLANEOUS FOOD STORES & CONVENIENCE STORES,GPC
WALSALL COUNCIL,HTTP://OPENDATACOMMUNITIES.ORG/ID/METROPOLITAN-DISTRICT-COUNCIL/WALSALL,30/09/2020,ECONOMY & ENVIRONMENT,PROSPEC LTD,02/07/2020,H59620200703ZWUZRMNMT-1,52.56,OAK PARK-MATERIALS,OFFICE AND COMMERCIAL FURNITURE,GPC
WALSALL COUNCIL,HTTP://OPENDATACOMMUNITIES.ORG/ID/METROPOLITAN-DISTRICT-COUNCIL/WALSALL,30/09/2020,CHILDRENS SERVICES,POST OFFICE COUNTER,03/07/2020,H59620200704BLURJGNEE-1,6.70,LOOKED AFTER CHILDRENS SOCIAL -POSTAGES & COURIER SERVICES,POSTAL SERVICES - GOVERNMENT ONLY,GPC
WALSALL COUNCIL,HTTP://OPENDATACOMMUNITIES.ORG/ID/METROPOLITAN-DISTRICT-COUNCIL/WALSALL,30/09/2020,CHILDRENS SERVICES,HOLLYBUSH GARDEN CENTR,03/07/2020,H59620200704BYUZCEHHQ-1,176.67,OUTDOOR RESOURCES-MATERIALS,"NURSERIES, LAWN AND GARDEN SUPPLY STORES",GPC
WALSALL COUNCIL,HTTP://OPENDATACOMMUNITIES.ORG/ID/METROPOLITAN-DISTRICT-COUNCIL/WALSALL,30/09/2020,CHILDRENS SERVICES - SCHOOLS,AMAZON.CO.UK*QI31U8HI5,03/07/2020,H59620200704CFGDYMETR-1,15.61,ICT LEARNING RESOURCES-MATERIALS,OTHER DIRECT MARKETING-OTHER DIRECT MARKETERS,GPC
WALSALL COUNCIL,HTTP://OPENDATACOMMUNITIES.ORG/ID/METROPOLITAN-DISTRICT-COUNCIL/WALSALL,30/09/2020,ECONOMY & ENVIRONMENT,AMZNMKTPLACE,03/07/2020,H59620200704CZQLBMECL-1,27.50,LIBRARY OPERATIONS CENTRAL-STATIONERY & GENERAL OFFICE SU,MISCELLANEOUS AND SPECIALTY RETAIL STORES,GPC
WALSALL COUNCIL,HTTP://OPENDATACOMMUNITIES.ORG/ID/METROPOLITAN-DISTRICT-COUNCIL/WALSALL,30/09/2020,RESOURCES & TRANSFORMATION,METRO INNS WALSALL,03/07/2020,H59620200704DKJPNAAKW-1,190.00,BED & BREAKFAST PAYMENTS-BED & BREAKFAST PAYMENTS,"HOTELS, MOTELS, RESORTS",GPC
WALSALL COUNCIL,HTTP://OPENDATACOMMUNITIES.ORG/ID/METROPOLITAN-DISTRICT-COUNCIL/WALSALL,30/09/2020,RESOURCES & TRANSFORMATION,NOBISCO LIMITED,03/07/2020,H59620200704DSQKDNXRD-1,-39.31,CATERING - SCHOOLS-FOOD & DRINK SUPPLIES,OTHER INDUSTRIAL SUPPLIES,GPC
WALSALL COUNCIL,HTTP://OPENDATACOMMUNITIES.ORG/ID/METROPOLITAN-DISTRICT-COUNCIL/WALSALL,30/09/2020,RESOURCES & TRANSFORMATION,METRO INNS WALSALL,03/07/2020,H59620200704ELTVKQVLH-1,266.00,BED & BREAKFAST PAYMENTS-HOTEL ACCOMMODATION-EMPLOYEES,"HOTELS, MOTELS, RESORTS",GPC
WALSALL COUNCIL,HTTP://OPENDATACOMMUNITIES.ORG/ID/METROPOLITAN-DISTRICT-COUNCIL/WALSALL,30/09/2020,CHILDRENS SERVICES - SCHOOLS,HOLE IN THE WALL,03/07/2020,H59620200704ERDPILKPY-1,68.95,E19-MATERIALS,"FURNITURE-REUPHOLSTERY AND REPAIR, REFINISHING",GPC
WALSALL COUNCIL,HTTP://OPENDATACOMMUNITIES.ORG/ID/METROPOLITAN-DISTRICT-COUNCIL/WALSALL,30/09/2020,RESOURCES & TRANSFORMATION,METRO INNS WALSALL,03/07/2020,H59620200704ETIEBRRJG-1,266.00,BED & BREAKFAST PAYMENTS-HOTEL ACCOMMODATION-EMPLOYEES,"HOTELS, MOTELS, RESORTS",GPC
WALSALL COUNCIL,HTTP://OPENDATACOMMUNITIES.ORG/ID/METROPOLITAN-DISTRICT-COUNCIL/WALSALL,30/09/2020,CHILDRENS SERVICES,AMZNMKTPLACE,03/07/2020,H59620200704FNCVLPECO-1,3.95,"43A HILTON ROAD, WILLENHALL-RESIDENTS PERSONAL EXPENSES-AL",MISCELLANEOUS AND SPECIALTY RETAIL STORES,GPC
WALSALL COUNCIL,HTTP://OPENDATACOMMUNITIES.ORG/ID/METROPOLITAN-DISTRICT-COUNCIL/WALSALL,30/09/2020,RESOURCES & TRANSFORMATION,TESCO STORES 4357,03/07/2020,H59620200704GFIUKTJPN-1,197.50,WALSALL CRISIS SUPPORT SCHEME-CRISIS SUPPORT PAYMENTS,GROCERY STORES AND SUPERMARKETS,GPC
WALSALL COUNCIL,HTTP://OPENDATACOMMUNITIES.ORG/ID/METROPOLITAN-DISTRICT-COUNCIL/WALSALL,30/09/2020,ADULT SOCIAL CARE,AMZNMKTPLACE,03/07/2020,H59620200704GQDNRYBAE-1,23.97,GOSCOTE-STATIONERY & GENERAL OFFICE SU,MISCELLANEOUS AND SPECIALTY RETAIL STORES,GPC
WALSALL COUNCIL,HTTP://OPENDATACOMMUNITIES.ORG/ID/METROPOLITAN-DISTRICT-COUNCIL/WALSALL,30/09/2020,RESOURCES & TRANSFORMATION,WALSALL COUNCIL,03/07/2020,H59620200704GSQNDSYUE-1,123.75,YOUNG PERSONS HOMELESS SERVICE-FEES & LICENCES,GOVERNMENT SERVICES,GPC
WALSALL COUNCIL,HTTP://OPENDATACOMMUNITIES.ORG/ID/METROPOLITAN-DISTRICT-COUNCIL/WALSALL,30/09/2020,CHILDRENS SERVICES,DVLA DRIVER ONLINE,03/07/2020,H59620200704GWPZDLUHJ-1,34.00,TRANSITION AND LEAVING CARE PL-FEES & LICENCES,GOVERNMENT SERVICES,GPC
WALSALL COUNCIL,HTTP://OPENDATACOMMUNITIES.ORG/ID/METROPOLITAN-DISTRICT-COUNCIL/WALSALL,30/09/2020,ECONOMY & ENVIRONMENT,AMZNMKTPLACE,03/07/2020,H59620200704HKBHJYLBH-1,44.60,OAK PARK-STATIONERY & GENERAL OFFICE SU,MISCELLANEOUS AND SPECIALTY RETAIL STORES,GPC
WALSALL COUNCIL,HTTP://OPENDATACOMMUNITIES.ORG/ID/METROPOLITAN-DISTRICT-COUNCIL/WALSALL,30/09/2020,CHILDRENS SERVICES,BORSHCH ELECTRICS,03/07/2020,H59620200704HNYCWIOIK-1,520.00,TRANSITION AND LEAVING CARE PL-CARE LEAVERS MTCE PAYMENTS,HOUSEHOLD APPLIANCE STORES,GPC
WALSALL COUNCIL,HTTP://OPENDATACOMMUNITIES.ORG/ID/METROPOLITAN-DISTRICT-COUNCIL/WALSALL,30/09/2020,CHILDRENS SERVICES,MIP*TESCO MOBILE TOPUP,03/07/2020,H59620200704IGCKHEKJF-1,20.00,POOL HAYES PRIMARY SCHOOL-STATIONERY & GENERAL OFFICE SU,TELECOMMUNICATION SERVICES,GPC
WALSALL COUNCIL,HTTP://OPENDATACOMMUNITIES.ORG/ID/METROPOLITAN-DISTRICT-COUNCIL/WALSALL,30/09/2020,ECONOMY & ENVIRONMENT,WWW.BANNERUK.COM,03/07/2020,H59620200704JGFTRDKIX-1,14.95,LIBRARY OPERATIONS CENTRAL-CLEANING MATERIALS,"STATIONERY, OFFICE SUPPLIES AND WRITING PAPER",GPC
WALSALL COUNCIL,HTTP://OPENDATACOMMUNITIES.ORG/ID/METROPOLITAN-DISTRICT-COUNCIL/WALSALL,30/09/2020,CHILDRENS SERVICES - SCHOOLS,IKEA LTD SHOP ONLINE,03/07/2020,H59620200704JKMHZBRTE-1,259.00,E19-PURCHASE OF FURNITURE & EQUIPM,"EQUIPMENT, FURNITURE, AND HOME FURNISHINGS STORES ",GPC
WALSALL COUNCIL,HTTP://OPENDATACOMMUNITIES.ORG/ID/METROPOLITAN-DISTRICT-COUNCIL/WALSALL,30/09/2020,ADULT SOCIAL CARE,AMZNMKTPLACE,03/07/2020,H59620200704KTOXJKNDF-1,18.87,GOSCOTE-STATIONERY & GENERAL OFFICE SU,MISCELLANEOUS AND SPECIALTY RETAIL STORES,GPC
WALSALL COUNCIL,HTTP://OPENDATACOMMUNITIES.ORG/ID/METROPOLITAN-DISTRICT-COUNCIL/WALSALL,30/09/2020,RESOURCES & TRANSFORMATION,METRO INNS WALSALL,03/07/2020,H59620200704MDMDLJNBC-1,266.00,BED & BREAKFAST PAYMENTS-HOTEL ACCOMMODATION-EMPLOYEES,"HOTELS, MOTELS, RESORTS",GPC
WALSALL COUNCIL,HTTP://OPENDATACOMMUNITIES.ORG/ID/METROPOLITAN-DISTRICT-COUNCIL/WALSALL,30/09/2020,RESOURCES & TRANSFORMATION,AMAZON.CO.UK*B85HR1W95,03/07/2020,H59620200704MNOSJFGYT-1,20.99,AREA PARTNERSHIPS-SUBSCRIPTIONS,OTHER DIRECT MARKETING-OTHER DIRECT MARKETERS,GPC
WALSALL COUNCIL,HTTP://OPENDATACOMMUNITIES.ORG/ID/METROPOLITAN-DISTRICT-COUNCIL/WALSALL,30/09/2020,RESOURCES & TRANSFORMATION,METRO INNS WALSALL,03/07/2020,H59620200704MWOCEYVNR-1,266.00,BED & BREAKFAST PAYMENTS-HOTEL ACCOMMODATION-EMPLOYEES,"HOTELS, MOTELS, RESORTS",GPC
WALSALL COUNCIL,HTTP://OPENDATACOMMUNITIES.ORG/ID/METROPOLITAN-DISTRICT-COUNCIL/WALSALL,30/09/2020,RESOURCES & TRANSFORMATION,TESCO STORES 4357,03/07/2020,H59620200704MYMRPGJIY-1,79.10,WALSALL CRISIS SUPPORT SCHEME-CRISIS SUPPORT PAYMENTS,GROCERY STORES AND SUPERMARKETS,GPC
WALSALL COUNCIL,HTTP://OPENDATACOMMUNITIES.ORG/ID/METROPOLITAN-DISTRICT-COUNCIL/WALSALL,30/09/2020,ECONOMY & ENVIRONMENT,SPORTSDIRECT.COM,03/07/2020,H59620200704NKWJKGRLU-1,104.89,BLOXWICH LEISURE CENTRE-PURCHASE OF FURNITURE & EQUIPM,SPORTING GOODS STORES,GPC
WALSALL COUNCIL,HTTP://OPENDATACOMMUNITIES.ORG/ID/METROPOLITAN-DISTRICT-COUNCIL/WALSALL,30/09/2020,CHILDRENS SERVICES,BAKER ROSS,03/07/2020,H59620200704OCNETKKUV-1,50.45,EARLY HELP HUB-MATERIALS,"ARTIST SUPPLY STORES, CRAFT SHOPS",GPC
WALSALL COUNCIL,HTTP://OPENDATACOMMUNITIES.ORG/ID/METROPOLITAN-DISTRICT-COUNCIL/WALSALL,30/09/2020,RESOURCES & TRANSFORMATION,WILKO RETAIL LIMITED,03/07/2020,H59620200704PKQTTSHDG-1,59.35,ROUGH SLEEPING INITIATIVE GRAN-CRISIS SUPPORT PAYMENTS,MISCELLANEOUS GENERAL MERCHANDISE,GPC
WALSALL COUNCIL,HTTP://OPENDATACOMMUNITIES.ORG/ID/METROPOLITAN-DISTRICT-COUNCIL/WALSALL,30/09/2020,CHILDRENS SERVICES,WWW.TOOLSTATION.COM,03/07/2020,H59620200704RBPBKWSUD-1,19.94,57 LICHFIELD ROAD-MATERIALS,HARDWARE STORES,GPC
WALSALL COUNCIL,HTTP://OPENDATACOMMUNITIES.ORG/ID/METROPOLITAN-DISTRICT-COUNCIL/WALSALL,30/09/2020,CHILDRENS SERVICES,TESCO ONLINE,03/07/2020,H59620200704RNHNCSRZD-1,34.99,SAFEGUARDING & FAMILY SUPPORT-SECTION 1/17CHILD CARE ACT 198,MISCELLANEOUS AND SPECIALTY RETAIL STORES,GPC
WALSALL COUNCIL,HTTP://OPENDATACOMMUNITIES.ORG/ID/METROPOLITAN-DISTRICT-COUNCIL/WALSALL,30/09/2020,CHILDRENS SERVICES,NSPCC,03/07/2020,H59620200704RUJIRLYYL-1,63.00,POOL HAYES PRIMARY SCHOOL-EXTERNAL TRAINING,OTHER SCHOOLS AND EDUCATIONAL SERVICES,GPC
WALSALL COUNCIL,HTTP://OPENDATACOMMUNITIES.ORG/ID/METROPOLITAN-DISTRICT-COUNCIL/WALSALL,30/09/2020,CHILDRENS SERVICES,POST OFFICE COUNTER,03/07/2020,H59620200704SHNCOXGVD-1,130.00,FAMILY PLACEMENTS-POSTAGES & COURIER SERVICES,POSTAL SERVICES - GOVERNMENT ONLY,GPC
WALSALL COUNCIL,HTTP://OPENDATACOMMUNITIES.ORG/ID/METROPOLITAN-DISTRICT-COUNCIL/WALSALL,30/09/2020,ADULT SOCIAL CARE,AMZNMKTPLACE,03/07/2020,H59620200704TNSUWIRHD-1,34.32,GOSCOTE-STATIONERY & GENERAL OFFICE SU,MISCELLANEOUS AND SPECIALTY RETAIL STORES,GPC
WALSALL COUNCIL,HTTP://OPENDATACOMMUNITIES.ORG/ID/METROPOLITAN-DISTRICT-COUNCIL/WALSALL,30/09/2020,CHILDRENS SERVICES,WALSALL COUNCIL,03/07/2020,H59620200704TTMTKSNNY-1,11.00,GENERAL MANAGEMENT SUPPORT (IN-FEES & LICENCES,GOVERNMENT SERVICES,GPC
WALSALL COUNCIL,HTTP://OPENDATACOMMUNITIES.ORG/ID/METROPOLITAN-DISTRICT-COUNCIL/WALSALL,30/09/2020,CHILDRENS SERVICES,WM MORRISONS STORE,03/07/2020,H59620200704UFZQJGTKR-1,2.00,ADOLESCENT SERVICE-FOOD & DRINK SUPPLIES,GROCERY STORES AND SUPERMARKETS,GPC
WALSALL COUNCIL,HTTP://OPENDATACOMMUNITIES.ORG/ID/METROPOLITAN-DISTRICT-COUNCIL/WALSALL,30/09/2020,CHILDRENS SERVICES,POST OFFICE COUNTER,03/07/2020,H59620200704UKMQXFWVF-1,35.20,VIRTUAL SCHOOL - CENTRAL PUPIL-POSTAGES & COURIER SERVICES,POSTAL SERVICES - GOVERNMENT ONLY,GPC
WALSALL COUNCIL,HTTP://OPENDATACOMMUNITIES.ORG/ID/METROPOLITAN-DISTRICT-COUNCIL/WALSALL,30/09/2020,RESOURCES & TRANSFORMATION,METRO INNS WALSALL,03/07/2020,H59620200704UUBTNVKSL-1,38.00,YOUNG PERSONS HOMELESS SERVICE-HOTEL ACCOMMODATION-EMPLOYEES,"HOTELS, MOTELS, RESORTS",GPC
WALSALL COUNCIL,HTTP://OPENDATACOMMUNITIES.ORG/ID/METROPOLITAN-DISTRICT-COUNCIL/WALSALL,30/09/2020,CHILDRENS SERVICES - SCHOOLS,WWW.POSTOFFICESHOP.CO.UK,03/07/2020,H59620200704UUHSRUQFA-1,132.99,PALFREY JUNIOR SCHOOL-STATIONERY & GENERAL OFFICE SU,"STATIONERY, OFFICE SUPPLIES AND WRITING PAPER",GPC
WALSALL COUNCIL,HTTP://OPENDATACOMMUNITIES.ORG/ID/METROPOLITAN-DISTRICT-COUNCIL/WALSALL,30/09/2020,CHILDRENS SERVICES,HI BIRMINGHAM M6 J,03/07/2020,H59620200704VBWTCJNLF-1,414.00,SAFEGUARDING & FAMILY SUPPORT-ACCOMMODATION AND RELATED COST,"HOTELS, MOTELS, RESORTS",GPC
WALSALL COUNCIL,HTTP://OPENDATACOMMUNITIES.ORG/ID/METROPOLITAN-DISTRICT-COUNCIL/WALSALL,30/09/2020,CHILDRENS SERVICES - SCHOOLS,XL DISPLAYS LTD,03/07/2020,H59620200704VHQTPIBTC-1,145.20,PALFREY JUNIOR SCHOOL-PLANNED MAINTENANCE,OTHER DURABLE GOODS,GPC
WALSALL COUNCIL,HTTP://OPENDATACOMMUNITIES.ORG/ID/METROPOLITAN-DISTRICT-COUNCIL/WALSALL,30/09/2020,CHILDRENS SERVICES,POST OFFICE COUNTER,03/07/2020,H59620200704VNMDYOFTC-1,4.90,FAMILY PLACEMENTS-POSTAGES & COURIER SERVICES,POSTAL SERVICES - GOVERNMENT ONLY,GPC
WALSALL COUNCIL,HTTP://OPENDATACOMMUNITIES.ORG/ID/METROPOLITAN-DISTRICT-COUNCIL/WALSALL,30/09/2020,ECONOMY & ENVIRONMENT,WWW.PHS.CO.UK,03/07/2020,H59620200704VNZQLSPMX-1,2246.96,WALSALL ARENA AND ARTS CENTRE-PROFESSIONAL FEES & SERVICES,OTHER BUSINESS SERVICES,GPC
WALSALL COUNCIL,HTTP://OPENDATACOMMUNITIES.ORG/ID/METROPOLITAN-DISTRICT-COUNCIL/WALSALL,30/09/2020,CHILDRENS SERVICES,ASDA STORES 4765,03/07/2020,H59620200704VSCQGUCTS-1,7.07,ADOLESCENT SERVICE-FOOD & DRINK SUPPLIES,GROCERY STORES AND SUPERMARKETS,GPC
WALSALL COUNCIL,HTTP://OPENDATACOMMUNITIES.ORG/ID/METROPOLITAN-DISTRICT-COUNCIL/WALSALL,30/09/2020,CHILDRENS SERVICES,ASDA STORES 4765,03/07/2020,H59620200704VSCQGUCTS-2,2.70,ADOLESCENT SERVICE-FOOD & DRINK SUPPLIES,GROCERY STORES AND SUPERMARKETS,GPC
WALSALL COUNCIL,HTTP://OPENDATACOMMUNITIES.ORG/ID/METROPOLITAN-DISTRICT-COUNCIL/WALSALL,30/09/2020,ECONOMY & ENVIRONMENT,B&M RETAIL LTD,03/07/2020,H59620200704VTOKYWDTQ-1,14.49,BLOXWICH LEISURE CENTRE-REPAIR & MAINTENANCE OF FURNIT,DISCOUNT STORES,GPC
WALSALL COUNCIL,HTTP://OPENDATACOMMUNITIES.ORG/ID/METROPOLITAN-DISTRICT-COUNCIL/WALSALL,30/09/2020,CHILDRENS SERVICES,GIFFGAFF,03/07/2020,H59620200704VYCVGGRVM-1,8.00,ADMINISTRATIVE SUPPLIES-LANDLINE PHONES,TELECOMMUNICATION SERVICES,GPC
WALSALL COUNCIL,HTTP://OPENDATACOMMUNITIES.ORG/ID/METROPOLITAN-DISTRICT-COUNCIL/WALSALL,30/09/2020,CHILDRENS SERVICES,B&M RETAIL,03/07/2020,H59620200704XIJRVQRRO-1,5.00,ADOLESCENT SERVICE-PURCHASE OF FURNITURE & EQUIPM,DISCOUNT STORES,GPC
WALSALL COUNCIL,HTTP://OPENDATACOMMUNITIES.ORG/ID/METROPOLITAN-DISTRICT-COUNCIL/WALSALL,30/09/2020,CHILDRENS SERVICES,TIMPSON LTD,03/07/2020,H59620200704XIWGEFLOZ-1,23.25,CONTACT SESSIONAL STAFF-STATIONERY & GENERAL OFFICE SU,MISCELLANEOUS AND SPECIALTY RETAIL STORES,GPC
WALSALL COUNCIL,HTTP://OPENDATACOMMUNITIES.ORG/ID/METROPOLITAN-DISTRICT-COUNCIL/WALSALL,30/09/2020,RESOURCES & TRANSFORMATION,METRO INNS WALSALL,03/07/2020,H59620200704XKYCXAQOW-1,190.00,BED & BREAKFAST PAYMENTS-BED & BREAKFAST PAYMENTS,"HOTELS, MOTELS, RESORTS",GPC
WALSALL COUNCIL,HTTP://OPENDATACOMMUNITIES.ORG/ID/METROPOLITAN-DISTRICT-COUNCIL/WALSALL,30/09/2020,CHILDRENS SERVICES,TVLICENSING.CO.UK,03/07/2020,H59620200704XNHHQLOOW-1,157.50,TRANSITION AND LEAVING CARE PL-PURCHASE OF FURNITURE & EQUIPM,"CONSULTING, MANAGEMENT, AND PR SERVICES",GPC
WALSALL COUNCIL,HTTP://OPENDATACOMMUNITIES.ORG/ID/METROPOLITAN-DISTRICT-COUNCIL/WALSALL,30/09/2020,RESOURCES & TRANSFORMATION,NOBISCO LIMITED,03/07/2020,H59620200704YEMPAUIVW-1,54.38,CATERING - SCHOOLS-FOOD & DRINK SUPPLIES,OTHER INDUSTRIAL SUPPLIES,GPC
WALSALL COUNCIL,HTTP://OPENDATACOMMUNITIES.ORG/ID/METROPOLITAN-DISTRICT-COUNCIL/WALSALL,30/09/2020,RESOURCES & TRANSFORMATION,METRO INNS WALSALL,03/07/2020,H59620200704YRHLMOBVD-1,266.00,BED & BREAKFAST PAYMENTS-BED & BREAKFAST PAYMENTS,"HOTELS, MOTELS, RESORTS",GPC
WALSALL COUNCIL,HTTP://OPENDATACOMMUNITIES.ORG/ID/METROPOLITAN-DISTRICT-COUNCIL/WALSALL,30/09/2020,ECONOMY & ENVIRONMENT,AMAZON.CO.UK*P26T901Y5,03/07/2020,H59620200704ZCSRDHMJS-1,33.98,DARLASTON LEISURE CENTRE-PURCHASE OF FURNITURE & EQUIPM,OTHER DIRECT MARKETING-OTHER DIRECT MARKETERS,GPC
WALSALL COUNCIL,HTTP://OPENDATACOMMUNITIES.ORG/ID/METROPOLITAN-DISTRICT-COUNCIL/WALSALL,30/09/2020,RESOURCES & TRANSFORMATION,METRO INNS WALSALL,03/07/2020,H59620200704ZNTWJUMNK-1,114.00,BED & BREAKFAST PAYMENTS-HOTEL ACCOMMODATION-EMPLOYEES,"HOTELS, MOTELS, RESORTS",GPC
WALSALL COUNCIL,HTTP://OPENDATACOMMUNITIES.ORG/ID/METROPOLITAN-DISTRICT-COUNCIL/WALSALL,30/09/2020,CHILDRENS SERVICES - SCHOOLS,AMAZON.CO.UK*603BO6C85,06/07/2020,H59620200707AOLVJVDAR-1,5.00,E19-MATERIALS,OTHER DIRECT MARKETING-OTHER DIRECT MARKETERS,GPC
WALSALL COUNCIL,HTTP://OPENDATACOMMUNITIES.ORG/ID/METROPOLITAN-DISTRICT-COUNCIL/WALSALL,30/09/2020,RESOURCES & TRANSFORMATION,METRO INNS WALSALL,06/07/2020,H59620200707ATCRXCJLF-1,38.00,BED & BREAKFAST PAYMENTS-HOTEL ACCOMMODATION-EMPLOYEES,"HOTELS, MOTELS, RESORTS",GPC
WALSALL COUNCIL,HTTP://OPENDATACOMMUNITIES.ORG/ID/METROPOLITAN-DISTRICT-COUNCIL/WALSALL,30/09/2020,CHILDRENS SERVICES,WWW.ANYVAN.COM,06/07/2020,H59620200707BKHSQJJHW-1,204.00,SUPPORT UNDER SECT 23 OF THE C-SUPPORT UNDER SECTION 23 OF TH,MOTOR FREIGHT CARRIERS,GPC
WALSALL COUNCIL,HTTP://OPENDATACOMMUNITIES.ORG/ID/METROPOLITAN-DISTRICT-COUNCIL/WALSALL,30/09/2020,CHILDRENS SERVICES,AMAZON.CO.UK*461648QI5,06/07/2020,H59620200707BPFHBVTPO-1,30.00,CONSUMABLES-MATERIALS,OTHER DIRECT MARKETING-OTHER DIRECT MARKETERS,GPC
WALSALL COUNCIL,HTTP://OPENDATACOMMUNITIES.ORG/ID/METROPOLITAN-DISTRICT-COUNCIL/WALSALL,30/09/2020,RESOURCES & TRANSFORMATION,METRO INNS WALSALL,06/07/2020,H59620200707CPIFPPSZX-1,380.00,ACCOMMODATION SERVICES MANAGEM-BED & BREAKFAST PAYMENTS,"HOTELS, MOTELS, RESORTS",GPC
WALSALL COUNCIL,HTTP://OPENDATACOMMUNITIES.ORG/ID/METROPOLITAN-DISTRICT-COUNCIL/WALSALL,30/09/2020,CHILDRENS SERVICES,AMAZON.CO.UK*GK5LM43I5 AM,06/07/2020,H59620200707DBMUPJJFY-1,26.97,LITERACY-LIBRARY BOOKS,MISCELLANEOUS AND SPECIALTY RETAIL STORES,GPC
WALSALL COUNCIL,HTTP://OPENDATACOMMUNITIES.ORG/ID/METROPOLITAN-DISTRICT-COUNCIL/WALSALL,30/09/2020,RESOURCES & TRANSFORMATION,WWW.SCC.COM,06/07/2020,H59620200707DMCJEYHSL-1,353.57,RECHARGEABLE EQUIPMENT-COMPUTER EQUIPMENT,"COMPUTERS, COMPUTER PERIPHERAL EQUIPMENT, SOFTWARE",GPC
WALSALL COUNCIL,HTTP://OPENDATACOMMUNITIES.ORG/ID/METROPOLITAN-DISTRICT-COUNCIL/WALSALL,30/09/2020,CHILDRENS SERVICES,HTTP://WWW.FORWARDPRODUC,06/07/2020,H59620200707DMLXVGSYM-1,483.54,CURRICULUM STOCK-MATERIALS,"STATIONERY, OFFICE SUPPLIES AND WRITING PAPER",GPC
WALSALL COUNCIL,HTTP://OPENDATACOMMUNITIES.ORG/ID/METROPOLITAN-DISTRICT-COUNCIL/WALSALL,30/09/2020,CHILDRENS SERVICES,AMZNMKTPLACE,06/07/2020,H59620200707DVTWAOYGK-1,18.00,LOCALITY FAMILY SUPPORT-WEST-STATIONERY & GENERAL OFFICE SU,MISCELLANEOUS AND SPECIALTY RETAIL STORES,GPC
WALSALL COUNCIL,HTTP://OPENDATACOMMUNITIES.ORG/ID/METROPOLITAN-DISTRICT-COUNCIL/WALSALL,30/09/2020,RESOURCES & TRANSFORMATION,HTTP://WEBEX.COM,06/07/2020,H59620200707EFTVFMLCJ-1,14.40,DATA CENTRES-COMPUTER EQUIPMENT,OTHER BUSINESS SERVICES,GPC
WALSALL COUNCIL,HTTP://OPENDATACOMMUNITIES.ORG/ID/METROPOLITAN-DISTRICT-COUNCIL/WALSALL,30/09/2020,ADULT SOCIAL CARE,WWW.BANNERUK.COM,06/07/2020,H59620200707EKAKWSDBD-1,139.16,GOSCOTE-STATIONERY & GENERAL OFFICE SU,"STATIONERY, OFFICE SUPPLIES AND WRITING PAPER",GPC
WALSALL COUNCIL,HTTP://OPENDATACOMMUNITIES.ORG/ID/METROPOLITAN-DISTRICT-COUNCIL/WALSALL,30/09/2020,ECONOMY & ENVIRONMENT,MBC BADGE COMPANY,06/07/2020,H59620200707ELBLTOGPQ-1,140.00,DARLASTON LEISURE CENTRE-MATERIALS,"CARD, GIFT, NOVELTY, AND SOUVENIR SHOPS",GPC
WALSALL COUNCIL,HTTP://OPENDATACOMMUNITIES.ORG/ID/METROPOLITAN-DISTRICT-COUNCIL/WALSALL,30/09/2020,ECONOMY & ENVIRONMENT,MBC BADGE COMPANY,06/07/2020,H59620200707ELBLTOGPQ-2,140.00,WALSALL GALA CENTRE-MATERIALS,"CARD, GIFT, NOVELTY, AND SOUVENIR SHOPS",GPC
WALSALL COUNCIL,HTTP://OPENDATACOMMUNITIES.ORG/ID/METROPOLITAN-DISTRICT-COUNCIL/WALSALL,30/09/2020,ECONOMY & ENVIRONMENT,MBC BADGE COMPANY,06/07/2020,H59620200707ELBLTOGPQ-3,214.00,OAK PARK-MATERIALS,"CARD, GIFT, NOVELTY, AND SOUVENIR SHOPS",GPC
WALSALL COUNCIL,HTTP://OPENDATACOMMUNITIES.ORG/ID/METROPOLITAN-DISTRICT-COUNCIL/WALSALL,30/09/2020,ECONOMY & ENVIRONMENT,MBC BADGE COMPANY,06/07/2020,H59620200707ELBLTOGPQ-4,214.00,BLOXWICH LEISURE CENTRE-MATERIALS,"CARD, GIFT, NOVELTY, AND SOUVENIR SHOPS",GPC
WALSALL COUNCIL,HTTP://OPENDATACOMMUNITIES.ORG/ID/METROPOLITAN-DISTRICT-COUNCIL/WALSALL,30/09/2020,CHILDRENS SERVICES,ESSO LEAMORE SERVICE STAT,06/07/2020,H59620200707FKZONCWFY-1,10.74,SPECIAL FACILITIES-MATERIALS,SERVICE STATIONS,GPC
WALSALL COUNCIL,HTTP://OPENDATACOMMUNITIES.ORG/ID/METROPOLITAN-DISTRICT-COUNCIL/WALSALL,30/09/2020,ADULT SOCIAL CARE,FAIRWAY DOG BOARDING KENN,06/07/2020,H59620200707FMLUZKIIU-1,176.00,SOCIAL SUPPORT-OTHER EXPENSES,OTHER SERVICES,GPC
WALSALL COUNCIL,HTTP://OPENDATACOMMUNITIES.ORG/ID/METROPOLITAN-DISTRICT-COUNCIL/WALSALL,30/09/2020,RESOURCES & TRANSFORMATION,FOREIGN EXCHANGE FEE,06/07/2020,H59620200707FNFQOJOPK-1,7.70,APPLICATIONS-COMPUTER EQUIPMENT,,GPC
WALSALL COUNCIL,HTTP://OPENDATACOMMUNITIES.ORG/ID/METROPOLITAN-DISTRICT-COUNCIL/WALSALL,30/09/2020,CHILDRENS SERVICES,HOME BARGAINS,06/07/2020,H59620200707FQZBWWWXK-1,23.45,SPECIAL FACILITIES-MATERIALS,HARDWARE STORES,GPC
WALSALL COUNCIL,HTTP://OPENDATACOMMUNITIES.ORG/ID/METROPOLITAN-DISTRICT-COUNCIL/WALSALL,30/09/2020,RESOURCES & TRANSFORMATION,METRO INNS WALSALL,06/07/2020,H59620200707HTRWHSICL-1,380.00,BED & BREAKFAST PAYMENTS-BED & BREAKFAST PAYMENTS,"HOTELS, MOTELS, RESORTS",GPC
WALSALL COUNCIL,HTTP://OPENDATACOMMUNITIES.ORG/ID/METROPOLITAN-DISTRICT-COUNCIL/WALSALL,30/09/2020,CHILDRENS SERVICES,AMZNMKTPLACE,06/07/2020,H59620200707IGYWUNKLL-1,13.90,CONTACT SESSIONAL STAFF-STATIONERY & GENERAL OFFICE SU,MISCELLANEOUS AND SPECIALTY RETAIL STORES,GPC
WALSALL COUNCIL,HTTP://OPENDATACOMMUNITIES.ORG/ID/METROPOLITAN-DISTRICT-COUNCIL/WALSALL,30/09/2020,ADULT SOCIAL CARE,ARGOS LTD,06/07/2020,H59620200707IMDAQSXJF-1,50.00,"STRATEGY, COMMISSIONING, AND D-PURCHASE OF FURNITURE & EQUIPM",DISCOUNT STORES,GPC
WALSALL COUNCIL,HTTP://OPENDATACOMMUNITIES.ORG/ID/METROPOLITAN-DISTRICT-COUNCIL/WALSALL,30/09/2020,ADULT SOCIAL CARE,FARMFOODS 607,06/07/2020,H59620200707JBCSNIOKK-1,14.78,ASC PARTNERSHIPS-FOOD & DRINK SUPPLIES,GROCERY STORES AND SUPERMARKETS,GPC
WALSALL COUNCIL,HTTP://OPENDATACOMMUNITIES.ORG/ID/METROPOLITAN-DISTRICT-COUNCIL/WALSALL,30/09/2020,CHILDRENS SERVICES,ALDI 42 772,06/07/2020,H59620200707JBJMPUVID-1,2.88,REDRUTH ROAD-FOOD & DRINK SUPPLIES,GROCERY STORES AND SUPERMARKETS,GPC
WALSALL COUNCIL,HTTP://OPENDATACOMMUNITIES.ORG/ID/METROPOLITAN-DISTRICT-COUNCIL/WALSALL,30/09/2020,CHILDRENS SERVICES,ALDI 42 772,06/07/2020,H59620200707JBJMPUVID-2,41.56,REDRUTH ROAD-FOOD & DRINK SUPPLIES,GROCERY STORES AND SUPERMARKETS,GPC
WALSALL COUNCIL,HTTP://OPENDATACOMMUNITIES.ORG/ID/METROPOLITAN-DISTRICT-COUNCIL/WALSALL,30/09/2020,CHILDRENS SERVICES - SCHOOLS,SP * BOOKS4PEOPLE,06/07/2020,H59620200707KKTMOLYMJ-1,64.96,E19-MATERIALS,COMPUTER SOFTWARE STORES,GPC
WALSALL COUNCIL,HTTP://OPENDATACOMMUNITIES.ORG/ID/METROPOLITAN-DISTRICT-COUNCIL/WALSALL,30/09/2020,CHILDRENS SERVICES,HARTCO SERVICED APARTME,06/07/2020,H59620200707KNNYJPRWF-1,500.00,EARLY YEARS AND DISABILITIES S-SECTION 1/17CHILD CARE ACT 198,"HOTELS, MOTELS, RESORTS",GPC
WALSALL COUNCIL,HTTP://OPENDATACOMMUNITIES.ORG/ID/METROPOLITAN-DISTRICT-COUNCIL/WALSALL,30/09/2020,CHILDRENS SERVICES,AMZNMKTPLACE,06/07/2020,H59620200707KXXILRWXD-1,17.94,LOCALITY FAMILY SUPPORT-WEST-STATIONERY & GENERAL OFFICE SU,MISCELLANEOUS AND SPECIALTY RETAIL STORES,GPC
WALSALL COUNCIL,HTTP://OPENDATACOMMUNITIES.ORG/ID/METROPOLITAN-DISTRICT-COUNCIL/WALSALL,30/09/2020,CHILDRENS SERVICES,BINLINERSDIRECT.CO,06/07/2020,H59620200707LNZFGKOTI-1,63.55,MEADOW VIEW JMI PRIMARY SCHOOL-MATERIALS,HARDWARE EQUIPMENT AND SUPPLIES,GPC
WALSALL COUNCIL,HTTP://OPENDATACOMMUNITIES.ORG/ID/METROPOLITAN-DISTRICT-COUNCIL/WALSALL,30/09/2020,RESOURCES & TRANSFORMATION,ASDA,06/07/2020,H59620200707MRDPRALNK-1,79.86,WALSALL CRISIS SUPPORT SCHEME-CRISIS SUPPORT PAYMENTS,GROCERY STORES AND SUPERMARKETS,GPC
WALSALL COUNCIL,HTTP://OPENDATACOMMUNITIES.ORG/ID/METROPOLITAN-DISTRICT-COUNCIL/WALSALL,30/09/2020,CHILDRENS SERVICES,GEN REGISTER OFFICE,06/07/2020,H59620200707MYBXCJQTM-1,-7.50,SAFEGUARDING & FAMILY SUPPORT-FEES & LICENCES,GOVERNMENT SERVICES,GPC
WALSALL COUNCIL,HTTP://OPENDATACOMMUNITIES.ORG/ID/METROPOLITAN-DISTRICT-COUNCIL/WALSALL,30/09/2020,CHILDRENS SERVICES,HTTP://WWW.FORWARDPRODUC,06/07/2020,H59620200707NNVXULEKY-1,784.52,CURRICULUM STOCK-MATERIALS,"STATIONERY, OFFICE SUPPLIES AND WRITING PAPER",GPC
WALSALL COUNCIL,HTTP://OPENDATACOMMUNITIES.ORG/ID/METROPOLITAN-DISTRICT-COUNCIL/WALSALL,30/09/2020,CHILDRENS SERVICES - SCHOOLS,DWELL,06/07/2020,H59620200707ODRSZXKES-1,198.99,E19-PURCHASE OF FURNITURE & EQUIPM,"EQUIPMENT, FURNITURE, AND HOME FURNISHINGS STORES ",GPC
WALSALL COUNCIL,HTTP://OPENDATACOMMUNITIES.ORG/ID/METROPOLITAN-DISTRICT-COUNCIL/WALSALL,30/09/2020,RESOURCES & TRANSFORMATION,METRO INNS WALSALL,06/07/2020,H59620200707OLBNHGSBH-1,76.00,BED & BREAKFAST PAYMENTS-HOTEL ACCOMMODATION-EMPLOYEES,"HOTELS, MOTELS, RESORTS",GPC
WALSALL COUNCIL,HTTP://OPENDATACOMMUNITIES.ORG/ID/METROPOLITAN-DISTRICT-COUNCIL/WALSALL,30/09/2020,CHILDRENS SERVICES,AMZNMKTPLACE,06/07/2020,H59620200707OWCMBCZPN-1,47.06,SPECIAL FACILITIES -  BEFORE/A-MATERIALS,MISCELLANEOUS AND SPECIALTY RETAIL STORES,GPC
WALSALL COUNCIL,HTTP://OPENDATACOMMUNITIES.ORG/ID/METROPOLITAN-DISTRICT-COUNCIL/WALSALL,30/09/2020,CHILDRENS SERVICES,AMZNMKTPLACE,06/07/2020,H59620200707PFIFNLEOW-1,23.98,CONSUMABLES-MATERIALS,MISCELLANEOUS AND SPECIALTY RETAIL STORES,GPC
WALSALL COUNCIL,HTTP://OPENDATACOMMUNITIES.ORG/ID/METROPOLITAN-DISTRICT-COUNCIL/WALSALL,30/09/2020,ECONOMY & ENVIRONMENT,WLY*COMPLETESAVE.CO.UK,06/07/2020,H59620200707PLZEVMLWU-1,-15.00,NEW ART GALLERY - ADMIN-SUBSCRIPTIONS,DIRECT MARKETING CONTINUITY SUBSCRIPTION MERCHANTS,GPC
WALSALL COUNCIL,HTTP://OPENDATACOMMUNITIES.ORG/ID/METROPOLITAN-DISTRICT-COUNCIL/WALSALL,30/09/2020,RESOURCES & TRANSFORMATION,WWW.SCC.COM,06/07/2020,H59620200707QHXRKKPQZ-1,173.19,RECHARGEABLE EQUIPMENT-COMPUTER EQUIPMENT,"COMPUTERS, COMPUTER PERIPHERAL EQUIPMENT, SOFTWARE",GPC
WALSALL COUNCIL,HTTP://OPENDATACOMMUNITIES.ORG/ID/METROPOLITAN-DISTRICT-COUNCIL/WALSALL,30/09/2020,ECONOMY & ENVIRONMENT,AMZNMKTPLACE,06/07/2020,H59620200707QRQLHOQIE-1,27.00,STRUCTURES & GEOTECHNICS-CLOTHING & LAUNDRY,MISCELLANEOUS AND SPECIALTY RETAIL STORES,GPC
WALSALL COUNCIL,HTTP://OPENDATACOMMUNITIES.ORG/ID/METROPOLITAN-DISTRICT-COUNCIL/WALSALL,30/09/2020,ECONOMY & ENVIRONMENT,AMZNMKTPLACE,06/07/2020,H59620200707QRQLHOQIE-2,54.80,STRUCTURES & GEOTECHNICS-CLOTHING & LAUNDRY,MISCELLANEOUS AND SPECIALTY RETAIL STORES,GPC
WALSALL COUNCIL,HTTP://OPENDATACOMMUNITIES.ORG/ID/METROPOLITAN-DISTRICT-COUNCIL/WALSALL,30/09/2020,ECONOMY & ENVIRONMENT,AMZNMKTPLACE,06/07/2020,H59620200707QRQLHOQIE-3,215.91,STRUCTURES & GEOTECHNICS-CLOTHING & LAUNDRY,MISCELLANEOUS AND SPECIALTY RETAIL STORES,GPC
WALSALL COUNCIL,HTTP://OPENDATACOMMUNITIES.ORG/ID/METROPOLITAN-DISTRICT-COUNCIL/WALSALL,30/09/2020,ECONOMY & ENVIRONMENT,AMZNMKTPLACE,06/07/2020,H59620200707QRQLHOQIE-4,59.30,STRUCTURES & GEOTECHNICS-CLOTHING & LAUNDRY,MISCELLANEOUS AND SPECIALTY RETAIL STORES,GPC
WALSALL COUNCIL,HTTP://OPENDATACOMMUNITIES.ORG/ID/METROPOLITAN-DISTRICT-COUNCIL/WALSALL,30/09/2020,CHILDRENS SERVICES,AMZNMKTPLACE,06/07/2020,H59620200707QRYWMRAHU-1,131.94,ICT LEARNING RESOURCES-PURCHASE OF FURNITURE & EQUIPM,MISCELLANEOUS AND SPECIALTY RETAIL STORES,GPC
WALSALL COUNCIL,HTTP://OPENDATACOMMUNITIES.ORG/ID/METROPOLITAN-DISTRICT-COUNCIL/WALSALL,30/09/2020,RESOURCES & TRANSFORMATION,METRO INNS WALSALL,06/07/2020,H59620200707QVTTEWKER-1,152.00,BED & BREAKFAST PAYMENTS-BED & BREAKFAST PAYMENTS,"HOTELS, MOTELS, RESORTS",GPC
WALSALL COUNCIL,HTTP://OPENDATACOMMUNITIES.ORG/ID/METROPOLITAN-DISTRICT-COUNCIL/WALSALL,30/09/2020,CHILDRENS SERVICES,WWW.TTS-GROUPS.CO.UK,06/07/2020,H59620200707SCBRMPMAL-1,35.94,CURRICULUM STOCK-MATERIALS,"OFFICE, SCHOOL SUPPLY, AND STATIONERY STORES",GPC
WALSALL COUNCIL,HTTP://OPENDATACOMMUNITIES.ORG/ID/METROPOLITAN-DISTRICT-COUNCIL/WALSALL,30/09/2020,CHILDRENS SERVICES,AMZNMKTPLACE,06/07/2020,H59620200707TNASPKFRM-1,3.47,LOCALITY FAMILY SUPPORT-WEST-STATIONERY & GENERAL OFFICE SU,MISCELLANEOUS AND SPECIALTY RETAIL STORES,GPC
WALSALL COUNCIL,HTTP://OPENDATACOMMUNITIES.ORG/ID/METROPOLITAN-DISTRICT-COUNCIL/WALSALL,30/09/2020,CHILDRENS SERVICES - SCHOOLS,AMAZON.CO.UK*9B15S5YW5 AM,06/07/2020,H59620200707TQGVFCUDV-1,9.34,ADMINISTRATIVE SUPPLIES-MATERIALS,MISCELLANEOUS AND SPECIALTY RETAIL STORES,GPC
WALSALL COUNCIL,HTTP://OPENDATACOMMUNITIES.ORG/ID/METROPOLITAN-DISTRICT-COUNCIL/WALSALL,30/09/2020,CHILDRENS SERVICES,POUNDLAND,06/07/2020,H59620200707TVLNMVEMQ-1,1.50,TARGETED YOUTH WORK-EXTERNALLY FUNDED COMMISSION P,DISCOUNT STORES,GPC
WALSALL COUNCIL,HTTP://OPENDATACOMMUNITIES.ORG/ID/METROPOLITAN-DISTRICT-COUNCIL/WALSALL,30/09/2020,RESOURCES & TRANSFORMATION,WALSALL COUNCIL,06/07/2020,H59620200707TWMUGGUTK-1,22.50,ACCOMMODATION SERVICES MANAGEM-FEES & LICENCES,GOVERNMENT SERVICES,GPC
WALSALL COUNCIL,HTTP://OPENDATACOMMUNITIES.ORG/ID/METROPOLITAN-DISTRICT-COUNCIL/WALSALL,30/09/2020,CHILDRENS SERVICES,LCN.COM LTD,06/07/2020,H59620200707UEBKELHFI-1,7.14,ICT LEARNING RESOURCES-LICENCES FOR EQUIPMENT,"CONSULTING, MANAGEMENT, AND PR SERVICES",GPC
WALSALL COUNCIL,HTTP://OPENDATACOMMUNITIES.ORG/ID/METROPOLITAN-DISTRICT-COUNCIL/WALSALL,30/09/2020,CHILDRENS SERVICES,WM MORRISONS STORE,06/07/2020,H59620200707ULKOBLUGM-1,32.50,WATLING STREET PRIMARY SCHOOL-FOOD & DRINK SUPPLIES,GROCERY STORES AND SUPERMARKETS,GPC
WALSALL COUNCIL,HTTP://OPENDATACOMMUNITIES.ORG/ID/METROPOLITAN-DISTRICT-COUNCIL/WALSALL,30/09/2020,RESOURCES & TRANSFORMATION,WP ENGINE,06/07/2020,H59620200707UWWGSDHOR-1,279.83,APPLICATIONS-COMPUTER EQUIPMENT,"COMPUTER PROGRAM, SYSTEM DESIGN",GPC
WALSALL COUNCIL,HTTP://OPENDATACOMMUNITIES.ORG/ID/METROPOLITAN-DISTRICT-COUNCIL/WALSALL,30/09/2020,CHILDRENS SERVICES,TESCO STORE 3351,06/07/2020,H59620200707UYZTWCSTB-1,10.40,SPECIAL FACILITIES-MATERIALS,GROCERY STORES AND SUPERMARKETS,GPC
WALSALL COUNCIL,HTTP://OPENDATACOMMUNITIES.ORG/ID/METROPOLITAN-DISTRICT-COUNCIL/WALSALL,30/09/2020,CHILDRENS SERVICES,AMAZON.CO.UK*ZI5YZ9GD5,06/07/2020,H59620200707VXLXSYCAU-1,79.95,BIRCHILLS CHILDCARE SERVICES-CLEANING MATERIALS,OTHER DIRECT MARKETING-OTHER DIRECT MARKETERS,GPC
WALSALL COUNCIL,HTTP://OPENDATACOMMUNITIES.ORG/ID/METROPOLITAN-DISTRICT-COUNCIL/WALSALL,30/09/2020,CHILDRENS SERVICES,AMAZON.CO.UK*1Y7DJ5RB5 AM,06/07/2020,H59620200707WGUTQUPVL-1,36.00,SEND-LIBRARY BOOKS,MISCELLANEOUS AND SPECIALTY RETAIL STORES,GPC
WALSALL COUNCIL,HTTP://OPENDATACOMMUNITIES.ORG/ID/METROPOLITAN-DISTRICT-COUNCIL/WALSALL,30/09/2020,CHILDRENS SERVICES,AMAZON.CO.UK*1Y7DJ5RB5 AM,06/07/2020,H59620200707WGUTQUPVL-2,44.97,SEND-LIBRARY BOOKS,MISCELLANEOUS AND SPECIALTY RETAIL STORES,GPC
WALSALL COUNCIL,HTTP://OPENDATACOMMUNITIES.ORG/ID/METROPOLITAN-DISTRICT-COUNCIL/WALSALL,30/09/2020,CHILDRENS SERVICES,AMAZON.CO.UK*1Y7DJ5RB5 AM,06/07/2020,H59620200707WGUTQUPVL-3,4.99,LITERACY-LIBRARY BOOKS,MISCELLANEOUS AND SPECIALTY RETAIL STORES,GPC
WALSALL COUNCIL,HTTP://OPENDATACOMMUNITIES.ORG/ID/METROPOLITAN-DISTRICT-COUNCIL/WALSALL,30/09/2020,CHILDRENS SERVICES,TESCO STORES 6161,06/07/2020,H59620200707WMNXDHXBO-1,0.20,BIRCHILLS CHILDCARE SERVICES-FOOD & DRINK SUPPLIES,GROCERY STORES AND SUPERMARKETS,GPC
WALSALL COUNCIL,HTTP://OPENDATACOMMUNITIES.ORG/ID/METROPOLITAN-DISTRICT-COUNCIL/WALSALL,30/09/2020,CHILDRENS SERVICES,TESCO STORES 6161,06/07/2020,H59620200707WMNXDHXBO-2,12.55,BIRCHILLS CHILDCARE SERVICES-FOOD & DRINK SUPPLIES,GROCERY STORES AND SUPERMARKETS,GPC
WALSALL COUNCIL,HTTP://OPENDATACOMMUNITIES.ORG/ID/METROPOLITAN-DISTRICT-COUNCIL/WALSALL,30/09/2020,CHILDRENS SERVICES,FARMFOODS 612,06/07/2020,H59620200707XBTJLDDIA-1,11.00,REDRUTH ROAD-FOOD & DRINK SUPPLIES,GROCERY STORES AND SUPERMARKETS,GPC
WALSALL COUNCIL,HTTP://OPENDATACOMMUNITIES.ORG/ID/METROPOLITAN-DISTRICT-COUNCIL/WALSALL,30/09/2020,RESOURCES & TRANSFORMATION,CO-OPERATIVE FOOD,06/07/2020,H59620200707XSMDFBBEZ-1,15.00,WALSALL CRISIS SUPPORT SCHEME-CRISIS SUPPORT PAYMENTS,GROCERY STORES AND SUPERMARKETS,GPC
WALSALL COUNCIL,HTTP://OPENDATACOMMUNITIES.ORG/ID/METROPOLITAN-DISTRICT-COUNCIL/WALSALL,30/09/2020,CHILDRENS SERVICES,AMZNMKTPLACE,06/07/2020,H59620200707YMIXTQDYO-1,31.99,CONTACT SESSIONAL STAFF-STATIONERY & GENERAL OFFICE SU,MISCELLANEOUS AND SPECIALTY RETAIL STORES,GPC
WALSALL COUNCIL,HTTP://OPENDATACOMMUNITIES.ORG/ID/METROPOLITAN-DISTRICT-COUNCIL/WALSALL,30/09/2020,CHILDRENS SERVICES,PAYPAL *OFFICEDEPOT,06/07/2020,H59620200707YYERVVNUL-1,14.27,ADMINISTRATIVE SUPPLIES-MATERIALS,OTHER BUSINESS SERVICES,GPC
WALSALL COUNCIL,HTTP://OPENDATACOMMUNITIES.ORG/ID/METROPOLITAN-DISTRICT-COUNCIL/WALSALL,30/09/2020,RESOURCES & TRANSFORMATION,BLAKEMORE FOODSERVICE,07/07/2020,H59620200708AIEQNMGVB-1,457.29,CATERING - SCHOOLS-FOOD & DRINK SUPPLIES,CATERERS,GPC
WALSALL COUNCIL,HTTP://OPENDATACOMMUNITIES.ORG/ID/METROPOLITAN-DISTRICT-COUNCIL/WALSALL,30/09/2020,RESOURCES & TRANSFORMATION,BLAKEMORE FOODSERVICE,07/07/2020,H59620200708AIEQNMGVB-2,8.83,CATERING - SCHOOLS-FOOD & DRINK SUPPLIES,CATERERS,GPC
WALSALL COUNCIL,HTTP://OPENDATACOMMUNITIES.ORG/ID/METROPOLITAN-DISTRICT-COUNCIL/WALSALL,30/09/2020,RESOURCES & TRANSFORMATION,CURRYS S/S,07/07/2020,H59620200708ARJTBNJTA-1,710.00,YOUNG PERSONS HOMELESS SERVICE-COMPUTER EQUIPMENT,ELECTRONIC SALES,GPC
WALSALL COUNCIL,HTTP://OPENDATACOMMUNITIES.ORG/ID/METROPOLITAN-DISTRICT-COUNCIL/WALSALL,30/09/2020,CHILDRENS SERVICES,NISA LOCAL,07/07/2020,H59620200708AWCFYQIIB-1,5.73,REDRUTH ROAD-FOOD & DRINK SUPPLIES,MISCELLANEOUS FOOD STORES & CONVENIENCE STORES,GPC
WALSALL COUNCIL,HTTP://OPENDATACOMMUNITIES.ORG/ID/METROPOLITAN-DISTRICT-COUNCIL/WALSALL,30/09/2020,CHILDRENS SERVICES - SCHOOLS,AMAZON.CO.UK*8L2DZ9FI5,07/07/2020,H59620200708AXKPXBMQP-1,9.00,E19-MATERIALS,OTHER DIRECT MARKETING-OTHER DIRECT MARKETERS,GPC
WALSALL COUNCIL,HTTP://OPENDATACOMMUNITIES.ORG/ID/METROPOLITAN-DISTRICT-COUNCIL/WALSALL,30/09/2020,CHILDRENS SERVICES - SCHOOLS,AMAZON.CO.UK*8L2DZ9FI5,07/07/2020,H59620200708AXKPXBMQP-2,40.74,E19-LIBRARY BOOKS,OTHER DIRECT MARKETING-OTHER DIRECT MARKETERS,GPC
WALSALL COUNCIL,HTTP://OPENDATACOMMUNITIES.ORG/ID/METROPOLITAN-DISTRICT-COUNCIL/WALSALL,30/09/2020,CHILDRENS SERVICES - SCHOOLS,AMAZON.CO.UK*8L2DZ9FI5,07/07/2020,H59620200708AXKPXBMQP-3,12.36,E19-LIBRARY BOOKS,OTHER DIRECT MARKETING-OTHER DIRECT MARKETERS,GPC
WALSALL COUNCIL,HTTP://OPENDATACOMMUNITIES.ORG/ID/METROPOLITAN-DISTRICT-COUNCIL/WALSALL,30/09/2020,CHILDRENS SERVICES,WWW.SANDWELL.GOV.UK,07/07/2020,H59620200708BGCMPUWSY-1,11.00,LOOKED AFTER CHILDRENS SOCIAL -FEES & LICENCES,GOVERNMENT SERVICES,GPC
WALSALL COUNCIL,HTTP://OPENDATACOMMUNITIES.ORG/ID/METROPOLITAN-DISTRICT-COUNCIL/WALSALL,30/09/2020,CHILDRENS SERVICES,POST OFFICE COUNTER,07/07/2020,H59620200708BPXMNCREJ-1,6.70,LOOKED AFTER CHILDRENS SOCIAL -POSTAGES & COURIER SERVICES,POSTAL SERVICES - GOVERNMENT ONLY,GPC
WALSALL COUNCIL,HTTP://OPENDATACOMMUNITIES.ORG/ID/METROPOLITAN-DISTRICT-COUNCIL/WALSALL,30/09/2020,CHILDRENS SERVICES,WWW.TTS-GROUPS.CO.UK,07/07/2020,H59620200708BRHQBBNZQ-1,59.94,MATHEMATICS DEPARTMENT-STATIONERY & GENERAL OFFICE SU,"OFFICE, SCHOOL SUPPLY, AND STATIONERY STORES",GPC
WALSALL COUNCIL,HTTP://OPENDATACOMMUNITIES.ORG/ID/METROPOLITAN-DISTRICT-COUNCIL/WALSALL,30/09/2020,ECONOMY & ENVIRONMENT,WWW.TOOLSTATION.COM,07/07/2020,H59620200708CDCHCJGHA-1,129.80,DEPOT-MATERIALS,HARDWARE STORES,GPC
WALSALL COUNCIL,HTTP://OPENDATACOMMUNITIES.ORG/ID/METROPOLITAN-DISTRICT-COUNCIL/WALSALL,30/09/2020,CHILDRENS SERVICES,FINDEL EDUCATION,07/07/2020,H59620200708CDHJKVRIE-1,440.58,MATHEMATICS DEPARTMENT-MATERIALS,OTHER DIRECT MARKETING-OTHER DIRECT MARKETERS,GPC
WALSALL COUNCIL,HTTP://OPENDATACOMMUNITIES.ORG/ID/METROPOLITAN-DISTRICT-COUNCIL/WALSALL,30/09/2020,CHILDRENS SERVICES,POST OFFICE COUNTER,07/07/2020,H59620200708CJOCVLPOL-1,36.90,FAMILY PLACEMENTS-POSTAGES & COURIER SERVICES,POSTAL SERVICES - GOVERNMENT ONLY,GPC
WALSALL COUNCIL,HTTP://OPENDATACOMMUNITIES.ORG/ID/METROPOLITAN-DISTRICT-COUNCIL/WALSALL,30/09/2020,CHILDRENS SERVICES,CO-OPERATIVE FOOD,07/07/2020,H59620200708CTCYQMAXH-1,21.47,FOOD TECHNOLOGY-MATERIALS,GROCERY STORES AND SUPERMARKETS,GPC
WALSALL COUNCIL,HTTP://OPENDATACOMMUNITIES.ORG/ID/METROPOLITAN-DISTRICT-COUNCIL/WALSALL,30/09/2020,CHILDRENS SERVICES - SCHOOLS,IKEA LTD SHOP ONLINE,07/07/2020,H59620200708DNBYVQKII-1,249.00,E19-PURCHASE OF FURNITURE & EQUIPM,"EQUIPMENT, FURNITURE, AND HOME FURNISHINGS STORES ",GPC
WALSALL COUNCIL,HTTP://OPENDATACOMMUNITIES.ORG/ID/METROPOLITAN-DISTRICT-COUNCIL/WALSALL,30/09/2020,CHILDRENS SERVICES - SCHOOLS,AMAZON.CO.UK*783MN4AK5 AM,07/07/2020,H59620200708EBTQNHTRO-1,9.98,E19-MATERIALS,MISCELLANEOUS AND SPECIALTY RETAIL STORES,GPC
WALSALL COUNCIL,HTTP://OPENDATACOMMUNITIES.ORG/ID/METROPOLITAN-DISTRICT-COUNCIL/WALSALL,30/09/2020,RESOURCES & TRANSFORMATION,METRO INNS WALSALL,07/07/2020,H59620200708FDFPFTQBV-1,38.00,BED & BREAKFAST PAYMENTS-BED & BREAKFAST PAYMENTS,"HOTELS, MOTELS, RESORTS",GPC
WALSALL COUNCIL,HTTP://OPENDATACOMMUNITIES.ORG/ID/METROPOLITAN-DISTRICT-COUNCIL/WALSALL,30/09/2020,CHILDRENS SERVICES,ALDI 42 772,07/07/2020,H59620200708FPVCFUSOJ-1,7.74,REDRUTH ROAD-FOOD & DRINK SUPPLIES,GROCERY STORES AND SUPERMARKETS,GPC
WALSALL COUNCIL,HTTP://OPENDATACOMMUNITIES.ORG/ID/METROPOLITAN-DISTRICT-COUNCIL/WALSALL,30/09/2020,CHILDRENS SERVICES,ALDI 42 772,07/07/2020,H59620200708FPVCFUSOJ-2,93.84,REDRUTH ROAD-FOOD & DRINK SUPPLIES,GROCERY STORES AND SUPERMARKETS,GPC
WALSALL COUNCIL,HTTP://OPENDATACOMMUNITIES.ORG/ID/METROPOLITAN-DISTRICT-COUNCIL/WALSALL,30/09/2020,RESOURCES & TRANSFORMATION,METRO INNS WALSALL,07/07/2020,H59620200708HDSTXLDIQ-1,76.00,BED & BREAKFAST PAYMENTS-BED & BREAKFAST PAYMENTS,"HOTELS, MOTELS, RESORTS",GPC
WALSALL COUNCIL,HTTP://OPENDATACOMMUNITIES.ORG/ID/METROPOLITAN-DISTRICT-COUNCIL/WALSALL,30/09/2020,ECONOMY & ENVIRONMENT,BLAKEMORE FOODSERVICE,07/07/2020,H59620200708HTZTYUVBM-1,446.93,CIVIC LEADERSHIP AND MOBILISIN-STATIONERY & GENERAL OFFICE SU,CATERERS,GPC
WALSALL COUNCIL,HTTP://OPENDATACOMMUNITIES.ORG/ID/METROPOLITAN-DISTRICT-COUNCIL/WALSALL,30/09/2020,CHILDRENS SERVICES,ARGOS LTD,07/07/2020,H59620200708HWMVGZNBB-1,406.95,TRANSITION AND LEAVING CARE PL-PURCHASE OF FURNITURE & EQUIPM,DISCOUNT STORES,GPC
WALSALL COUNCIL,HTTP://OPENDATACOMMUNITIES.ORG/ID/METROPOLITAN-DISTRICT-COUNCIL/WALSALL,30/09/2020,RESOURCES & TRANSFORMATION,NOBISCO LIMITED,07/07/2020,H59620200708IFVPHZMEP-1,44.40,CATERING - SCHOOLS-FOOD & DRINK SUPPLIES,OTHER INDUSTRIAL SUPPLIES,GPC
WALSALL COUNCIL,HTTP://OPENDATACOMMUNITIES.ORG/ID/METROPOLITAN-DISTRICT-COUNCIL/WALSALL,30/09/2020,CHILDRENS SERVICES,AMAZON.CO.UK*0K40M7ZS5,07/07/2020,H59620200708IJZSMSJPM-1,141.11,LOOKED AFTER CHILDRENS SOCIAL -PURCHASE OF FURNITURE & EQUIPM,OTHER DIRECT MARKETING-OTHER DIRECT MARKETERS,GPC
WALSALL COUNCIL,HTTP://OPENDATACOMMUNITIES.ORG/ID/METROPOLITAN-DISTRICT-COUNCIL/WALSALL,30/09/2020,ECONOMY & ENVIRONMENT,BLAKEMORE FOODSERVICE,07/07/2020,H59620200708JNNMPDJMP-1,3331.66,CIVIC LEADERSHIP AND MOBILISIN-STATIONERY & GENERAL OFFICE SU,CATERERS,GPC
WALSALL COUNCIL,HTTP://OPENDATACOMMUNITIES.ORG/ID/METROPOLITAN-DISTRICT-COUNCIL/WALSALL,30/09/2020,ECONOMY & ENVIRONMENT,BLAKEMORE FOODSERVICE,07/07/2020,H59620200708JNNMPDJMP-2,858.81,CIVIC LEADERSHIP AND MOBILISIN-STATIONERY & GENERAL OFFICE SU,CATERERS,GPC
WALSALL COUNCIL,HTTP://OPENDATACOMMUNITIES.ORG/ID/METROPOLITAN-DISTRICT-COUNCIL/WALSALL,30/09/2020,RESOURCES & TRANSFORMATION,METRO INNS WALSALL,07/07/2020,H59620200708JRMXIBRCK-1,190.00,BED & BREAKFAST PAYMENTS-HOTEL ACCOMMODATION-EMPLOYEES,"HOTELS, MOTELS, RESORTS",GPC
WALSALL COUNCIL,HTTP://OPENDATACOMMUNITIES.ORG/ID/METROPOLITAN-DISTRICT-COUNCIL/WALSALL,30/09/2020,RESOURCES & TRANSFORMATION,NOBISCO LIMITED,07/07/2020,H59620200708JTPBCYGGT-1,34.13,CATERING - SCHOOLS-FOOD & DRINK SUPPLIES,OTHER INDUSTRIAL SUPPLIES,GPC
WALSALL COUNCIL,HTTP://OPENDATACOMMUNITIES.ORG/ID/METROPOLITAN-DISTRICT-COUNCIL/WALSALL,30/09/2020,CHILDRENS SERVICES - SCHOOLS,AMAZON.CO.UK*MV8RK6J25,07/07/2020,H59620200708KLIBOSODX-1,52.92,E19-MATERIALS,OTHER DIRECT MARKETING-OTHER DIRECT MARKETERS,GPC
WALSALL COUNCIL,HTTP://OPENDATACOMMUNITIES.ORG/ID/METROPOLITAN-DISTRICT-COUNCIL/WALSALL,30/09/2020,CHILDRENS SERVICES,POST OFFICE COUNTER,07/07/2020,H59620200708KPEENMQMU-1,130.00,CHILDREN'S COMMISSIONING-POSTAGES & COURIER SERVICES,POSTAL SERVICES - GOVERNMENT ONLY,GPC
WALSALL COUNCIL,HTTP://OPENDATACOMMUNITIES.ORG/ID/METROPOLITAN-DISTRICT-COUNCIL/WALSALL,30/09/2020,CHILDRENS SERVICES,AMZNMKTPLACE,07/07/2020,H59620200708KPVOFKSHB-1,19.99,REDRUTH ROAD-RESIDENTS PERSONAL EXPENSES-AL,MISCELLANEOUS AND SPECIALTY RETAIL STORES,GPC
WALSALL COUNCIL,HTTP://OPENDATACOMMUNITIES.ORG/ID/METROPOLITAN-DISTRICT-COUNCIL/WALSALL,30/09/2020,CHILDRENS SERVICES,HUBBARD CONSULTANCY,07/07/2020,H59620200708KYMXJWRDL-1,25.00,WATLING STREET PRIMARY SCHOOL-EXTERNAL TRAINING,"COMPUTER PROGRAM, SYSTEM DESIGN",GPC
WALSALL COUNCIL,HTTP://OPENDATACOMMUNITIES.ORG/ID/METROPOLITAN-DISTRICT-COUNCIL/WALSALL,30/09/2020,ECONOMY & ENVIRONMENT,AMZNMKTPLACE,07/07/2020,H59620200708LDBWOIXGQ-1,89.97,RESOURCE MANAGEMENT-STATIONERY & GENERAL OFFICE SU,MISCELLANEOUS AND SPECIALTY RETAIL STORES,GPC
WALSALL COUNCIL,HTTP://OPENDATACOMMUNITIES.ORG/ID/METROPOLITAN-DISTRICT-COUNCIL/WALSALL,30/09/2020,CHILDRENS SERVICES - SCHOOLS,AMZNMKTPLACE AMAZON.CO.UK,07/07/2020,H59620200708LDVDCYFOH-1,130.86,E19-MATERIALS,MISCELLANEOUS AND SPECIALTY RETAIL STORES,GPC
WALSALL COUNCIL,HTTP://OPENDATACOMMUNITIES.ORG/ID/METROPOLITAN-DISTRICT-COUNCIL/WALSALL,30/09/2020,ECONOMY & ENVIRONMENT,B & Q 1276,07/07/2020,H59620200708LFLTWDOIJ-1,25.50,ARBORETUM-MATERIALS,HOME SUPPLY WAREHOUSE STORES,GPC
WALSALL COUNCIL,HTTP://OPENDATACOMMUNITIES.ORG/ID/METROPOLITAN-DISTRICT-COUNCIL/WALSALL,30/09/2020,CHILDRENS SERVICES - SCHOOLS,AMAZON.CO.UK*7U4QO8X95,07/07/2020,H59620200708LPPTPRCCD-1,9.10,E19-MATERIALS,OTHER DIRECT MARKETING-OTHER DIRECT MARKETERS,GPC
WALSALL COUNCIL,HTTP://OPENDATACOMMUNITIES.ORG/ID/METROPOLITAN-DISTRICT-COUNCIL/WALSALL,30/09/2020,RESOURCES & TRANSFORMATION,TRAVELODGE GB0000,07/07/2020,H59620200708LWCSDUYKG-1,110.25,BED & BREAKFAST PAYMENTS-BED & BREAKFAST PAYMENTS,TRAVELODGE,GPC
WALSALL COUNCIL,HTTP://OPENDATACOMMUNITIES.ORG/ID/METROPOLITAN-DISTRICT-COUNCIL/WALSALL,30/09/2020,RESOURCES & TRANSFORMATION,TRAVELODGE GB0000,07/07/2020,H59620200708LWCSDUYKG-2,277.22,BED & BREAKFAST PAYMENTS-BED & BREAKFAST PAYMENTS,TRAVELODGE,GPC
WALSALL COUNCIL,HTTP://OPENDATACOMMUNITIES.ORG/ID/METROPOLITAN-DISTRICT-COUNCIL/WALSALL,30/09/2020,CHILDRENS SERVICES,WM MORRISONS STORE,07/07/2020,H59620200708MGNTJWCUN-1,7.05,57 LICHFIELD ROAD-FOOD & DRINK SUPPLIES,GROCERY STORES AND SUPERMARKETS,GPC
WALSALL COUNCIL,HTTP://OPENDATACOMMUNITIES.ORG/ID/METROPOLITAN-DISTRICT-COUNCIL/WALSALL,30/09/2020,CHILDRENS SERVICES,WM MORRISONS STORE,07/07/2020,H59620200708MGNTJWCUN-2,55.05,57 LICHFIELD ROAD-FOOD & DRINK SUPPLIES,GROCERY STORES AND SUPERMARKETS,GPC
WALSALL COUNCIL,HTTP://OPENDATACOMMUNITIES.ORG/ID/METROPOLITAN-DISTRICT-COUNCIL/WALSALL,30/09/2020,CHILDRENS SERVICES,AMAZON.CO.UK*Q95XQ2ZS5,07/07/2020,H59620200708MQOFKGUHP-1,101.83,LITERACY-LIBRARY BOOKS,OTHER DIRECT MARKETING-OTHER DIRECT MARKETERS,GPC
WALSALL COUNCIL,HTTP://OPENDATACOMMUNITIES.ORG/ID/METROPOLITAN-DISTRICT-COUNCIL/WALSALL,30/09/2020,CHILDRENS SERVICES,WWW.ANYVAN.COM,07/07/2020,H59620200708NRKNIUBXX-1,33.95,SUPPORT UNDER SECT 23 OF THE C-SUPPORT UNDER SECTION 23 OF TH,MOTOR FREIGHT CARRIERS,GPC
WALSALL COUNCIL,HTTP://OPENDATACOMMUNITIES.ORG/ID/METROPOLITAN-DISTRICT-COUNCIL/WALSALL,30/09/2020,RESOURCES & TRANSFORMATION,HIMLEY COUNTRY HOTEL,07/07/2020,H59620200708ODEMOEWZU-1,180.00,BED & BREAKFAST PAYMENTS-BED & BREAKFAST PAYMENTS,"HOTELS, MOTELS, RESORTS",GPC
WALSALL COUNCIL,HTTP://OPENDATACOMMUNITIES.ORG/ID/METROPOLITAN-DISTRICT-COUNCIL/WALSALL,30/09/2020,CHILDRENS SERVICES,GEN REGISTER OFFICE,07/07/2020,H59620200708OFQMBBRAE-1,38.00,SAFEGUARDING & FAMILY SUPPORT-FEES & LICENCES,GOVERNMENT SERVICES,GPC
WALSALL COUNCIL,HTTP://OPENDATACOMMUNITIES.ORG/ID/METROPOLITAN-DISTRICT-COUNCIL/WALSALL,30/09/2020,CHILDRENS SERVICES,AMAZON.CO.UK*7J2JL2HJ5,07/07/2020,H59620200708PENLURMGW-1,51.98,SALISBURY PRIMARY SCHOOL-MATERIALS,OTHER DIRECT MARKETING-OTHER DIRECT MARKETERS,GPC
WALSALL COUNCIL,HTTP://OPENDATACOMMUNITIES.ORG/ID/METROPOLITAN-DISTRICT-COUNCIL/WALSALL,30/09/2020,CHILDRENS SERVICES,WWW.TTS-GROUPS.CO.UK,07/07/2020,H59620200708PJVRFKXWQ-1,188.94,MATHEMATICS DEPARTMENT-MATERIALS,"OFFICE, SCHOOL SUPPLY, AND STATIONERY STORES",GPC
WALSALL COUNCIL,HTTP://OPENDATACOMMUNITIES.ORG/ID/METROPOLITAN-DISTRICT-COUNCIL/WALSALL,30/09/2020,ADULT SOCIAL CARE,WWW.BANNERUK.COM,07/07/2020,H59620200708QCSEQOGPO-1,14.29,GOSCOTE-STATIONERY & GENERAL OFFICE SU,"STATIONERY, OFFICE SUPPLIES AND WRITING PAPER",GPC
WALSALL COUNCIL,HTTP://OPENDATACOMMUNITIES.ORG/ID/METROPOLITAN-DISTRICT-COUNCIL/WALSALL,30/09/2020,CHILDRENS SERVICES - SCHOOLS,AMAZON.CO.UK*4H5NI8PD5 AM,07/07/2020,H59620200708QDBJDCMJH-1,5.99,E19-MATERIALS,MISCELLANEOUS AND SPECIALTY RETAIL STORES,GPC
WALSALL COUNCIL,HTTP://OPENDATACOMMUNITIES.ORG/ID/METROPOLITAN-DISTRICT-COUNCIL/WALSALL,30/09/2020,CHILDRENS SERVICES - SCHOOLS,GOOGLE *YOUTUBEPREMIUM,07/07/2020,H59620200708QXNDMHHAD-1,11.99,ADMINISTRATIVE SUPPLIES-MATERIALS,DIRECT MARKETING CONTINUITY SUBSCRIPTION MERCHANTS,GPC
WALSALL COUNCIL,HTTP://OPENDATACOMMUNITIES.ORG/ID/METROPOLITAN-DISTRICT-COUNCIL/WALSALL,30/09/2020,RESOURCES & TRANSFORMATION,BLAKEMORE FOODSERVICE,07/07/2020,H59620200708RBVCBLWJV-1,59.52,CATERING - SCHOOLS-FOOD & DRINK SUPPLIES,CATERERS,GPC
WALSALL COUNCIL,HTTP://OPENDATACOMMUNITIES.ORG/ID/METROPOLITAN-DISTRICT-COUNCIL/WALSALL,30/09/2020,CHILDRENS SERVICES,QUEENSWAY INTERIOR,07/07/2020,H59620200708RERJWPZZN-1,299.00,TRANSITION AND LEAVING CARE PL-CARE LEAVERS MTCE PAYMENTS,"EQUIPMENT, FURNITURE, AND HOME FURNISHINGS STORES ",GPC
WALSALL COUNCIL,HTTP://OPENDATACOMMUNITIES.ORG/ID/METROPOLITAN-DISTRICT-COUNCIL/WALSALL,30/09/2020,ECONOMY & ENVIRONMENT,MAUDESPORT LTD,07/07/2020,H59620200708TOYGCEJTV-1,157.28,OAK PARK-MATERIALS,SPORTING GOODS STORES,GPC
WALSALL COUNCIL,HTTP://OPENDATACOMMUNITIES.ORG/ID/METROPOLITAN-DISTRICT-COUNCIL/WALSALL,30/09/2020,CHILDRENS SERVICES - SCHOOLS,AMZNMKTPLACE,07/07/2020,H59620200708TRPQSJWBE-1,64.99,E19-MATERIALS,MISCELLANEOUS AND SPECIALTY RETAIL STORES,GPC
WALSALL COUNCIL,HTTP://OPENDATACOMMUNITIES.ORG/ID/METROPOLITAN-DISTRICT-COUNCIL/WALSALL,30/09/2020,CHILDRENS SERVICES - SCHOOLS,AMAZON.CO.UK*1F4S93P85 AM,07/07/2020,H59620200708TTDCSQXXZ-1,85.62,E19-MATERIALS,MISCELLANEOUS AND SPECIALTY RETAIL STORES,GPC
WALSALL COUNCIL,HTTP://OPENDATACOMMUNITIES.ORG/ID/METROPOLITAN-DISTRICT-COUNCIL/WALSALL,30/09/2020,CHILDRENS SERVICES,LCN.COM LTD,07/07/2020,H59620200708UBHZOBNOV-1,-7.14,ICT LEARNING RESOURCES-LICENCES FOR EQUIPMENT,"CONSULTING, MANAGEMENT, AND PR SERVICES",GPC
WALSALL COUNCIL,HTTP://OPENDATACOMMUNITIES.ORG/ID/METROPOLITAN-DISTRICT-COUNCIL/WALSALL,30/09/2020,ECONOMY & ENVIRONMENT,FACEBK *8J7ZDSAX82,07/07/2020,H59620200708UDIYECICH-1,22.10,RES-WALSALL WORKS-PUBLICITY & ADVERTISING (NON S,ADVERTISING SERVICES,GPC
WALSALL COUNCIL,HTTP://OPENDATACOMMUNITIES.ORG/ID/METROPOLITAN-DISTRICT-COUNCIL/WALSALL,30/09/2020,RESOURCES & TRANSFORMATION,ASDA,07/07/2020,H59620200708VKKETJWWU-1,75.50,WALSALL CRISIS SUPPORT SCHEME-CRISIS SUPPORT PAYMENTS,GROCERY STORES AND SUPERMARKETS,GPC
WALSALL COUNCIL,HTTP://OPENDATACOMMUNITIES.ORG/ID/METROPOLITAN-DISTRICT-COUNCIL/WALSALL,30/09/2020,CHILDRENS SERVICES,AMZNMKTPLACE,07/07/2020,H59620200708VKNQCFHBQ-1,19.98,EARLY YEARS DEPARTMENT-MATERIALS,MISCELLANEOUS AND SPECIALTY RETAIL STORES,GPC
WALSALL COUNCIL,HTTP://OPENDATACOMMUNITIES.ORG/ID/METROPOLITAN-DISTRICT-COUNCIL/WALSALL,30/09/2020,CHILDRENS SERVICES - SCHOOLS,WORLD OF BOOKS,07/07/2020,H59620200708VKXROCCWY-1,63.84,E19-LIBRARY BOOKS,BOOK STORES,GPC
WALSALL COUNCIL,HTTP://OPENDATACOMMUNITIES.ORG/ID/METROPOLITAN-DISTRICT-COUNCIL/WALSALL,30/09/2020,CHILDRENS SERVICES,ASDA GROCERIES ONLINE,07/07/2020,H59620200708VXWRFDWPF-1,78.40,EARLY HELP HUB-PROFESSIONAL SERVICES-PRIV CON,GROCERY STORES AND SUPERMARKETS,GPC
WALSALL COUNCIL,HTTP://OPENDATACOMMUNITIES.ORG/ID/METROPOLITAN-DISTRICT-COUNCIL/WALSALL,30/09/2020,CHILDRENS SERVICES,ASDA GROCERIES ONLINE,07/07/2020,H59620200708VXWRFDWPF-2,112.46,EARLY HELP HUB-PROFESSIONAL SERVICES-PRIV CON,GROCERY STORES AND SUPERMARKETS,GPC
WALSALL COUNCIL,HTTP://OPENDATACOMMUNITIES.ORG/ID/METROPOLITAN-DISTRICT-COUNCIL/WALSALL,30/09/2020,CHILDRENS SERVICES,WEST MIDLAND CARD,07/07/2020,H59620200708WUMVKWIUK-1,4.60,TRANSITION AND LEAVING CARE PL-OFFICERS & STAFF PUBLIC TRANSP,BUS LINES,GPC
WALSALL COUNCIL,HTTP://OPENDATACOMMUNITIES.ORG/ID/METROPOLITAN-DISTRICT-COUNCIL/WALSALL,30/09/2020,CHILDRENS SERVICES - SCHOOLS,AMZNMKTPLACE,07/07/2020,H59620200708WXWSWGIVU-1,64.99,E19-MATERIALS,MISCELLANEOUS AND SPECIALTY RETAIL STORES,GPC
WALSALL COUNCIL,HTTP://OPENDATACOMMUNITIES.ORG/ID/METROPOLITAN-DISTRICT-COUNCIL/WALSALL,30/09/2020,RESOURCES & TRANSFORMATION,BLAKEMORE FOODSERVICE,07/07/2020,H59620200708XUQSFCFOX-1,9.63,CATERING - SCHOOLS-FOOD & DRINK SUPPLIES,CATERERS,GPC
WALSALL COUNCIL,HTTP://OPENDATACOMMUNITIES.ORG/ID/METROPOLITAN-DISTRICT-COUNCIL/WALSALL,30/09/2020,CHILDRENS SERVICES,AMZNMKTPLACE,07/07/2020,H59620200708YYRSBGUOL-1,65.98,CONTACT SESSIONAL STAFF-STATIONERY & GENERAL OFFICE SU,MISCELLANEOUS AND SPECIALTY RETAIL STORES,GPC
WALSALL COUNCIL,HTTP://OPENDATACOMMUNITIES.ORG/ID/METROPOLITAN-DISTRICT-COUNCIL/WALSALL,30/09/2020,RESOURCES & TRANSFORMATION,JOHAL DAIRIES LTD,08/07/2020,H59620200709ACHAVGEKV-1,50.16,CATERING - SCHOOLS-FOOD & DRINK SUPPLIES,OTHER NONDURABLE GOODS,GPC
WALSALL COUNCIL,HTTP://OPENDATACOMMUNITIES.ORG/ID/METROPOLITAN-DISTRICT-COUNCIL/WALSALL,30/09/2020,CHILDRENS SERVICES,EDSHED,08/07/2020,H59620200709AQGPOFBOQ-1,280.80,LITERACY-MATERIALS,COMPUTER SOFTWARE STORES,GPC
WALSALL COUNCIL,HTTP://OPENDATACOMMUNITIES.ORG/ID/METROPOLITAN-DISTRICT-COUNCIL/WALSALL,30/09/2020,CHILDRENS SERVICES,B&M 402 - BROWNHILLS,08/07/2020,H59620200709CCMFJOYUJ-1,13.00,ADOLESCENT SERVICE-FOOD & DRINK SUPPLIES,MISCELLANEOUS GENERAL MERCHANDISE,GPC
WALSALL COUNCIL,HTTP://OPENDATACOMMUNITIES.ORG/ID/METROPOLITAN-DISTRICT-COUNCIL/WALSALL,30/09/2020,CHILDRENS SERVICES,AMAZON.CO.UK*ZT7869FY5,08/07/2020,H59620200709CFFFNNUOU-1,12.99,ADMINISTRATIVE SUPPLIES-MATERIALS,OTHER DIRECT MARKETING-OTHER DIRECT MARKETERS,GPC
WALSALL COUNCIL,HTTP://OPENDATACOMMUNITIES.ORG/ID/METROPOLITAN-DISTRICT-COUNCIL/WALSALL,30/09/2020,ECONOMY & ENVIRONMENT,DVLA VEHICLE TAX,08/07/2020,H59620200709CQOKTNYVF-1,617.50,FLEET-LICENCES FOR VEHICLES,TAX PAYMENTS,GPC
WALSALL COUNCIL,HTTP://OPENDATACOMMUNITIES.ORG/ID/METROPOLITAN-DISTRICT-COUNCIL/WALSALL,30/09/2020,CHILDRENS SERVICES,AMAZON.CO.UK*OA9QN1VD5,08/07/2020,H59620200709CRJTCVQMK-1,70.56,EARLY YEARS DEPARTMENT-MATERIALS,OTHER DIRECT MARKETING-OTHER DIRECT MARKETERS,GPC
WALSALL COUNCIL,HTTP://OPENDATACOMMUNITIES.ORG/ID/METROPOLITAN-DISTRICT-COUNCIL/WALSALL,30/09/2020,CHILDRENS SERVICES - SCHOOLS,EUROFFICE.CO.UK,08/07/2020,H59620200709DIOBOQARM-1,18.15,ADMINISTRATIVE SUPPLIES-MATERIALS,"OFFICE, SCHOOL SUPPLY, AND STATIONERY STORES",GPC
WALSALL COUNCIL,HTTP://OPENDATACOMMUNITIES.ORG/ID/METROPOLITAN-DISTRICT-COUNCIL/WALSALL,30/09/2020,RESOURCES & TRANSFORMATION,JOHAL DAIRIES LTD,08/07/2020,H59620200709DYCONBEHG-1,13.64,CATERING - SCHOOLS-FOOD & DRINK SUPPLIES,OTHER NONDURABLE GOODS,GPC
WALSALL COUNCIL,HTTP://OPENDATACOMMUNITIES.ORG/ID/METROPOLITAN-DISTRICT-COUNCIL/WALSALL,30/09/2020,RESOURCES & TRANSFORMATION,JOHAL DAIRIES LTD,08/07/2020,H59620200709EDTVWENQL-1,18.80,CATERING - SCHOOLS-FOOD & DRINK SUPPLIES,OTHER NONDURABLE GOODS,GPC
WALSALL COUNCIL,HTTP://OPENDATACOMMUNITIES.ORG/ID/METROPOLITAN-DISTRICT-COUNCIL/WALSALL,30/09/2020,RESOURCES & TRANSFORMATION,JOHAL DAIRIES LTD,08/07/2020,H59620200709EJSRDYTDV-1,11.88,CATERING - SCHOOLS-FOOD & DRINK SUPPLIES,OTHER NONDURABLE GOODS,GPC
WALSALL COUNCIL,HTTP://OPENDATACOMMUNITIES.ORG/ID/METROPOLITAN-DISTRICT-COUNCIL/WALSALL,30/09/2020,CHILDRENS SERVICES - SCHOOLS,BUZZ NETWORKS TA VIRTUAL,08/07/2020,H59620200709EPRLTKAPY-1,12.96,CADMUS FEDERATION-MATERIALS,TELECOMMUNICATION SERVICES,GPC
WALSALL COUNCIL,HTTP://OPENDATACOMMUNITIES.ORG/ID/METROPOLITAN-DISTRICT-COUNCIL/WALSALL,30/09/2020,RESOURCES & TRANSFORMATION,JOHAL DAIRIES LTD,08/07/2020,H59620200709EPTSDKXGD-1,23.24,CATERING - SCHOOLS-FOOD & DRINK SUPPLIES,OTHER NONDURABLE GOODS,GPC
WALSALL COUNCIL,HTTP://OPENDATACOMMUNITIES.ORG/ID/METROPOLITAN-DISTRICT-COUNCIL/WALSALL,30/09/2020,CHILDRENS SERVICES,AMZNMKTPLACE,08/07/2020,H59620200709ETAECVNTF-1,17.91,EARLY YEARS DEPARTMENT-MATERIALS,MISCELLANEOUS AND SPECIALTY RETAIL STORES,GPC
WALSALL COUNCIL,HTTP://OPENDATACOMMUNITIES.ORG/ID/METROPOLITAN-DISTRICT-COUNCIL/WALSALL,30/09/2020,CHILDRENS SERVICES,WWW.WEPRINTLANYARDS.CO,08/07/2020,H59620200709EYXICBKBO-1,113.52,ADMINISTRATIVE SUPPLIES-STATIONERY & GENERAL OFFICE SU,"CARD, GIFT, NOVELTY, AND SOUVENIR SHOPS",GPC
WALSALL COUNCIL,HTTP://OPENDATACOMMUNITIES.ORG/ID/METROPOLITAN-DISTRICT-COUNCIL/WALSALL,30/09/2020,RESOURCES & TRANSFORMATION,JOHAL DAIRIES LTD,08/07/2020,H59620200709GOEHYXWOK-1,22.05,CATERING - SCHOOLS-FOOD & DRINK SUPPLIES,OTHER NONDURABLE GOODS,GPC
WALSALL COUNCIL,HTTP://OPENDATACOMMUNITIES.ORG/ID/METROPOLITAN-DISTRICT-COUNCIL/WALSALL,30/09/2020,CHILDRENS SERVICES,HOME BARGAINS,08/07/2020,H59620200709GRXYPLDUT-1,51.49,EARLY HELP HUB-PROFESSIONAL SERVICES-PRIV CON,HARDWARE STORES,GPC
WALSALL COUNCIL,HTTP://OPENDATACOMMUNITIES.ORG/ID/METROPOLITAN-DISTRICT-COUNCIL/WALSALL,30/09/2020,ECONOMY & ENVIRONMENT,DVLA VEHICLE TAX,08/07/2020,H59620200709IJMSAHHHI-1,617.50,FLEET-LICENCES FOR VEHICLES,TAX PAYMENTS,GPC
WALSALL COUNCIL,HTTP://OPENDATACOMMUNITIES.ORG/ID/METROPOLITAN-DISTRICT-COUNCIL/WALSALL,30/09/2020,CHILDRENS SERVICES - SCHOOLS,WWW.AGRI-GEM.CO.UK,08/07/2020,H59620200709IOKHJDKBD-1,58.30,CHUCKERY PRIMARY SCHOOL-GROUNDS MAINTENANCE,OTHER INDUSTRIAL SUPPLIES,GPC
WALSALL COUNCIL,HTTP://OPENDATACOMMUNITIES.ORG/ID/METROPOLITAN-DISTRICT-COUNCIL/WALSALL,30/09/2020,RESOURCES & TRANSFORMATION,WWW.BANNERUK.COM,08/07/2020,H59620200709IORFRTRIO-1,31.30,LAW LIBRARY-MATERIALS,"STATIONERY, OFFICE SUPPLIES AND WRITING PAPER",GPC
WALSALL COUNCIL,HTTP://OPENDATACOMMUNITIES.ORG/ID/METROPOLITAN-DISTRICT-COUNCIL/WALSALL,30/09/2020,CHILDRENS SERVICES - SCHOOLS,IKEA LTD SHOP ONLINE,08/07/2020,H59620200709IUYXDHDEY-1,-259.00,E19-PURCHASE OF FURNITURE & EQUIPM,"EQUIPMENT, FURNITURE, AND HOME FURNISHINGS STORES ",GPC
WALSALL COUNCIL,HTTP://OPENDATACOMMUNITIES.ORG/ID/METROPOLITAN-DISTRICT-COUNCIL/WALSALL,30/09/2020,RESOURCES & TRANSFORMATION,JOHAL DAIRIES LTD,08/07/2020,H59620200709JMNXXDXQE-1,14.38,CATERING - SCHOOLS-FOOD & DRINK SUPPLIES,OTHER NONDURABLE GOODS,GPC
WALSALL COUNCIL,HTTP://OPENDATACOMMUNITIES.ORG/ID/METROPOLITAN-DISTRICT-COUNCIL/WALSALL,30/09/2020,RESOURCES & TRANSFORMATION,JOHAL DAIRIES LTD,08/07/2020,H59620200709JTUKPBCVL-1,-5.64,CATERING - SCHOOLS-FOOD & DRINK SUPPLIES,OTHER NONDURABLE GOODS,GPC
WALSALL COUNCIL,HTTP://OPENDATACOMMUNITIES.ORG/ID/METROPOLITAN-DISTRICT-COUNCIL/WALSALL,30/09/2020,CHILDRENS SERVICES,AMAZON.CO.UK*FJ1K31K15 AM,08/07/2020,H59620200709JYHVOGCMC-1,63.96,ENGLISH DEPARTMENT-STATIONERY & GENERAL OFFICE SU,MISCELLANEOUS AND SPECIALTY RETAIL STORES,GPC
WALSALL COUNCIL,HTTP://OPENDATACOMMUNITIES.ORG/ID/METROPOLITAN-DISTRICT-COUNCIL/WALSALL,30/09/2020,RESOURCES & TRANSFORMATION,JOHAL DAIRIES LTD,08/07/2020,H59620200709KGYPSYDFD-1,20.02,CATERING - SCHOOLS-FOOD & DRINK SUPPLIES,OTHER NONDURABLE GOODS,GPC
WALSALL COUNCIL,HTTP://OPENDATACOMMUNITIES.ORG/ID/METROPOLITAN-DISTRICT-COUNCIL/WALSALL,30/09/2020,ECONOMY & ENVIRONMENT,WWW.BANNERUK.COM,08/07/2020,H59620200709KSTBNILAS-1,13.08,LIBRARY OPERATIONS CENTRAL-CLEANING MATERIALS,"STATIONERY, OFFICE SUPPLIES AND WRITING PAPER",GPC
WALSALL COUNCIL,HTTP://OPENDATACOMMUNITIES.ORG/ID/METROPOLITAN-DISTRICT-COUNCIL/WALSALL,30/09/2020,ECONOMY & ENVIRONMENT,AMAZON.CO.UK*QT98M8Z65,08/07/2020,H59620200709LIPZITEVJ-1,90.23,TECHNICAL/ART HANDLING-STATIONERY & GENERAL OFFICE SU,OTHER DIRECT MARKETING-OTHER DIRECT MARKETERS,GPC
WALSALL COUNCIL,HTTP://OPENDATACOMMUNITIES.ORG/ID/METROPOLITAN-DISTRICT-COUNCIL/WALSALL,30/09/2020,CHILDRENS SERVICES,PAYPAL *LINGUASCOPE,08/07/2020,H59620200709LKYPEVBYJ-1,360.00,MODERN FOREIGN LANGUAGE-MATERIALS,OTHER DURABLE GOODS,GPC
WALSALL COUNCIL,HTTP://OPENDATACOMMUNITIES.ORG/ID/METROPOLITAN-DISTRICT-COUNCIL/WALSALL,30/09/2020,ECONOMY & ENVIRONMENT,DVLA VEHICLE TAX,08/07/2020,H59620200709LNNJJERMD-1,617.50,FLEET-LICENCES FOR VEHICLES,TAX PAYMENTS,GPC
WALSALL COUNCIL,HTTP://OPENDATACOMMUNITIES.ORG/ID/METROPOLITAN-DISTRICT-COUNCIL/WALSALL,30/09/2020,RESOURCES & TRANSFORMATION,JOHAL DAIRIES LTD,08/07/2020,H59620200709LQDHIIRNT-1,18.54,CATERING - SCHOOLS-FOOD & DRINK SUPPLIES,OTHER NONDURABLE GOODS,GPC
WALSALL COUNCIL,HTTP://OPENDATACOMMUNITIES.ORG/ID/METROPOLITAN-DISTRICT-COUNCIL/WALSALL,30/09/2020,ECONOMY & ENVIRONMENT,O2 UK,08/07/2020,H59620200709MAPRKJMWL-1,20.00,YEI ESF FUNDING-PROFESSIONAL FEES & SERVICES,TELECOMMUNICATION EQUIPMENT & SALES,GPC
WALSALL COUNCIL,HTTP://OPENDATACOMMUNITIES.ORG/ID/METROPOLITAN-DISTRICT-COUNCIL/WALSALL,30/09/2020,ECONOMY & ENVIRONMENT,O2 UK,08/07/2020,H59620200709MAPRKJMWL-2,20.00,YEI (IMPACT) PROGRAMME-PROFESSIONAL FEES & SERVICES,TELECOMMUNICATION EQUIPMENT & SALES,GPC
WALSALL COUNCIL,HTTP://OPENDATACOMMUNITIES.ORG/ID/METROPOLITAN-DISTRICT-COUNCIL/WALSALL,30/09/2020,RESOURCES & TRANSFORMATION,JOHAL DAIRIES LTD,08/07/2020,H59620200709MLOHODGQQ-1,7.58,CATERING - SCHOOLS-FOOD & DRINK SUPPLIES,OTHER NONDURABLE GOODS,GPC
WALSALL COUNCIL,HTTP://OPENDATACOMMUNITIES.ORG/ID/METROPOLITAN-DISTRICT-COUNCIL/WALSALL,30/09/2020,CHILDRENS SERVICES,AMAZON.CO.UK*HB2WR1TH5,08/07/2020,H59620200709NTCVQQYOF-1,12.67,ADMIN-MATERIALS,OTHER DIRECT MARKETING-OTHER DIRECT MARKETERS,GPC
WALSALL COUNCIL,HTTP://OPENDATACOMMUNITIES.ORG/ID/METROPOLITAN-DISTRICT-COUNCIL/WALSALL,30/09/2020,CHILDRENS SERVICES,AMAZON.CO.UK*HB2WR1TH5,08/07/2020,H59620200709NTCVQQYOF-2,8.81,BASIC STATIONERY-MATERIALS,OTHER DIRECT MARKETING-OTHER DIRECT MARKETERS,GPC
WALSALL COUNCIL,HTTP://OPENDATACOMMUNITIES.ORG/ID/METROPOLITAN-DISTRICT-COUNCIL/WALSALL,30/09/2020,CHILDRENS SERVICES,AMAZON.CO.UK*A36YP7M15,08/07/2020,H59620200709NXBFRGGKJ-1,38.76,EARLY YEARS DEPARTMENT-MATERIALS,OTHER DIRECT MARKETING-OTHER DIRECT MARKETERS,GPC
WALSALL COUNCIL,HTTP://OPENDATACOMMUNITIES.ORG/ID/METROPOLITAN-DISTRICT-COUNCIL/WALSALL,30/09/2020,RESOURCES & TRANSFORMATION,JOHAL DAIRIES LTD,08/07/2020,H59620200709OMIRXJKGC-1,15.72,CATERING - SCHOOLS-FOOD & DRINK SUPPLIES,OTHER NONDURABLE GOODS,GPC
WALSALL COUNCIL,HTTP://OPENDATACOMMUNITIES.ORG/ID/METROPOLITAN-DISTRICT-COUNCIL/WALSALL,30/09/2020,RESOURCES & TRANSFORMATION,JOHAL DAIRIES LTD,08/07/2020,H59620200709PAVDJKTHK-1,11.42,CATERING - SCHOOLS-FOOD & DRINK SUPPLIES,OTHER NONDURABLE GOODS,GPC
WALSALL COUNCIL,HTTP://OPENDATACOMMUNITIES.ORG/ID/METROPOLITAN-DISTRICT-COUNCIL/WALSALL,30/09/2020,RESOURCES & TRANSFORMATION,JOHAL DAIRIES LTD,08/07/2020,H59620200709PQFFXBFIM-1,18.92,CATERING - SCHOOLS-FOOD & DRINK SUPPLIES,OTHER NONDURABLE GOODS,GPC
WALSALL COUNCIL,HTTP://OPENDATACOMMUNITIES.ORG/ID/METROPOLITAN-DISTRICT-COUNCIL/WALSALL,30/09/2020,CHILDRENS SERVICES,REGISTRATION SERVICES,08/07/2020,H59620200709QLVPLWXYV-1,-6.00,SAFEGUARDING & FAMILY SUPPORT-FEES & LICENCES,OTHER RECREATION SERVICES,GPC
WALSALL COUNCIL,HTTP://OPENDATACOMMUNITIES.ORG/ID/METROPOLITAN-DISTRICT-COUNCIL/WALSALL,30/09/2020,CHILDRENS SERVICES - SCHOOLS,NSPCC,08/07/2020,H59620200709QMGHYEEJT-1,31.50,MILLFIELD PRIMARY SCHOOL-MATERIALS,OTHER SCHOOLS AND EDUCATIONAL SERVICES,GPC
WALSALL COUNCIL,HTTP://OPENDATACOMMUNITIES.ORG/ID/METROPOLITAN-DISTRICT-COUNCIL/WALSALL,30/09/2020,RESOURCES & TRANSFORMATION,JOHAL DAIRIES LTD,08/07/2020,H59620200709QNHJXESWF-1,21.36,CATERING - SCHOOLS-FOOD & DRINK SUPPLIES,OTHER NONDURABLE GOODS,GPC
WALSALL COUNCIL,HTTP://OPENDATACOMMUNITIES.ORG/ID/METROPOLITAN-DISTRICT-COUNCIL/WALSALL,30/09/2020,ADULT SOCIAL CARE,DUNELM,08/07/2020,H59620200709QNTOSIJAI-1,33.20,GOSCOTE-PURCHASE OF FURNITURE & EQUIPM,"EQUIPMENT, FURNITURE, AND HOME FURNISHINGS STORES ",GPC
WALSALL COUNCIL,HTTP://OPENDATACOMMUNITIES.ORG/ID/METROPOLITAN-DISTRICT-COUNCIL/WALSALL,30/09/2020,RESOURCES & TRANSFORMATION,JOHAL DAIRIES LTD,08/07/2020,H59620200709QTYCRYFIK-1,15.32,CATERING - SCHOOLS-FOOD & DRINK SUPPLIES,OTHER NONDURABLE GOODS,GPC
WALSALL COUNCIL,HTTP://OPENDATACOMMUNITIES.ORG/ID/METROPOLITAN-DISTRICT-COUNCIL/WALSALL,30/09/2020,RESOURCES & TRANSFORMATION,JOHAL DAIRIES LTD,08/07/2020,H59620200709RLQVWMKYM-1,4.70,CATERING - SCHOOLS-FOOD & DRINK SUPPLIES,OTHER NONDURABLE GOODS,GPC
WALSALL COUNCIL,HTTP://OPENDATACOMMUNITIES.ORG/ID/METROPOLITAN-DISTRICT-COUNCIL/WALSALL,30/09/2020,ECONOMY & ENVIRONMENT,DVLA VEHICLE TAX,08/07/2020,H59620200709SYYDZPZLK-1,617.50,FLEET-LICENCES FOR VEHICLES,TAX PAYMENTS,GPC
WALSALL COUNCIL,HTTP://OPENDATACOMMUNITIES.ORG/ID/METROPOLITAN-DISTRICT-COUNCIL/WALSALL,30/09/2020,CHILDRENS SERVICES,APPLE.COM/UK,08/07/2020,H59620200709TJGXNSFBA-1,178.00,SCIENCE-MATERIALS,ELECTRONIC SALES,GPC
WALSALL COUNCIL,HTTP://OPENDATACOMMUNITIES.ORG/ID/METROPOLITAN-DISTRICT-COUNCIL/WALSALL,30/09/2020,CHILDRENS SERVICES,PAYPAL *BUTTERFLY P,08/07/2020,H59620200709TTVLXBJDJ-1,40.24,EARLY HELP-LIBRARY BOOKS,MISCELLANEOUS PUBLISHING AND PRINTING,GPC
WALSALL COUNCIL,HTTP://OPENDATACOMMUNITIES.ORG/ID/METROPOLITAN-DISTRICT-COUNCIL/WALSALL,30/09/2020,CHILDRENS SERVICES,THE RANGE,08/07/2020,H59620200709UDDBTLUEL-1,24.99,ADMINISTRATIVE SUPPLIES-MATERIALS,DEPARTMENT STORES,GPC
WALSALL COUNCIL,HTTP://OPENDATACOMMUNITIES.ORG/ID/METROPOLITAN-DISTRICT-COUNCIL/WALSALL,30/09/2020,RESOURCES & TRANSFORMATION,JOHAL DAIRIES LTD,08/07/2020,H59620200709UNKWTFNER-1,5.64,CATERING - SCHOOLS-FOOD & DRINK SUPPLIES,OTHER NONDURABLE GOODS,GPC
WALSALL COUNCIL,HTTP://OPENDATACOMMUNITIES.ORG/ID/METROPOLITAN-DISTRICT-COUNCIL/WALSALL,30/09/2020,CHILDRENS SERVICES,POST OFFICE COUNTER,08/07/2020,H59620200709UOIZPKSWN-1,8.84,FAMILY PLACEMENTS-POSTAGES & COURIER SERVICES,POSTAL SERVICES - GOVERNMENT ONLY,GPC
WALSALL COUNCIL,HTTP://OPENDATACOMMUNITIES.ORG/ID/METROPOLITAN-DISTRICT-COUNCIL/WALSALL,30/09/2020,CHILDRENS SERVICES,POST OFFICE COUNTER,08/07/2020,H59620200709UWIQUTFTR-1,15.04,FAMILY PLACEMENTS-POSTAGES & COURIER SERVICES,POSTAL SERVICES - GOVERNMENT ONLY,GPC
WALSALL COUNCIL,HTTP://OPENDATACOMMUNITIES.ORG/ID/METROPOLITAN-DISTRICT-COUNCIL/WALSALL,30/09/2020,CHILDRENS SERVICES,PAYPAL *SUPPORTSUPE,08/07/2020,H59620200709UWPTJFEDO-1,50.00,SAFEGUARDING & FAMILY SUPPORT-PROFESSIONAL FEES & SERVICES,PROFESSIONAL SERVICES,GPC
WALSALL COUNCIL,HTTP://OPENDATACOMMUNITIES.ORG/ID/METROPOLITAN-DISTRICT-COUNCIL/WALSALL,30/09/2020,ADULT SOCIAL CARE,WWW.BANNERUK.COM,08/07/2020,H59620200709VHRVIICFL-1,123.55,GOSCOTE-STATIONERY & GENERAL OFFICE SU,"STATIONERY, OFFICE SUPPLIES AND WRITING PAPER",GPC
WALSALL COUNCIL,HTTP://OPENDATACOMMUNITIES.ORG/ID/METROPOLITAN-DISTRICT-COUNCIL/WALSALL,30/09/2020,RESOURCES & TRANSFORMATION,JOHAL DAIRIES LTD,08/07/2020,H59620200709VOJEARMVV-1,8.90,CATERING - SCHOOLS-FOOD & DRINK SUPPLIES,OTHER NONDURABLE GOODS,GPC
WALSALL COUNCIL,HTTP://OPENDATACOMMUNITIES.ORG/ID/METROPOLITAN-DISTRICT-COUNCIL/WALSALL,30/09/2020,ECONOMY & ENVIRONMENT,DVLA VEHICLE TAX,08/07/2020,H59620200709VOKEGZKAN-1,617.50,FLEET-LICENCES FOR VEHICLES,TAX PAYMENTS,GPC
WALSALL COUNCIL,HTTP://OPENDATACOMMUNITIES.ORG/ID/METROPOLITAN-DISTRICT-COUNCIL/WALSALL,30/09/2020,ECONOMY & ENVIRONMENT,DVLA VEHICLE TAX,08/07/2020,H59620200709VSSUETYHJ-1,617.50,FLEET-LICENCES FOR VEHICLES,TAX PAYMENTS,GPC
WALSALL COUNCIL,HTTP://OPENDATACOMMUNITIES.ORG/ID/METROPOLITAN-DISTRICT-COUNCIL/WALSALL,30/09/2020,CHILDRENS SERVICES,AMZNMKTPLACE,08/07/2020,H59620200709VUMBTVTDS-1,43.96,FOUNDATION STAGE-MATERIALS,MISCELLANEOUS AND SPECIALTY RETAIL STORES,GPC
WALSALL COUNCIL,HTTP://OPENDATACOMMUNITIES.ORG/ID/METROPOLITAN-DISTRICT-COUNCIL/WALSALL,30/09/2020,CHILDRENS SERVICES,B&M RETAIL,08/07/2020,H59620200709VXSDWWZTE-1,4.99,REDRUTH ROAD-PURCHASE OF FURNITURE & EQUIPM,DISCOUNT STORES,GPC
WALSALL COUNCIL,HTTP://OPENDATACOMMUNITIES.ORG/ID/METROPOLITAN-DISTRICT-COUNCIL/WALSALL,30/09/2020,RESOURCES & TRANSFORMATION,JOHAL DAIRIES LTD,08/07/2020,H59620200709VYLDUJUVX-1,42.80,CATERING - SCHOOLS-FOOD & DRINK SUPPLIES,OTHER NONDURABLE GOODS,GPC
WALSALL COUNCIL,HTTP://OPENDATACOMMUNITIES.ORG/ID/METROPOLITAN-DISTRICT-COUNCIL/WALSALL,30/09/2020,CHILDRENS SERVICES,VERY,08/07/2020,H59620200709WEOMJUSSG-1,1353.93,TRANSITION AND LEAVING CARE PL-CARE LEAVERS MTCE PAYMENTS,DIRECT MARKETING CATALOG MERCHANTS,GPC
WALSALL COUNCIL,HTTP://OPENDATACOMMUNITIES.ORG/ID/METROPOLITAN-DISTRICT-COUNCIL/WALSALL,30/09/2020,RESOURCES & TRANSFORMATION,JOHAL DAIRIES LTD,08/07/2020,H59620200709WJLIDNFIC-1,30.64,CATERING - SCHOOLS-FOOD & DRINK SUPPLIES,OTHER NONDURABLE GOODS,GPC
WALSALL COUNCIL,HTTP://OPENDATACOMMUNITIES.ORG/ID/METROPOLITAN-DISTRICT-COUNCIL/WALSALL,30/09/2020,CHILDRENS SERVICES,Y3K GROUP,08/07/2020,H59620200709WWCMEPYMT-1,-353.94,SPECIAL FACILITIES-MATERIALS,"BOOKS, PERIODICALS AND NEWSPAPERS",GPC
WALSALL COUNCIL,HTTP://OPENDATACOMMUNITIES.ORG/ID/METROPOLITAN-DISTRICT-COUNCIL/WALSALL,30/09/2020,CHILDRENS SERVICES - SCHOOLS,AMZNMKTPLACE,08/07/2020,H59620200709WWIJQLTNB-1,45.00,E19-MATERIALS,MISCELLANEOUS AND SPECIALTY RETAIL STORES,GPC
WALSALL COUNCIL,HTTP://OPENDATACOMMUNITIES.ORG/ID/METROPOLITAN-DISTRICT-COUNCIL/WALSALL,30/09/2020,ECONOMY & ENVIRONMENT,R DOWNES BROWNHILLS NEWSA,08/07/2020,H59620200709XCEWCSDVX-1,92.69,BROWNHILLS LIBRARY-LIBRARY BOOKS,NEWS DEALERS AND NEWSSTANDS,GPC
WALSALL COUNCIL,HTTP://OPENDATACOMMUNITIES.ORG/ID/METROPOLITAN-DISTRICT-COUNCIL/WALSALL,30/09/2020,ECONOMY & ENVIRONMENT,JOHN PACKER LTD,08/07/2020,H59620200709XDEEVOXPJ-1,564.00,FOREST ARTS AIP SCHEME-PURCHASE OF FURNITURE & EQUIPM,MUSIC STORES & MUSICAL INSTRUMENTS,GPC
WALSALL COUNCIL,HTTP://OPENDATACOMMUNITIES.ORG/ID/METROPOLITAN-DISTRICT-COUNCIL/WALSALL,30/09/2020,CHILDRENS SERVICES,B&M 402 - BROWNHILLS,08/07/2020,H59620200709XENEHTROJ-1,8.49,ADOLESCENT SERVICE-FOOD & DRINK SUPPLIES,MISCELLANEOUS GENERAL MERCHANDISE,GPC
WALSALL COUNCIL,HTTP://OPENDATACOMMUNITIES.ORG/ID/METROPOLITAN-DISTRICT-COUNCIL/WALSALL,30/09/2020,CHILDRENS SERVICES,B&M RETAIL,08/07/2020,H59620200709XHJQFKWOR-1,30.33,REDRUTH ROAD-CLEANING MATERIALS,DISCOUNT STORES,GPC
WALSALL COUNCIL,HTTP://OPENDATACOMMUNITIES.ORG/ID/METROPOLITAN-DISTRICT-COUNCIL/WALSALL,30/09/2020,ECONOMY & ENVIRONMENT,THE POST OFFICE,08/07/2020,H59620200709XOKIDYCRL-1,1.22,YEI ESF FUNDING-PROFESSIONAL FEES & SERVICES,POSTAL SERVICES - GOVERNMENT ONLY,GPC
WALSALL COUNCIL,HTTP://OPENDATACOMMUNITIES.ORG/ID/METROPOLITAN-DISTRICT-COUNCIL/WALSALL,30/09/2020,ECONOMY & ENVIRONMENT,THE POST OFFICE,08/07/2020,H59620200709XOKIDYCRL-2,1.23,YEI (IMPACT) PROGRAMME-PROFESSIONAL FEES & SERVICES,POSTAL SERVICES - GOVERNMENT ONLY,GPC
WALSALL COUNCIL,HTTP://OPENDATACOMMUNITIES.ORG/ID/METROPOLITAN-DISTRICT-COUNCIL/WALSALL,30/09/2020,ECONOMY & ENVIRONMENT,DVLA VEHICLE TAX,08/07/2020,H59620200709XQAIKWOBW-1,617.50,FLEET-LICENCES FOR VEHICLES,TAX PAYMENTS,GPC
WALSALL COUNCIL,HTTP://OPENDATACOMMUNITIES.ORG/ID/METROPOLITAN-DISTRICT-COUNCIL/WALSALL,30/09/2020,RESOURCES & TRANSFORMATION,JOHAL DAIRIES LTD,08/07/2020,H59620200709XZJPWCOQO-1,16.12,CATERING - SCHOOLS-FOOD & DRINK SUPPLIES,OTHER NONDURABLE GOODS,GPC
WALSALL COUNCIL,HTTP://OPENDATACOMMUNITIES.ORG/ID/METROPOLITAN-DISTRICT-COUNCIL/WALSALL,30/09/2020,CHILDRENS SERVICES,HOBBYCRAFT,08/07/2020,H59620200709YDARXVSBE-1,216.10,EARLY HELP HUB-PROFESSIONAL SERVICES-PRIV CON,"ARTIST SUPPLY STORES, CRAFT SHOPS",GPC
WALSALL COUNCIL,HTTP://OPENDATACOMMUNITIES.ORG/ID/METROPOLITAN-DISTRICT-COUNCIL/WALSALL,30/09/2020,CHILDRENS SERVICES,WALSALL COUNCIL,08/07/2020,H59620200709YISJBJORD-1,17.00,SAFEGUARDING & FAMILY SUPPORT-FEES & LICENCES,GOVERNMENT SERVICES,GPC
WALSALL COUNCIL,HTTP://OPENDATACOMMUNITIES.ORG/ID/METROPOLITAN-DISTRICT-COUNCIL/WALSALL,30/09/2020,CHILDRENS SERVICES,ASDA SUPERSTORE,08/07/2020,H59620200709YJQVBWQQD-1,18.00,BREAKFAST CLUB-MATERIALS,GROCERY STORES AND SUPERMARKETS,GPC
WALSALL COUNCIL,HTTP://OPENDATACOMMUNITIES.ORG/ID/METROPOLITAN-DISTRICT-COUNCIL/WALSALL,30/09/2020,ECONOMY & ENVIRONMENT,WWW.TARDISENVIRONMENTA,08/07/2020,H59620200709YKVMKBTXL-1,120.00,WALSALL MARKET-MATERIALS,"UTILITIES - ELECTRIC, GAS, SANITARY & WATER",GPC
WALSALL COUNCIL,HTTP://OPENDATACOMMUNITIES.ORG/ID/METROPOLITAN-DISTRICT-COUNCIL/WALSALL,30/09/2020,RESOURCES & TRANSFORMATION,JOHAL DAIRIES LTD,08/07/2020,H59620200709YRIILUPKI-1,5.64,CATERING - SCHOOLS-FOOD & DRINK SUPPLIES,OTHER NONDURABLE GOODS,GPC
WALSALL COUNCIL,HTTP://OPENDATACOMMUNITIES.ORG/ID/METROPOLITAN-DISTRICT-COUNCIL/WALSALL,30/09/2020,CHILDRENS SERVICES,WALSALL COUNCIL,08/07/2020,H59620200709ZXFQRGGYN-1,17.00,SAFEGUARDING & FAMILY SUPPORT-FEES & LICENCES,GOVERNMENT SERVICES,GPC
WALSALL COUNCIL,HTTP://OPENDATACOMMUNITIES.ORG/ID/METROPOLITAN-DISTRICT-COUNCIL/WALSALL,30/09/2020,CHILDRENS SERVICES,AMZNMKTPLACE,09/07/2020,H59620200710ADBYIRPWN-1,19.99,EARLY YEARS DEPARTMENT-MATERIALS,MISCELLANEOUS AND SPECIALTY RETAIL STORES,GPC
WALSALL COUNCIL,HTTP://OPENDATACOMMUNITIES.ORG/ID/METROPOLITAN-DISTRICT-COUNCIL/WALSALL,30/09/2020,RESOURCES & TRANSFORMATION,ARTHUR BRETT CATER,09/07/2020,H59620200710AXRIBQYEP-1,126.38,CATERING - SCHOOLS-FOOD & DRINK SUPPLIES,MISCELLANEOUS FOOD STORES & CONVENIENCE STORES,GPC
WALSALL COUNCIL,HTTP://OPENDATACOMMUNITIES.ORG/ID/METROPOLITAN-DISTRICT-COUNCIL/WALSALL,30/09/2020,CHILDRENS SERVICES,IZ *THE CREATION STATION,09/07/2020,H59620200710AZHLVVORY-1,87.90,EARLY HELP HUB-EXTERNAL PRINTING SERVICES,"COMMERCIAL ART, GRAPHICS, PHOTOGRAPHY ",GPC
WALSALL COUNCIL,HTTP://OPENDATACOMMUNITIES.ORG/ID/METROPOLITAN-DISTRICT-COUNCIL/WALSALL,30/09/2020,RESOURCES & TRANSFORMATION,BLAKEMORE FOODSERVICE,09/07/2020,H59620200710BGTCJPWYO-1,101.53,CATERING - SCHOOLS-FOOD & DRINK SUPPLIES,CATERERS,GPC
WALSALL COUNCIL,HTTP://OPENDATACOMMUNITIES.ORG/ID/METROPOLITAN-DISTRICT-COUNCIL/WALSALL,30/09/2020,RESOURCES & TRANSFORMATION,BLAKEMORE FOODSERVICE,09/07/2020,H59620200710BGTCJPWYO-2,17.66,CATERING - SCHOOLS-FOOD & DRINK SUPPLIES,CATERERS,GPC
WALSALL COUNCIL,HTTP://OPENDATACOMMUNITIES.ORG/ID/METROPOLITAN-DISTRICT-COUNCIL/WALSALL,30/09/2020,RESOURCES & TRANSFORMATION,BLAKEMORE FOODSERVICE,09/07/2020,H59620200710BVJEEYTYW-1,102.84,CATERING - SCHOOLS-FOOD & DRINK SUPPLIES,CATERERS,GPC
WALSALL COUNCIL,HTTP://OPENDATACOMMUNITIES.ORG/ID/METROPOLITAN-DISTRICT-COUNCIL/WALSALL,30/09/2020,RESOURCES & TRANSFORMATION,NOBISCO LIMITED,09/07/2020,H59620200710CDICLKJWQ-1,120.31,CATERING - SCHOOLS-FOOD & DRINK SUPPLIES,OTHER INDUSTRIAL SUPPLIES,GPC
WALSALL COUNCIL,HTTP://OPENDATACOMMUNITIES.ORG/ID/METROPOLITAN-DISTRICT-COUNCIL/WALSALL,30/09/2020,RESOURCES & TRANSFORMATION,BLAKEMORE FOODSERVICE,09/07/2020,H59620200710CIRQQCJXX-1,163.47,CATERING - SCHOOLS-FOOD & DRINK SUPPLIES,CATERERS,GPC
WALSALL COUNCIL,HTTP://OPENDATACOMMUNITIES.ORG/ID/METROPOLITAN-DISTRICT-COUNCIL/WALSALL,30/09/2020,CHILDRENS SERVICES,AMAZON.CO.UK*WH4AV41C5,09/07/2020,H59620200710CLIVNREMT-1,2.50,EARLY YEARS DEPARTMENT-MATERIALS,OTHER DIRECT MARKETING-OTHER DIRECT MARKETERS,GPC
WALSALL COUNCIL,HTTP://OPENDATACOMMUNITIES.ORG/ID/METROPOLITAN-DISTRICT-COUNCIL/WALSALL,30/09/2020,RESOURCES & TRANSFORMATION,123 REG LTD,09/07/2020,H59620200710CUILNQITN-1,23.98,APPLICATIONS-COMPUTER EQUIPMENT,DIRECT MARKETING CONTINUITY SUBSCRIPTION MERCHANTS,GPC
WALSALL COUNCIL,HTTP://OPENDATACOMMUNITIES.ORG/ID/METROPOLITAN-DISTRICT-COUNCIL/WALSALL,30/09/2020,RESOURCES & TRANSFORMATION,ARTHUR BRETT CATER,09/07/2020,H59620200710DVJKJWVTY-1,17.28,CATERING - SCHOOLS-FOOD & DRINK SUPPLIES,MISCELLANEOUS FOOD STORES & CONVENIENCE STORES,GPC
WALSALL COUNCIL,HTTP://OPENDATACOMMUNITIES.ORG/ID/METROPOLITAN-DISTRICT-COUNCIL/WALSALL,30/09/2020,CHILDRENS SERVICES,AQUAID WATERCOOLERS,09/07/2020,H59620200710DWQQCJXPO-1,74.40,VIRTUAL SCHOOL - CENTRAL PUPIL-FOOD & DRINK SUPPLIES,MISCELLANEOUS GENERAL MERCHANDISE,GPC
WALSALL COUNCIL,HTTP://OPENDATACOMMUNITIES.ORG/ID/METROPOLITAN-DISTRICT-COUNCIL/WALSALL,30/09/2020,RESOURCES & TRANSFORMATION,NOBISCO LIMITED,09/07/2020,H59620200710EHBYCQVMN-1,18.36,CATERING - SCHOOLS-FOOD & DRINK SUPPLIES,OTHER INDUSTRIAL SUPPLIES,GPC
WALSALL COUNCIL,HTTP://OPENDATACOMMUNITIES.ORG/ID/METROPOLITAN-DISTRICT-COUNCIL/WALSALL,30/09/2020,CHILDRENS SERVICES - SCHOOLS,AMZNMKTPLACE,09/07/2020,H59620200710ELYGVEPPY-1,7.48,ICT LEARNING RESOURCES-MATERIALS,MISCELLANEOUS AND SPECIALTY RETAIL STORES,GPC
WALSALL COUNCIL,HTTP://OPENDATACOMMUNITIES.ORG/ID/METROPOLITAN-DISTRICT-COUNCIL/WALSALL,30/09/2020,RESOURCES & TRANSFORMATION,ARTHUR BRETT CATER,09/07/2020,H59620200710FYUHBCLWO-1,5.85,CATERING - SCHOOLS-FOOD & DRINK SUPPLIES,MISCELLANEOUS FOOD STORES & CONVENIENCE STORES,GPC
WALSALL COUNCIL,HTTP://OPENDATACOMMUNITIES.ORG/ID/METROPOLITAN-DISTRICT-COUNCIL/WALSALL,30/09/2020,CHILDRENS SERVICES,APPLE.COM/UK,09/07/2020,H59620200710GGNSZSKSN-1,698.00,SCIENCE-MATERIALS,ELECTRONIC SALES,GPC
WALSALL COUNCIL,HTTP://OPENDATACOMMUNITIES.ORG/ID/METROPOLITAN-DISTRICT-COUNCIL/WALSALL,30/09/2020,CHILDRENS SERVICES - SCHOOLS,AMZNMKTPLACE,09/07/2020,H59620200710GRCQEHCWN-1,15.98,CHUCKERY PRIMARY SCHOOL-GROUNDS MAINTENANCE,MISCELLANEOUS AND SPECIALTY RETAIL STORES,GPC
WALSALL COUNCIL,HTTP://OPENDATACOMMUNITIES.ORG/ID/METROPOLITAN-DISTRICT-COUNCIL/WALSALL,30/09/2020,RESOURCES & TRANSFORMATION,ARTHUR BRETT CATER,09/07/2020,H59620200710GSPWLVHBW-1,44.23,CATERING - SCHOOLS-FOOD & DRINK SUPPLIES,MISCELLANEOUS FOOD STORES & CONVENIENCE STORES,GPC
WALSALL COUNCIL,HTTP://OPENDATACOMMUNITIES.ORG/ID/METROPOLITAN-DISTRICT-COUNCIL/WALSALL,30/09/2020,RESOURCES & TRANSFORMATION,ARTHUR BRETT CATER,09/07/2020,H59620200710HULTIWPBV-1,49.15,CATERING - SCHOOLS-FOOD & DRINK SUPPLIES,MISCELLANEOUS FOOD STORES & CONVENIENCE STORES,GPC
WALSALL COUNCIL,HTTP://OPENDATACOMMUNITIES.ORG/ID/METROPOLITAN-DISTRICT-COUNCIL/WALSALL,30/09/2020,RESOURCES & TRANSFORMATION,NOBISCO LIMITED,09/07/2020,H59620200710IGDGYRDQY-1,44.82,CATERING - SCHOOLS-FOOD & DRINK SUPPLIES,OTHER INDUSTRIAL SUPPLIES,GPC
WALSALL COUNCIL,HTTP://OPENDATACOMMUNITIES.ORG/ID/METROPOLITAN-DISTRICT-COUNCIL/WALSALL,30/09/2020,RESOURCES & TRANSFORMATION,ARTHUR BRETT CATER,09/07/2020,H59620200710ILRMBBPJJ-1,14.99,CATERING - SCHOOLS-FOOD & DRINK SUPPLIES,MISCELLANEOUS FOOD STORES & CONVENIENCE STORES,GPC
WALSALL COUNCIL,HTTP://OPENDATACOMMUNITIES.ORG/ID/METROPOLITAN-DISTRICT-COUNCIL/WALSALL,30/09/2020,RESOURCES & TRANSFORMATION,METRO INNS WALSALL,09/07/2020,H59620200710IUYZVPQHJ-1,38.00,BED & BREAKFAST PAYMENTS-HOTEL ACCOMMODATION-EMPLOYEES,"HOTELS, MOTELS, RESORTS",GPC
WALSALL COUNCIL,HTTP://OPENDATACOMMUNITIES.ORG/ID/METROPOLITAN-DISTRICT-COUNCIL/WALSALL,30/09/2020,RESOURCES & TRANSFORMATION,AMZNMKTPLACE,09/07/2020,H59620200710JBYQPEQJH-1,29.98,AREA PARTNERSHIPS-STATIONERY & GENERAL OFFICE SU,MISCELLANEOUS AND SPECIALTY RETAIL STORES,GPC
WALSALL COUNCIL,HTTP://OPENDATACOMMUNITIES.ORG/ID/METROPOLITAN-DISTRICT-COUNCIL/WALSALL,30/09/2020,CHILDRENS SERVICES,AMZNMKTPLACE,09/07/2020,H59620200710JEBLJYNFQ-1,31.28,EYFS - RESOURCES-MATERIALS,MISCELLANEOUS AND SPECIALTY RETAIL STORES,GPC
WALSALL COUNCIL,HTTP://OPENDATACOMMUNITIES.ORG/ID/METROPOLITAN-DISTRICT-COUNCIL/WALSALL,30/09/2020,ECONOMY & ENVIRONMENT,EXPRESS BONDING SE,09/07/2020,H59620200710JISFQTAQS-1,1146.00,DEPOT-MATERIALS,OTHER COMMERCIAL EQUIPMENT,GPC
WALSALL COUNCIL,HTTP://OPENDATACOMMUNITIES.ORG/ID/METROPOLITAN-DISTRICT-COUNCIL/WALSALL,30/09/2020,RESOURCES & TRANSFORMATION,WWW.SCC.COM,09/07/2020,H59620200710JJEJQJVHG-1,820.08,RECHARGEABLE EQUIPMENT-COMPUTER EQUIPMENT,"COMPUTERS, COMPUTER PERIPHERAL EQUIPMENT, SOFTWARE",GPC
WALSALL COUNCIL,HTTP://OPENDATACOMMUNITIES.ORG/ID/METROPOLITAN-DISTRICT-COUNCIL/WALSALL,30/09/2020,RESOURCES & TRANSFORMATION,J2 EFAX PLUS SERVICE,09/07/2020,H59620200710JKJOCBVHI-1,7.20,RECHARGEABLE EQUIPMENT-COMPUTER EQUIPMENT,DIRECT MARKETING CONTINUITY SUBSCRIPTION MERCHANTS,GPC
WALSALL COUNCIL,HTTP://OPENDATACOMMUNITIES.ORG/ID/METROPOLITAN-DISTRICT-COUNCIL/WALSALL,30/09/2020,RESOURCES & TRANSFORMATION,ARTHUR BRETT CATER,09/07/2020,H59620200710JPQRSWXPU-1,5.06,CATERING - SCHOOLS-FOOD & DRINK SUPPLIES,MISCELLANEOUS FOOD STORES & CONVENIENCE STORES,GPC
WALSALL COUNCIL,HTTP://OPENDATACOMMUNITIES.ORG/ID/METROPOLITAN-DISTRICT-COUNCIL/WALSALL,30/09/2020,RESOURCES & TRANSFORMATION,ARTHUR BRETT CATER,09/07/2020,H59620200710KBJMWXDPZ-1,82.71,CATERING - SCHOOLS-FOOD & DRINK SUPPLIES,MISCELLANEOUS FOOD STORES & CONVENIENCE STORES,GPC
WALSALL COUNCIL,HTTP://OPENDATACOMMUNITIES.ORG/ID/METROPOLITAN-DISTRICT-COUNCIL/WALSALL,30/09/2020,RESOURCES & TRANSFORMATION,NOBISCO LIMITED,09/07/2020,H59620200710KQSXXMDPG-1,26.75,CATERING - SCHOOLS-FOOD & DRINK SUPPLIES,OTHER INDUSTRIAL SUPPLIES,GPC
WALSALL COUNCIL,HTTP://OPENDATACOMMUNITIES.ORG/ID/METROPOLITAN-DISTRICT-COUNCIL/WALSALL,30/09/2020,RESOURCES & TRANSFORMATION,ARTHUR BRETT CATER,09/07/2020,H59620200710KSBVTOULD-1,9.76,CATERING - SCHOOLS-FOOD & DRINK SUPPLIES,MISCELLANEOUS FOOD STORES & CONVENIENCE STORES,GPC
WALSALL COUNCIL,HTTP://OPENDATACOMMUNITIES.ORG/ID/METROPOLITAN-DISTRICT-COUNCIL/WALSALL,30/09/2020,RESOURCES & TRANSFORMATION,ARTHUR BRETT CATER,09/07/2020,H59620200710LBMINZLNI-1,11.46,CATERING - SCHOOLS-FOOD & DRINK SUPPLIES,MISCELLANEOUS FOOD STORES & CONVENIENCE STORES,GPC
WALSALL COUNCIL,HTTP://OPENDATACOMMUNITIES.ORG/ID/METROPOLITAN-DISTRICT-COUNCIL/WALSALL,30/09/2020,CHILDRENS SERVICES,AMZNMKTPLACE,09/07/2020,H59620200710LQJHOHXRN-1,12.45,EYFS - RESOURCES-MATERIALS,MISCELLANEOUS AND SPECIALTY RETAIL STORES,GPC
WALSALL COUNCIL,HTTP://OPENDATACOMMUNITIES.ORG/ID/METROPOLITAN-DISTRICT-COUNCIL/WALSALL,30/09/2020,RESOURCES & TRANSFORMATION,METRO INNS WALSALL,09/07/2020,H59620200710LRETPRXFM-1,38.00,BED & BREAKFAST PAYMENTS-BED & BREAKFAST PAYMENTS,"HOTELS, MOTELS, RESORTS",GPC
WALSALL COUNCIL,HTTP://OPENDATACOMMUNITIES.ORG/ID/METROPOLITAN-DISTRICT-COUNCIL/WALSALL,30/09/2020,CHILDRENS SERVICES,AMAZON.CO.UK*U96L45AY5,09/07/2020,H59620200710LRHSTSWNT-1,13.00,ENGLISH DEPARTMENT-LIBRARY BOOKS,OTHER DIRECT MARKETING-OTHER DIRECT MARKETERS,GPC
WALSALL COUNCIL,HTTP://OPENDATACOMMUNITIES.ORG/ID/METROPOLITAN-DISTRICT-COUNCIL/WALSALL,30/09/2020,RESOURCES & TRANSFORMATION,ARTHUR BRETT CATER,09/07/2020,H59620200710LRMBWMIKG-1,18.76,CATERING - SCHOOLS-FOOD & DRINK SUPPLIES,MISCELLANEOUS FOOD STORES & CONVENIENCE STORES,GPC
WALSALL COUNCIL,HTTP://OPENDATACOMMUNITIES.ORG/ID/METROPOLITAN-DISTRICT-COUNCIL/WALSALL,30/09/2020,RESOURCES & TRANSFORMATION,ARTHUR BRETT CATER,09/07/2020,H59620200710LSIPYXXRA-1,9.98,CATERING - SCHOOLS-FOOD & DRINK SUPPLIES,MISCELLANEOUS FOOD STORES & CONVENIENCE STORES,GPC
WALSALL COUNCIL,HTTP://OPENDATACOMMUNITIES.ORG/ID/METROPOLITAN-DISTRICT-COUNCIL/WALSALL,30/09/2020,CHILDRENS SERVICES,AMZNMKTPLACE,09/07/2020,H59620200710LUTXEOJDA-1,24.98,EYFS - RESOURCES-MATERIALS,MISCELLANEOUS AND SPECIALTY RETAIL STORES,GPC
WALSALL COUNCIL,HTTP://OPENDATACOMMUNITIES.ORG/ID/METROPOLITAN-DISTRICT-COUNCIL/WALSALL,30/09/2020,RESOURCES & TRANSFORMATION,ARTHUR BRETT CATER,09/07/2020,H59620200710LYHWTKQHV-1,49.71,CATERING - SCHOOLS-FOOD & DRINK SUPPLIES,MISCELLANEOUS FOOD STORES & CONVENIENCE STORES,GPC
WALSALL COUNCIL,HTTP://OPENDATACOMMUNITIES.ORG/ID/METROPOLITAN-DISTRICT-COUNCIL/WALSALL,30/09/2020,CHILDRENS SERVICES,BAKER ROSS,09/07/2020,H59620200710MDLKCRHQG-1,29.35,EARLY HELP HUB-PROFESSIONAL SERVICES-PRIV CON,"ARTIST SUPPLY STORES, CRAFT SHOPS",GPC
WALSALL COUNCIL,HTTP://OPENDATACOMMUNITIES.ORG/ID/METROPOLITAN-DISTRICT-COUNCIL/WALSALL,30/09/2020,CHILDRENS SERVICES - SCHOOLS,BT BILL PAYMENT 2,09/07/2020,H59620200710MKEVPZGEV-1,109.92,ADMINISTRATIVE SUPPLIES-LANDLINE PHONES,TELECOMMUNICATION EQUIPMENT & SALES,GPC
WALSALL COUNCIL,HTTP://OPENDATACOMMUNITIES.ORG/ID/METROPOLITAN-DISTRICT-COUNCIL/WALSALL,30/09/2020,ECONOMY & ENVIRONMENT,RICARDO-AEA LTD,09/07/2020,H59620200710NNMFMQTVG-1,102.00,POLLUTION DIVISION-CONSULTANT FEES,"CONSULTING, MANAGEMENT, AND PR SERVICES",GPC
WALSALL COUNCIL,HTTP://OPENDATACOMMUNITIES.ORG/ID/METROPOLITAN-DISTRICT-COUNCIL/WALSALL,30/09/2020,RESOURCES & TRANSFORMATION,ARTHUR BRETT CATER,09/07/2020,H59620200710OETGFDTJV-1,14.47,CATERING - SCHOOLS-FOOD & DRINK SUPPLIES,MISCELLANEOUS FOOD STORES & CONVENIENCE STORES,GPC
WALSALL COUNCIL,HTTP://OPENDATACOMMUNITIES.ORG/ID/METROPOLITAN-DISTRICT-COUNCIL/WALSALL,30/09/2020,CHILDRENS SERVICES,POST OFFICE COUNTER,09/07/2020,H59620200710OFMNAHVCM-1,15.04,LOOKED AFTER CHILDRENS SOCIAL -POSTAGES & COURIER SERVICES,POSTAL SERVICES - GOVERNMENT ONLY,GPC
WALSALL COUNCIL,HTTP://OPENDATACOMMUNITIES.ORG/ID/METROPOLITAN-DISTRICT-COUNCIL/WALSALL,30/09/2020,CHILDRENS SERVICES,AMZNMKTPLACE AMAZON.CO.UK,09/07/2020,H59620200710PGDGINBOL-1,5.76,ADMINISTRATIVE SUPPLIES-MATERIALS,MISCELLANEOUS AND SPECIALTY RETAIL STORES,GPC
WALSALL COUNCIL,HTTP://OPENDATACOMMUNITIES.ORG/ID/METROPOLITAN-DISTRICT-COUNCIL/WALSALL,30/09/2020,CHILDRENS SERVICES,PAYPAL *TOWSURE,09/07/2020,H59620200710PGICJQVGS-1,35.90,ELMWOOD SCHOOL-TRANSFER PAYMENTS-OTHER SCHOOL,SPORTING GOODS STORES,GPC
WALSALL COUNCIL,HTTP://OPENDATACOMMUNITIES.ORG/ID/METROPOLITAN-DISTRICT-COUNCIL/WALSALL,30/09/2020,RESOURCES & TRANSFORMATION,FLEXTRONICS,09/07/2020,H59620200710PIJGWFPTF-1,793.65,WPP PROGRAMME MANAGEMENT OFFIC-COMPUTER EQUIPMENT,"OTHER COMPUTER MAINTENANCE, REPAIR",GPC
WALSALL COUNCIL,HTTP://OPENDATACOMMUNITIES.ORG/ID/METROPOLITAN-DISTRICT-COUNCIL/WALSALL,30/09/2020,ECONOMY & ENVIRONMENT,B&M 402 - BROWNHILLS,09/07/2020,H59620200710PNCRJKGVG-1,10.48,BROWNHILLS LIBRARY-CLEANING MATERIALS,MISCELLANEOUS GENERAL MERCHANDISE,GPC
WALSALL COUNCIL,HTTP://OPENDATACOMMUNITIES.ORG/ID/METROPOLITAN-DISTRICT-COUNCIL/WALSALL,30/09/2020,CHILDRENS SERVICES,PAYPAL *BAKER ROSS,09/07/2020,H59620200710QISYYWNYP-1,75.71,VIRTUAL SCHOOL - CENTRAL PUPIL-OTHER EXPENSES,"GAME, TOY, AND HOBBY SHOPS",GPC
WALSALL COUNCIL,HTTP://OPENDATACOMMUNITIES.ORG/ID/METROPOLITAN-DISTRICT-COUNCIL/WALSALL,30/09/2020,RESOURCES & TRANSFORMATION,ROYAL MAIL SAMEDAY,09/07/2020,H59620200710QRBSOXALQ-1,30.00,LAW LIBRARY-STATIONERY & GENERAL OFFICE SU,POSTAL SERVICES - GOVERNMENT ONLY,GPC
WALSALL COUNCIL,HTTP://OPENDATACOMMUNITIES.ORG/ID/METROPOLITAN-DISTRICT-COUNCIL/WALSALL,30/09/2020,CHILDRENS SERVICES - SCHOOLS,AMAZON.CO.UK*4P0NU6Y95,09/07/2020,H59620200710RWPRUKBJG-1,11.54,E19-MATERIALS,OTHER DIRECT MARKETING-OTHER DIRECT MARKETERS,GPC
WALSALL COUNCIL,HTTP://OPENDATACOMMUNITIES.ORG/ID/METROPOLITAN-DISTRICT-COUNCIL/WALSALL,30/09/2020,CHILDRENS SERVICES - SCHOOLS,AMZNMKTPLACE AMAZON.CO.UK,09/07/2020,H59620200710SCHYPDACA-1,5.98,E19-MATERIALS,MISCELLANEOUS AND SPECIALTY RETAIL STORES,GPC
WALSALL COUNCIL,HTTP://OPENDATACOMMUNITIES.ORG/ID/METROPOLITAN-DISTRICT-COUNCIL/WALSALL,30/09/2020,CHILDRENS SERVICES,HSEDOCS.COM,09/07/2020,H59620200710SSQOXJBTF-1,65.87,SALISBURY PRIMARY SCHOOL-EXTERNAL TRAINING,PROFESSIONAL SERVICES,GPC
WALSALL COUNCIL,HTTP://OPENDATACOMMUNITIES.ORG/ID/METROPOLITAN-DISTRICT-COUNCIL/WALSALL,30/09/2020,RESOURCES & TRANSFORMATION,NOBISCO LIMITED,09/07/2020,H59620200710TIBUJMJLC-1,338.98,CATERING - SCHOOLS-PURCHASE OF FURNITURE & EQUIPM,OTHER INDUSTRIAL SUPPLIES,GPC
WALSALL COUNCIL,HTTP://OPENDATACOMMUNITIES.ORG/ID/METROPOLITAN-DISTRICT-COUNCIL/WALSALL,30/09/2020,CHILDRENS SERVICES,AMZNMKTPLACE,09/07/2020,H59620200710UXTYLURIP-1,8.97,EARLY HELP HUB-PROFESSIONAL SERVICES-PRIV CON,MISCELLANEOUS AND SPECIALTY RETAIL STORES,GPC
WALSALL COUNCIL,HTTP://OPENDATACOMMUNITIES.ORG/ID/METROPOLITAN-DISTRICT-COUNCIL/WALSALL,30/09/2020,RESOURCES & TRANSFORMATION,ARTHUR BRETT CATER,09/07/2020,H59620200710VEDUQPEUX-1,25.18,CATERING - SCHOOLS-FOOD & DRINK SUPPLIES,MISCELLANEOUS FOOD STORES & CONVENIENCE STORES,GPC
WALSALL COUNCIL,HTTP://OPENDATACOMMUNITIES.ORG/ID/METROPOLITAN-DISTRICT-COUNCIL/WALSALL,30/09/2020,RESOURCES & TRANSFORMATION,ARTHUR BRETT CATER,09/07/2020,H59620200710VFDZNNOFB-1,49.06,CATERING - SCHOOLS-FOOD & DRINK SUPPLIES,MISCELLANEOUS FOOD STORES & CONVENIENCE STORES,GPC
WALSALL COUNCIL,HTTP://OPENDATACOMMUNITIES.ORG/ID/METROPOLITAN-DISTRICT-COUNCIL/WALSALL,30/09/2020,RESOURCES & TRANSFORMATION,ARTHUR BRETT CATER,09/07/2020,H59620200710VRYIPMMTY-1,36.98,CATERING - SCHOOLS-FOOD & DRINK SUPPLIES,MISCELLANEOUS FOOD STORES & CONVENIENCE STORES,GPC
WALSALL COUNCIL,HTTP://OPENDATACOMMUNITIES.ORG/ID/METROPOLITAN-DISTRICT-COUNCIL/WALSALL,30/09/2020,CHILDRENS SERVICES,WWW.THEWORKS.CO.UK,09/07/2020,H59620200710VTNCHOPDL-1,35.00,EARLY HELP HUB-PROFESSIONAL SERVICES-PRIV CON,DISCOUNT STORES,GPC
WALSALL COUNCIL,HTTP://OPENDATACOMMUNITIES.ORG/ID/METROPOLITAN-DISTRICT-COUNCIL/WALSALL,30/09/2020,RESOURCES & TRANSFORMATION,ARTHUR BRETT CATER,09/07/2020,H59620200710WCMKAKPYH-1,85.61,CATERING - SCHOOLS-FOOD & DRINK SUPPLIES,MISCELLANEOUS FOOD STORES & CONVENIENCE STORES,GPC
WALSALL COUNCIL,HTTP://OPENDATACOMMUNITIES.ORG/ID/METROPOLITAN-DISTRICT-COUNCIL/WALSALL,30/09/2020,CHILDRENS SERVICES,WWW.THEWORKS.CO.UK,09/07/2020,H59620200710WMOXMUQKB-1,71.00,EARLY HELP HUB-PROFESSIONAL SERVICES-PRIV CON,DISCOUNT STORES,GPC
WALSALL COUNCIL,HTTP://OPENDATACOMMUNITIES.ORG/ID/METROPOLITAN-DISTRICT-COUNCIL/WALSALL,30/09/2020,RESOURCES & TRANSFORMATION,NOBISCO LIMITED,09/07/2020,H59620200710XBNASDGPR-1,33.67,CATERING - SCHOOLS-FOOD & DRINK SUPPLIES,OTHER INDUSTRIAL SUPPLIES,GPC
WALSALL COUNCIL,HTTP://OPENDATACOMMUNITIES.ORG/ID/METROPOLITAN-DISTRICT-COUNCIL/WALSALL,30/09/2020,CHILDRENS SERVICES,HTTP://WWW.FORWARDPRODUC,09/07/2020,H59620200710XKAWDGVCG-1,16.50,EARLY YEARS DEPARTMENT-MATERIALS,"STATIONERY, OFFICE SUPPLIES AND WRITING PAPER",GPC
WALSALL COUNCIL,HTTP://OPENDATACOMMUNITIES.ORG/ID/METROPOLITAN-DISTRICT-COUNCIL/WALSALL,30/09/2020,RESOURCES & TRANSFORMATION,AMAZON.CO.UK*9Y7JR78W5,09/07/2020,H59620200710YOYHIWZPJ-1,32.00,LAW LIBRARY-STATIONERY & GENERAL OFFICE SU,OTHER DIRECT MARKETING-OTHER DIRECT MARKETERS,GPC
WALSALL COUNCIL,HTTP://OPENDATACOMMUNITIES.ORG/ID/METROPOLITAN-DISTRICT-COUNCIL/WALSALL,30/09/2020,RESOURCES & TRANSFORMATION,ARTHUR BRETT CATER,09/07/2020,H59620200710YPNTCKSZS-1,5.06,CATERING - SCHOOLS-FOOD & DRINK SUPPLIES,MISCELLANEOUS FOOD STORES & CONVENIENCE STORES,GPC
WALSALL COUNCIL,HTTP://OPENDATACOMMUNITIES.ORG/ID/METROPOLITAN-DISTRICT-COUNCIL/WALSALL,30/09/2020,CHILDRENS SERVICES,AMZNMKTPLACE,09/07/2020,H59620200710YVLOVHPQD-1,9.99,EYFS - RESOURCES-MATERIALS,MISCELLANEOUS AND SPECIALTY RETAIL STORES,GPC
WALSALL COUNCIL,HTTP://OPENDATACOMMUNITIES.ORG/ID/METROPOLITAN-DISTRICT-COUNCIL/WALSALL,30/09/2020,CHILDRENS SERVICES,AMZNMKTPLACE AMAZON.CO.UK,09/07/2020,H59620200710ZHZRFVVUI-1,25.84,ADMINISTRATIVE SUPPLIES-MATERIALS,MISCELLANEOUS AND SPECIALTY RETAIL STORES,GPC
WALSALL COUNCIL,HTTP://OPENDATACOMMUNITIES.ORG/ID/METROPOLITAN-DISTRICT-COUNCIL/WALSALL,30/09/2020,RESOURCES & TRANSFORMATION,TESCO STORES 4357,09/07/2020,H59620200710ZOPPUYIQD-1,88.60,WALSALL CRISIS SUPPORT SCHEME-CRISIS SUPPORT PAYMENTS,GROCERY STORES AND SUPERMARKETS,GPC
WALSALL COUNCIL,HTTP://OPENDATACOMMUNITIES.ORG/ID/METROPOLITAN-DISTRICT-COUNCIL/WALSALL,30/09/2020,RESOURCES & TRANSFORMATION,ASDA,10/07/2020,H59620200711AOLFZXALV-1,47.50,WALSALL CRISIS SUPPORT SCHEME-CRISIS SUPPORT PAYMENTS,GROCERY STORES AND SUPERMARKETS,GPC
WALSALL COUNCIL,HTTP://OPENDATACOMMUNITIES.ORG/ID/METROPOLITAN-DISTRICT-COUNCIL/WALSALL,30/09/2020,CHILDRENS SERVICES,AMZNMKTPLACE,10/07/2020,H59620200711APSYBNCVI-1,29.99,EYFS - RESOURCES-MATERIALS,MISCELLANEOUS AND SPECIALTY RETAIL STORES,GPC
WALSALL COUNCIL,HTTP://OPENDATACOMMUNITIES.ORG/ID/METROPOLITAN-DISTRICT-COUNCIL/WALSALL,30/09/2020,RESOURCES & TRANSFORMATION,J9 ACCOMODATION,10/07/2020,H59620200711AQTKACEQU-1,390.00,ADVICE & GUIDANCE SERVICE-FEES & LICENCES,REAL ESTATE MANAGERS - RENTALS,GPC
WALSALL COUNCIL,HTTP://OPENDATACOMMUNITIES.ORG/ID/METROPOLITAN-DISTRICT-COUNCIL/WALSALL,30/09/2020,ADULT SOCIAL CARE,ESPO,10/07/2020,H59620200711ARZVYMNCK-1,1470.96,ASC PARTNERSHIPS-CLEANING MATERIALS,GOVERNMENT SERVICES,GPC
WALSALL COUNCIL,HTTP://OPENDATACOMMUNITIES.ORG/ID/METROPOLITAN-DISTRICT-COUNCIL/WALSALL,30/09/2020,RESOURCES & TRANSFORMATION,METRO INNS WALSALL,10/07/2020,H59620200711BEVHJQWGF-1,38.00,BED & BREAKFAST PAYMENTS-BED & BREAKFAST PAYMENTS,"HOTELS, MOTELS, RESORTS",GPC
WALSALL COUNCIL,HTTP://OPENDATACOMMUNITIES.ORG/ID/METROPOLITAN-DISTRICT-COUNCIL/WALSALL,30/09/2020,CHILDRENS SERVICES,AMZNMKTPLACE,10/07/2020,H59620200711CUBNDOIHL-1,22.94,ICT-MATERIALS,MISCELLANEOUS AND SPECIALTY RETAIL STORES,GPC
WALSALL COUNCIL,HTTP://OPENDATACOMMUNITIES.ORG/ID/METROPOLITAN-DISTRICT-COUNCIL/WALSALL,30/09/2020,RESOURCES & TRANSFORMATION,AMZNMKTPLACE,10/07/2020,H59620200711DSGRFHWRN-1,55.15,CENTRAL OFFICE ACCOMMODATION-OPERATIONAL MAINTENANCE,MISCELLANEOUS AND SPECIALTY RETAIL STORES,GPC
WALSALL COUNCIL,HTTP://OPENDATACOMMUNITIES.ORG/ID/METROPOLITAN-DISTRICT-COUNCIL/WALSALL,30/09/2020,CHILDRENS SERVICES,POST OFFICE COUNTER,10/07/2020,H59620200711ESVQRMPIW-1,2.06,LOOKED AFTER CHILDRENS SOCIAL -POSTAGES & COURIER SERVICES,POSTAL SERVICES - GOVERNMENT ONLY,GPC
WALSALL COUNCIL,HTTP://OPENDATACOMMUNITIES.ORG/ID/METROPOLITAN-DISTRICT-COUNCIL/WALSALL,30/09/2020,CHILDRENS SERVICES,AMAZON.CO.UK*Y18PF10O5 AM,10/07/2020,H59620200711FMOUFKNJA-1,29.20,EARLY HELP HUB-PROFESSIONAL SERVICES-PRIV CON,MISCELLANEOUS AND SPECIALTY RETAIL STORES,GPC
WALSALL COUNCIL,HTTP://OPENDATACOMMUNITIES.ORG/ID/METROPOLITAN-DISTRICT-COUNCIL/WALSALL,30/09/2020,RESOURCES & TRANSFORMATION,BLOXWICH HARDWARE,10/07/2020,H59620200711FNELRCCGC-1,100.39,CATERING - MANAGEMENT-MATERIALS,HARDWARE STORES,GPC
WALSALL COUNCIL,HTTP://OPENDATACOMMUNITIES.ORG/ID/METROPOLITAN-DISTRICT-COUNCIL/WALSALL,30/09/2020,CHILDRENS SERVICES,PAYPAL *RAPIDONLINE,10/07/2020,H59620200711FSRGNUWVP-1,34.10,ADMINISTRATIVE SUPPLIES-MATERIALS,HARDWARE STORES,GPC
WALSALL COUNCIL,HTTP://OPENDATACOMMUNITIES.ORG/ID/METROPOLITAN-DISTRICT-COUNCIL/WALSALL,30/09/2020,CHILDRENS SERVICES,SCHOOLLEAVERSCOMPANY.CO.U,10/07/2020,H59620200711GGLIPDOYI-1,26.45,"43A HILTON ROAD, WILLENHALL-RESIDENTS PERSONAL EXPENSES-AL","MEN'S, WOMEN'S, AND CHILDREN'S UNIFORMS",GPC
WALSALL COUNCIL,HTTP://OPENDATACOMMUNITIES.ORG/ID/METROPOLITAN-DISTRICT-COUNCIL/WALSALL,30/09/2020,CHILDRENS SERVICES,AMAZON.CO.UK*T648I5725 AM,10/07/2020,H59620200711GGPIYWYUL-1,60.00,CHILDREN'S COMMISSIONING-STATIONERY & GENERAL OFFICE SU,MISCELLANEOUS AND SPECIALTY RETAIL STORES,GPC
WALSALL COUNCIL,HTTP://OPENDATACOMMUNITIES.ORG/ID/METROPOLITAN-DISTRICT-COUNCIL/WALSALL,30/09/2020,ECONOMY & ENVIRONMENT,AMZNMKTPLACE AMAZON.CO.UK,10/07/2020,H59620200711HESJMPWKJ-1,30.69,OAK PARK-STATIONERY & GENERAL OFFICE SU,MISCELLANEOUS AND SPECIALTY RETAIL STORES,GPC
WALSALL COUNCIL,HTTP://OPENDATACOMMUNITIES.ORG/ID/METROPOLITAN-DISTRICT-COUNCIL/WALSALL,30/09/2020,CHILDRENS SERVICES,AMAZON.CO.UK*028AA2L55,10/07/2020,H59620200711HJOHTSLHD-1,7.37,CONTINGENCY-MATERIALS,OTHER DIRECT MARKETING-OTHER DIRECT MARKETERS,GPC
WALSALL COUNCIL,HTTP://OPENDATACOMMUNITIES.ORG/ID/METROPOLITAN-DISTRICT-COUNCIL/WALSALL,30/09/2020,RESOURCES & TRANSFORMATION,WWW.SCC.COM,10/07/2020,H59620200711HPIKNUKOX-1,396.52,RECHARGEABLE EQUIPMENT-COMPUTER EQUIPMENT,"COMPUTERS, COMPUTER PERIPHERAL EQUIPMENT, SOFTWARE",GPC
WALSALL COUNCIL,HTTP://OPENDATACOMMUNITIES.ORG/ID/METROPOLITAN-DISTRICT-COUNCIL/WALSALL,30/09/2020,CHILDRENS SERVICES,DUDLEY MBC (ATP),10/07/2020,H59620200711IFDBKPKWQ-1,-13.50,GENERAL MANAGEMENT SUPPORT (IN-FEES & LICENCES,OTHER RECREATION SERVICES,GPC
WALSALL COUNCIL,HTTP://OPENDATACOMMUNITIES.ORG/ID/METROPOLITAN-DISTRICT-COUNCIL/WALSALL,30/09/2020,CHILDRENS SERVICES,PPE SUPPLIES DIRECT LTD,10/07/2020,H59620200711ILSFLHOSY-1,153.00,SAFEGUARDING & FAMILY SUPPORT-PROFESSIONAL FEES & SERVICES,OTHER BUSINESS SERVICES,GPC
WALSALL COUNCIL,HTTP://OPENDATACOMMUNITIES.ORG/ID/METROPOLITAN-DISTRICT-COUNCIL/WALSALL,30/09/2020,CHILDRENS SERVICES,AMZNMKTPLACE AMAZON.CO.UK,10/07/2020,H59620200711IUQRKRATR-1,11.98,CONTINGENCY-MATERIALS,MISCELLANEOUS AND SPECIALTY RETAIL STORES,GPC
WALSALL COUNCIL,HTTP://OPENDATACOMMUNITIES.ORG/ID/METROPOLITAN-DISTRICT-COUNCIL/WALSALL,30/09/2020,ECONOMY & ENVIRONMENT,AMAZON.CO.UK*G90AY9QZ5,10/07/2020,H59620200711IXGSRMCDQ-1,13.36,WALSALL GALA CENTRE-MATERIALS,OTHER DIRECT MARKETING-OTHER DIRECT MARKETERS,GPC
WALSALL COUNCIL,HTTP://OPENDATACOMMUNITIES.ORG/ID/METROPOLITAN-DISTRICT-COUNCIL/WALSALL,30/09/2020,CHILDRENS SERVICES,B&M RETAIL,10/07/2020,H59620200711JBMZHNPNG-1,8.99,SPECIAL FACILITIES-MATERIALS,DISCOUNT STORES,GPC
WALSALL COUNCIL,HTTP://OPENDATACOMMUNITIES.ORG/ID/METROPOLITAN-DISTRICT-COUNCIL/WALSALL,30/09/2020,CHILDRENS SERVICES,B&M RETAIL,10/07/2020,H59620200711JBMZHNPNG-2,6.03,WALSALL WOOD PRIMARY SCHOOL-MATERIALS,DISCOUNT STORES,GPC
WALSALL COUNCIL,HTTP://OPENDATACOMMUNITIES.ORG/ID/METROPOLITAN-DISTRICT-COUNCIL/WALSALL,30/09/2020,RESOURCES & TRANSFORMATION,AMAZON.CO.UK*H66VS27B5,10/07/2020,H59620200711JNWNNKHXG-1,26.76,SCHOOL HR TRANSACTIONAL TEAM-COMPUTER EQUIPMENT,OTHER DIRECT MARKETING-OTHER DIRECT MARKETERS,GPC
WALSALL COUNCIL,HTTP://OPENDATACOMMUNITIES.ORG/ID/METROPOLITAN-DISTRICT-COUNCIL/WALSALL,30/09/2020,CHILDRENS SERVICES,AMZNMKTPLACE,10/07/2020,H59620200711JWLXFXAQN-1,16.90,SOCIAL SPACES-MATERIALS,MISCELLANEOUS AND SPECIALTY RETAIL STORES,GPC
WALSALL COUNCIL,HTTP://OPENDATACOMMUNITIES.ORG/ID/METROPOLITAN-DISTRICT-COUNCIL/WALSALL,30/09/2020,ECONOMY & ENVIRONMENT,BHMA LTD,10/07/2020,H59620200711JYPCKONSV-1,158.00,OAK PARK-STATIONERY & GENERAL OFFICE SU,"OFFICE, SCHOOL SUPPLY, AND STATIONERY STORES",GPC
WALSALL COUNCIL,HTTP://OPENDATACOMMUNITIES.ORG/ID/METROPOLITAN-DISTRICT-COUNCIL/WALSALL,30/09/2020,RESOURCES & TRANSFORMATION,METRO INNS WALSALL,10/07/2020,H59620200711KEUFEVRLJ-1,532.00,BED & BREAKFAST PAYMENTS-HOTEL ACCOMMODATION-EMPLOYEES,"HOTELS, MOTELS, RESORTS",GPC
WALSALL COUNCIL,HTTP://OPENDATACOMMUNITIES.ORG/ID/METROPOLITAN-DISTRICT-COUNCIL/WALSALL,30/09/2020,RESOURCES & TRANSFORMATION,ROMAN WAY HOTEL,10/07/2020,H59620200711KJMCTSYQY-1,65.00,WALSALL CRISIS SUPPORT SCHEME-CRISIS SUPPORT PAYMENTS,"HOTELS, MOTELS, RESORTS",GPC
WALSALL COUNCIL,HTTP://OPENDATACOMMUNITIES.ORG/ID/METROPOLITAN-DISTRICT-COUNCIL/WALSALL,30/09/2020,CHILDRENS SERVICES,AMAZON.CO.UK*F82MB7DW5,10/07/2020,H59620200711KKTDNYVWB-1,4.94,ENGLISH (LITERACY)-MATERIALS,OTHER DIRECT MARKETING-OTHER DIRECT MARKETERS,GPC
WALSALL COUNCIL,HTTP://OPENDATACOMMUNITIES.ORG/ID/METROPOLITAN-DISTRICT-COUNCIL/WALSALL,30/09/2020,RESOURCES & TRANSFORMATION,TURNING TECHNOLOGIES,10/07/2020,H59620200711LNQMLYXES-1,745.07,COMMUNICATIONS-COMPUTER EQUIPMENT,"COMPUTERS, COMPUTER PERIPHERAL EQUIPMENT, SOFTWARE",GPC
WALSALL COUNCIL,HTTP://OPENDATACOMMUNITIES.ORG/ID/METROPOLITAN-DISTRICT-COUNCIL/WALSALL,30/09/2020,CHILDRENS SERVICES,AMAZON.CO.UK*DU5ZJ31R5 AM,10/07/2020,H59620200711LQXFIPKOZ-1,79.90,EARLY HELP HUB-PROFESSIONAL SERVICES-PRIV CON,MISCELLANEOUS AND SPECIALTY RETAIL STORES,GPC
WALSALL COUNCIL,HTTP://OPENDATACOMMUNITIES.ORG/ID/METROPOLITAN-DISTRICT-COUNCIL/WALSALL,30/09/2020,CHILDRENS SERVICES - SCHOOLS,AMZNMKTPLACE,10/07/2020,H59620200711MLKNLIHXO-1,29.98,E19-MATERIALS,MISCELLANEOUS AND SPECIALTY RETAIL STORES,GPC
WALSALL COUNCIL,HTTP://OPENDATACOMMUNITIES.ORG/ID/METROPOLITAN-DISTRICT-COUNCIL/WALSALL,30/09/2020,CHILDRENS SERVICES,TRAINLINE,10/07/2020,H59620200711NETGNEKRT-1,30.56,INITIAL RESPONSE SERVICE-OFFICERS & STAFF PUBLIC TRANSP,PASSENGER RAILWAYS,GPC
WALSALL COUNCIL,HTTP://OPENDATACOMMUNITIES.ORG/ID/METROPOLITAN-DISTRICT-COUNCIL/WALSALL,30/09/2020,RESOURCES & TRANSFORMATION,METRO INNS WALSALL,10/07/2020,H59620200711NVFNTXYUM-1,532.00,BED & BREAKFAST PAYMENTS-HOTEL ACCOMMODATION-EMPLOYEES,"HOTELS, MOTELS, RESORTS",GPC
WALSALL COUNCIL,HTTP://OPENDATACOMMUNITIES.ORG/ID/METROPOLITAN-DISTRICT-COUNCIL/WALSALL,30/09/2020,CHILDRENS SERVICES,AMAZON.CO.UK*SP6958285,10/07/2020,H59620200711NZPUJIWQB-1,4.94,ENGLISH (LITERACY)-MATERIALS,OTHER DIRECT MARKETING-OTHER DIRECT MARKETERS,GPC
WALSALL COUNCIL,HTTP://OPENDATACOMMUNITIES.ORG/ID/METROPOLITAN-DISTRICT-COUNCIL/WALSALL,30/09/2020,CHILDRENS SERVICES,WWW.BUYSHEDSDIRECT.CO.,10/07/2020,H59620200711OQVKCVCAR-1,2228.99,CONTACT SESSIONAL STAFF-MATERIALS,LUMBER & BUILDING MATERIALS STORES,GPC
WALSALL COUNCIL,HTTP://OPENDATACOMMUNITIES.ORG/ID/METROPOLITAN-DISTRICT-COUNCIL/WALSALL,30/09/2020,CHILDRENS SERVICES,AMZNMKTPLACE AMAZON.CO.UK,10/07/2020,H59620200711PJNBLUGYJ-1,-98.95,VIRTUAL SCHOOL - CENTRAL PUPIL-OTHER EXPENSES,MISCELLANEOUS AND SPECIALTY RETAIL STORES,GPC
WALSALL COUNCIL,HTTP://OPENDATACOMMUNITIES.ORG/ID/METROPOLITAN-DISTRICT-COUNCIL/WALSALL,30/09/2020,RESOURCES & TRANSFORMATION,WWW.SCC.COM,10/07/2020,H59620200711QGFVLHVBV-1,26.26,RECHARGEABLE EQUIPMENT-COMPUTER EQUIPMENT,"COMPUTERS, COMPUTER PERIPHERAL EQUIPMENT, SOFTWARE",GPC
WALSALL COUNCIL,HTTP://OPENDATACOMMUNITIES.ORG/ID/METROPOLITAN-DISTRICT-COUNCIL/WALSALL,30/09/2020,CHILDRENS SERVICES,DUDLEY MBC *INTERN,10/07/2020,H59620200711QYOFXJAFH-1,13.50,GENERAL MANAGEMENT SUPPORT (IN-PROFESSIONAL FEES & SERVICES,PROFESSIONAL SERVICES,GPC
WALSALL COUNCIL,HTTP://OPENDATACOMMUNITIES.ORG/ID/METROPOLITAN-DISTRICT-COUNCIL/WALSALL,30/09/2020,CHILDRENS SERVICES,AMZNMKTPLACE,10/07/2020,H59620200711RBFZPSWJI-1,32.90,EYFS - RESOURCES-MATERIALS,MISCELLANEOUS AND SPECIALTY RETAIL STORES,GPC
WALSALL COUNCIL,HTTP://OPENDATACOMMUNITIES.ORG/ID/METROPOLITAN-DISTRICT-COUNCIL/WALSALL,30/09/2020,RESOURCES & TRANSFORMATION,TESCO STORES 6161,10/07/2020,H59620200711RUZPWDCPN-1,6.00,WALSALL CRISIS SUPPORT SCHEME-CRISIS SUPPORT PAYMENTS,GROCERY STORES AND SUPERMARKETS,GPC
WALSALL COUNCIL,HTTP://OPENDATACOMMUNITIES.ORG/ID/METROPOLITAN-DISTRICT-COUNCIL/WALSALL,30/09/2020,CHILDRENS SERVICES - SCHOOLS,FAIRLAWNS HOTEL AND SP,10/07/2020,H59620200711TBAVWFOTK-1,455.00,CHUCKERY PRIMARY SCHOOL-EXTERNAL TRAINING,"HOTELS, MOTELS, RESORTS",GPC
WALSALL COUNCIL,HTTP://OPENDATACOMMUNITIES.ORG/ID/METROPOLITAN-DISTRICT-COUNCIL/WALSALL,30/09/2020,CHILDRENS SERVICES,AMZNMKTPLACE,10/07/2020,H59620200711TLUQSWSJR-1,18.60,EARLY HELP HUB-PROFESSIONAL SERVICES-PRIV CON,MISCELLANEOUS AND SPECIALTY RETAIL STORES,GPC
WALSALL COUNCIL,HTTP://OPENDATACOMMUNITIES.ORG/ID/METROPOLITAN-DISTRICT-COUNCIL/WALSALL,30/09/2020,CHILDRENS SERVICES - SCHOOLS,WWW.OFFICEPRODUCTS.CO.,10/07/2020,H59620200711UEBFGWDEH-1,29.98,MILLFIELD PRIMARY SCHOOL-MATERIALS,"STATIONERY, OFFICE SUPPLIES AND WRITING PAPER",GPC
WALSALL COUNCIL,HTTP://OPENDATACOMMUNITIES.ORG/ID/METROPOLITAN-DISTRICT-COUNCIL/WALSALL,30/09/2020,RESOURCES & TRANSFORMATION,ASDA,10/07/2020,H59620200711UGJLLVMQE-1,105.24,ROUGH SLEEPING INITIATIVE GRAN-CRISIS SUPPORT PAYMENTS,GROCERY STORES AND SUPERMARKETS,GPC
WALSALL COUNCIL,HTTP://OPENDATACOMMUNITIES.ORG/ID/METROPOLITAN-DISTRICT-COUNCIL/WALSALL,30/09/2020,RESOURCES & TRANSFORMATION,METRO INNS WALSALL,10/07/2020,H59620200711VPMNJMHUO-1,532.00,BED & BREAKFAST PAYMENTS-HOTEL ACCOMMODATION-EMPLOYEES,"HOTELS, MOTELS, RESORTS",GPC
WALSALL COUNCIL,HTTP://OPENDATACOMMUNITIES.ORG/ID/METROPOLITAN-DISTRICT-COUNCIL/WALSALL,30/09/2020,CHILDRENS SERVICES,POST OFFICE COUNTER,10/07/2020,H59620200711WDMLTWPTF-1,44.00,VIRTUAL SCHOOL - CENTRAL PUPIL-POSTAGES & COURIER SERVICES,POSTAL SERVICES - GOVERNMENT ONLY,GPC
WALSALL COUNCIL,HTTP://OPENDATACOMMUNITIES.ORG/ID/METROPOLITAN-DISTRICT-COUNCIL/WALSALL,30/09/2020,CHILDRENS SERVICES,WM MORRISONS STORE,10/07/2020,H59620200711WIWLSFDVJ-1,1.50,57 LICHFIELD ROAD-FOOD & DRINK SUPPLIES,GROCERY STORES AND SUPERMARKETS,GPC
WALSALL COUNCIL,HTTP://OPENDATACOMMUNITIES.ORG/ID/METROPOLITAN-DISTRICT-COUNCIL/WALSALL,30/09/2020,CHILDRENS SERVICES,WM MORRISONS STORE,10/07/2020,H59620200711WIWLSFDVJ-2,29.47,57 LICHFIELD ROAD-FOOD & DRINK SUPPLIES,GROCERY STORES AND SUPERMARKETS,GPC
WALSALL COUNCIL,HTTP://OPENDATACOMMUNITIES.ORG/ID/METROPOLITAN-DISTRICT-COUNCIL/WALSALL,30/09/2020,CHILDRENS SERVICES,AMZNMKTPLACE AMAZON.CO.UK,10/07/2020,H59620200711WYVTHUVSK-1,76.16,CONTACT SESSIONAL STAFF-STATIONERY & GENERAL OFFICE SU,MISCELLANEOUS AND SPECIALTY RETAIL STORES,GPC
WALSALL COUNCIL,HTTP://OPENDATACOMMUNITIES.ORG/ID/METROPOLITAN-DISTRICT-COUNCIL/WALSALL,30/09/2020,CHILDRENS SERVICES,AMAZON.CO.UK*S96K16BZ5 AM,10/07/2020,H59620200711XGYJCUXXW-1,40.00,PASTROL (REWARDS & PRIZES)-MATERIALS,MISCELLANEOUS AND SPECIALTY RETAIL STORES,GPC
WALSALL COUNCIL,HTTP://OPENDATACOMMUNITIES.ORG/ID/METROPOLITAN-DISTRICT-COUNCIL/WALSALL,30/09/2020,CHILDRENS SERVICES,WWW.PHS.CO.UK,10/07/2020,H59620200711YHIVOCZQN-1,181.93,CHILD PROTECTION & REVIEW SERV-PROFESSIONAL FEES & SERVICES,OTHER BUSINESS SERVICES,GPC
WALSALL COUNCIL,HTTP://OPENDATACOMMUNITIES.ORG/ID/METROPOLITAN-DISTRICT-COUNCIL/WALSALL,30/09/2020,CHILDRENS SERVICES,KFC WALSALL WOOD,10/07/2020,H59620200711YYMMLVLXN-1,7.09,ADOLESCENT SERVICE-FOOD & DRINK SUPPLIES,QUICK PAYMENT SERVICE-FAST-FOOD RESTAURANTS,GPC
WALSALL COUNCIL,HTTP://OPENDATACOMMUNITIES.ORG/ID/METROPOLITAN-DISTRICT-COUNCIL/WALSALL,30/09/2020,ECONOMY & ENVIRONMENT,WWW.TOOLSTATION.COM,10/07/2020,H59620200711ZEVEYMTFC-1,4.20,INFRASTRUCTURE MAINTENANCE-MATERIALS,HARDWARE STORES,GPC
WALSALL COUNCIL,HTTP://OPENDATACOMMUNITIES.ORG/ID/METROPOLITAN-DISTRICT-COUNCIL/WALSALL,30/09/2020,RESOURCES & TRANSFORMATION,FOREIGN EXCHANGE FEE,10/07/2020,H59620200711ZUYQFISVE-1,20.49,COMMUNICATIONS-FEES & LICENCES,,GPC
WALSALL COUNCIL,HTTP://OPENDATACOMMUNITIES.ORG/ID/METROPOLITAN-DISTRICT-COUNCIL/WALSALL,30/09/2020,CHILDRENS SERVICES,O2,10/07/2020,H59620200711ZWSILWJKD-1,33.80,ADMIN-MOBILE PHONES,TELECOMMUNICATION SERVICES,GPC
WALSALL COUNCIL,HTTP://OPENDATACOMMUNITIES.ORG/ID/METROPOLITAN-DISTRICT-COUNCIL/WALSALL,30/09/2020,CHILDRENS SERVICES,AMAZON.CO.UK*LW4TO4XX5,13/07/2020,H59620200714AEQEWTVDT-1,6.09,ADMINISTRATIVE SUPPLIES-MATERIALS,OTHER DIRECT MARKETING-OTHER DIRECT MARKETERS,GPC
WALSALL COUNCIL,HTTP://OPENDATACOMMUNITIES.ORG/ID/METROPOLITAN-DISTRICT-COUNCIL/WALSALL,30/09/2020,CHILDRENS SERVICES,LOCAL TOILET HIRE R/T,13/07/2020,H59620200714AJPLMVMXW-1,184.80,ST FRANCIS OF ASSISI CATHOLIC -OPERATIONAL MAINTENANCE,DIRECT MARKETING CONTINUITY SUBSCRIPTION MERCHANTS,GPC
WALSALL COUNCIL,HTTP://OPENDATACOMMUNITIES.ORG/ID/METROPOLITAN-DISTRICT-COUNCIL/WALSALL,30/09/2020,RESOURCES & TRANSFORMATION,UTILITA ENERGY LIMITED,13/07/2020,H59620200714BCENUEWJP-1,30.00,WALSALL CRISIS SUPPORT SCHEME-CRISIS SUPPORT PAYMENTS,"UTILITIES - ELECTRIC, GAS, SANITARY & WATER",GPC
WALSALL COUNCIL,HTTP://OPENDATACOMMUNITIES.ORG/ID/METROPOLITAN-DISTRICT-COUNCIL/WALSALL,30/09/2020,CHILDRENS SERVICES,HTTP://WWW.FORWARDPRODUC,13/07/2020,H59620200714BDMHKSIUK-1,112.08,CURRICULUM STOCK-MATERIALS,"STATIONERY, OFFICE SUPPLIES AND WRITING PAPER",GPC
WALSALL COUNCIL,HTTP://OPENDATACOMMUNITIES.ORG/ID/METROPOLITAN-DISTRICT-COUNCIL/WALSALL,30/09/2020,RESOURCES & TRANSFORMATION,EXPEDIA 7539074795403,13/07/2020,H59620200714BDUQJXLNP-1,141.60,BED & BREAKFAST PAYMENTS-HOTEL ACCOMMODATION-EMPLOYEES,TRAVEL AGENCIES AND TOUR OPERATORS,GPC
WALSALL COUNCIL,HTTP://OPENDATACOMMUNITIES.ORG/ID/METROPOLITAN-DISTRICT-COUNCIL/WALSALL,30/09/2020,RESOURCES & TRANSFORMATION,TRAVELODGE GB0000,13/07/2020,H59620200714BDXXIFUHV-1,15.75,BED & BREAKFAST PAYMENTS-BED & BREAKFAST PAYMENTS,TRAVELODGE,GPC
WALSALL COUNCIL,HTTP://OPENDATACOMMUNITIES.ORG/ID/METROPOLITAN-DISTRICT-COUNCIL/WALSALL,30/09/2020,RESOURCES & TRANSFORMATION,TRAVELODGE GB0000,13/07/2020,H59620200714BDXXIFUHV-2,52.12,BED & BREAKFAST PAYMENTS-BED & BREAKFAST PAYMENTS,TRAVELODGE,GPC
WALSALL COUNCIL,HTTP://OPENDATACOMMUNITIES.ORG/ID/METROPOLITAN-DISTRICT-COUNCIL/WALSALL,30/09/2020,CHILDRENS SERVICES,247 CARS WILLENHALL LTD,13/07/2020,H59620200714BGOOPPQAT-1,11.70,SAFEGUARDING & FAMILY SUPPORT-SECTION 1/17CHILD CARE ACT 198,TAXI SERVICES,GPC
WALSALL COUNCIL,HTTP://OPENDATACOMMUNITIES.ORG/ID/METROPOLITAN-DISTRICT-COUNCIL/WALSALL,30/09/2020,CHILDRENS SERVICES,AMAZON.CO.UK*3E36T1015,13/07/2020,H59620200714BOGWCMTPC-1,5.98,ENGLISH-MATERIALS,OTHER DIRECT MARKETING-OTHER DIRECT MARKETERS,GPC
WALSALL COUNCIL,HTTP://OPENDATACOMMUNITIES.ORG/ID/METROPOLITAN-DISTRICT-COUNCIL/WALSALL,30/09/2020,CHILDRENS SERVICES,247 CARS WILLENHALL LTD,13/07/2020,H59620200714BROTIEQCX-1,14.20,SAFEGUARDING & FAMILY SUPPORT-SECTION 1/17CHILD CARE ACT 198,TAXI SERVICES,GPC
WALSALL COUNCIL,HTTP://OPENDATACOMMUNITIES.ORG/ID/METROPOLITAN-DISTRICT-COUNCIL/WALSALL,30/09/2020,RESOURCES & TRANSFORMATION,TIMPSON LTD,13/07/2020,H59620200714BSERJVCDS-1,7.00,WALSALL CRISIS SUPPORT SCHEME-CRISIS SUPPORT PAYMENTS,MISCELLANEOUS AND SPECIALTY RETAIL STORES,GPC
WALSALL COUNCIL,HTTP://OPENDATACOMMUNITIES.ORG/ID/METROPOLITAN-DISTRICT-COUNCIL/WALSALL,30/09/2020,RESOURCES & TRANSFORMATION,WILKO RETAIL LIMITED,13/07/2020,H59620200714CHVSFUFRR-1,64.10,ROUGH SLEEPING INITIATIVE GRAN-CRISIS SUPPORT PAYMENTS,MISCELLANEOUS GENERAL MERCHANDISE,GPC
WALSALL COUNCIL,HTTP://OPENDATACOMMUNITIES.ORG/ID/METROPOLITAN-DISTRICT-COUNCIL/WALSALL,30/09/2020,ECONOMY & ENVIRONMENT,WWW.PRINTERBASE.CO.UK,13/07/2020,H59620200714CIBPAIQVS-1,697.28,REGISTRAR-STATIONERY & GENERAL OFFICE SU,MISCELLANEOUS AND SPECIALTY RETAIL STORES,GPC
WALSALL COUNCIL,HTTP://OPENDATACOMMUNITIES.ORG/ID/METROPOLITAN-DISTRICT-COUNCIL/WALSALL,30/09/2020,CHILDRENS SERVICES,THE RANGE,13/07/2020,H59620200714CWUXNZTLF-1,29.98,CONTACT SESSIONAL STAFF-PURCHASE OF FURNITURE & EQUIPM,DEPARTMENT STORES,GPC
WALSALL COUNCIL,HTTP://OPENDATACOMMUNITIES.ORG/ID/METROPOLITAN-DISTRICT-COUNCIL/WALSALL,30/09/2020,CHILDRENS SERVICES,AMZNMKTPLACE,13/07/2020,H59620200714CXYAYVBLG-1,3.98,"43A HILTON ROAD, WILLENHALL-RESIDENTS PERSONAL EXPENSES-AL",MISCELLANEOUS AND SPECIALTY RETAIL STORES,GPC
WALSALL COUNCIL,HTTP://OPENDATACOMMUNITIES.ORG/ID/METROPOLITAN-DISTRICT-COUNCIL/WALSALL,30/09/2020,CHILDRENS SERVICES,ASDA STORES,13/07/2020,H59620200714DHJYKWRSC-1,8.40,ADOLESCENT SERVICE-MATERIALS,GROCERY STORES AND SUPERMARKETS,GPC
WALSALL COUNCIL,HTTP://OPENDATACOMMUNITIES.ORG/ID/METROPOLITAN-DISTRICT-COUNCIL/WALSALL,30/09/2020,CHILDRENS SERVICES,ASDA STORES,13/07/2020,H59620200714DHJYKWRSC-2,1.00,ADOLESCENT SERVICE-FOOD & DRINK SUPPLIES,GROCERY STORES AND SUPERMARKETS,GPC
WALSALL COUNCIL,HTTP://OPENDATACOMMUNITIES.ORG/ID/METROPOLITAN-DISTRICT-COUNCIL/WALSALL,30/09/2020,CHILDRENS SERVICES,ASDA STORES,13/07/2020,H59620200714DHJYKWRSC-3,1.50,ADOLESCENT SERVICE-MATERIALS,GROCERY STORES AND SUPERMARKETS,GPC
WALSALL COUNCIL,HTTP://OPENDATACOMMUNITIES.ORG/ID/METROPOLITAN-DISTRICT-COUNCIL/WALSALL,30/09/2020,CHILDRENS SERVICES,ASDA STORES,13/07/2020,H59620200714DHJYKWRSC-4,11.49,ADOLESCENT SERVICE-MATERIALS,GROCERY STORES AND SUPERMARKETS,GPC
WALSALL COUNCIL,HTTP://OPENDATACOMMUNITIES.ORG/ID/METROPOLITAN-DISTRICT-COUNCIL/WALSALL,30/09/2020,CHILDRENS SERVICES,ALDI 42 772,13/07/2020,H59620200714DNPPPXEPZ-1,0.55,REDRUTH ROAD-FOOD & DRINK SUPPLIES,GROCERY STORES AND SUPERMARKETS,GPC
WALSALL COUNCIL,HTTP://OPENDATACOMMUNITIES.ORG/ID/METROPOLITAN-DISTRICT-COUNCIL/WALSALL,30/09/2020,CHILDRENS SERVICES,ALDI 42 772,13/07/2020,H59620200714DNPPPXEPZ-2,39.77,REDRUTH ROAD-FOOD & DRINK SUPPLIES,GROCERY STORES AND SUPERMARKETS,GPC
WALSALL COUNCIL,HTTP://OPENDATACOMMUNITIES.ORG/ID/METROPOLITAN-DISTRICT-COUNCIL/WALSALL,30/09/2020,CHILDRENS SERVICES,AMZNMKTPLACE,13/07/2020,H59620200714DRAIAVDVO-1,57.60,ADMINISTRATIVE SUPPLIES-MATERIALS,MISCELLANEOUS AND SPECIALTY RETAIL STORES,GPC
WALSALL COUNCIL,HTTP://OPENDATACOMMUNITIES.ORG/ID/METROPOLITAN-DISTRICT-COUNCIL/WALSALL,30/09/2020,RESOURCES & TRANSFORMATION,CHICKEN JOES LTD,13/07/2020,H59620200714DXGOVBGBV-1,33.57,CATERING - SCHOOLS-FOOD & DRINK SUPPLIES,CATERERS,GPC
WALSALL COUNCIL,HTTP://OPENDATACOMMUNITIES.ORG/ID/METROPOLITAN-DISTRICT-COUNCIL/WALSALL,30/09/2020,CHILDRENS SERVICES,AMZNMKTPLACE,13/07/2020,H59620200714EHNNWYNTV-1,24.99,"43A HILTON ROAD, WILLENHALL-PURCHASE OF FURNITURE & EQUIPM",MISCELLANEOUS AND SPECIALTY RETAIL STORES,GPC
WALSALL COUNCIL,HTTP://OPENDATACOMMUNITIES.ORG/ID/METROPOLITAN-DISTRICT-COUNCIL/WALSALL,30/09/2020,ECONOMY & ENVIRONMENT,WWW.BANNERUK.COM,13/07/2020,H59620200714EOQOUSIFH-1,22.33,LIBRARY OPERATIONS CENTRAL-STATIONERY & GENERAL OFFICE SU,"STATIONERY, OFFICE SUPPLIES AND WRITING PAPER",GPC
WALSALL COUNCIL,HTTP://OPENDATACOMMUNITIES.ORG/ID/METROPOLITAN-DISTRICT-COUNCIL/WALSALL,30/09/2020,CHILDRENS SERVICES,AMAZON.CO.UK*EP3B30UV5,13/07/2020,H59620200714FFLAKGQHP-1,12.78,EARLY HELP HUB-PROFESSIONAL SERVICES-PRIV CON,OTHER DIRECT MARKETING-OTHER DIRECT MARKETERS,GPC
WALSALL COUNCIL,HTTP://OPENDATACOMMUNITIES.ORG/ID/METROPOLITAN-DISTRICT-COUNCIL/WALSALL,30/09/2020,RESOURCES & TRANSFORMATION,METRO INNS WALSALL,13/07/2020,H59620200714FHDTLFOBX-1,-418.00,BED & BREAKFAST PAYMENTS-HOTEL ACCOMMODATION-EMPLOYEES,"HOTELS, MOTELS, RESORTS",GPC
WALSALL COUNCIL,HTTP://OPENDATACOMMUNITIES.ORG/ID/METROPOLITAN-DISTRICT-COUNCIL/WALSALL,30/09/2020,RESOURCES & TRANSFORMATION,METRO INNS WALSALL,13/07/2020,H59620200714FKDZWFYWU-1,114.00,BED & BREAKFAST PAYMENTS-HOTEL ACCOMMODATION-EMPLOYEES,"HOTELS, MOTELS, RESORTS",GPC
WALSALL COUNCIL,HTTP://OPENDATACOMMUNITIES.ORG/ID/METROPOLITAN-DISTRICT-COUNCIL/WALSALL,30/09/2020,CHILDRENS SERVICES,PAYPAL *BRUNELENGRA,13/07/2020,H59620200714FQMPFUCTJ-1,111.90,ST FRANCIS OF ASSISI CATHOLIC -MATERIALS,OTHER CHEMICALS AND ALLIED PRODUCTS,GPC
WALSALL COUNCIL,HTTP://OPENDATACOMMUNITIES.ORG/ID/METROPOLITAN-DISTRICT-COUNCIL/WALSALL,30/09/2020,CHILDRENS SERVICES,TRAVELODGE GB0000,13/07/2020,H59620200714GALHLUDPX-1,305.95,SAFEGUARDING & FAMILY SUPPORT-SECTION 1/17CHILD CARE ACT 198,TRAVELODGE,GPC
WALSALL COUNCIL,HTTP://OPENDATACOMMUNITIES.ORG/ID/METROPOLITAN-DISTRICT-COUNCIL/WALSALL,30/09/2020,CHILDRENS SERVICES,SPEEDY FREIGHT,13/07/2020,H59620200714GHIYGDKXK-1,60.00,SAFEGUARDING & FAMILY SUPPORT-PROFESSIONAL FEES & SERVICES,MOTOR FREIGHT CARRIERS,GPC
WALSALL COUNCIL,HTTP://OPENDATACOMMUNITIES.ORG/ID/METROPOLITAN-DISTRICT-COUNCIL/WALSALL,30/09/2020,RESOURCES & TRANSFORMATION,NOBISCO LIMITED,13/07/2020,H59620200714GJWKVCTSJ-1,58.03,CATERING - SCHOOLS-FOOD & DRINK SUPPLIES,OTHER INDUSTRIAL SUPPLIES,GPC
WALSALL COUNCIL,HTTP://OPENDATACOMMUNITIES.ORG/ID/METROPOLITAN-DISTRICT-COUNCIL/WALSALL,30/09/2020,CHILDRENS SERVICES,AMZNMKTPLACE,13/07/2020,H59620200714GTCPXWGPF-1,207.84,ST FRANCIS OF ASSISI CATHOLIC -OPERATIONAL MAINTENANCE,MISCELLANEOUS AND SPECIALTY RETAIL STORES,GPC
WALSALL COUNCIL,HTTP://OPENDATACOMMUNITIES.ORG/ID/METROPOLITAN-DISTRICT-COUNCIL/WALSALL,30/09/2020,RESOURCES & TRANSFORMATION,WWW.SCC.COM,13/07/2020,H59620200714GTSLTFZZG-1,946.80,RECHARGEABLE EQUIPMENT-COMPUTER EQUIPMENT,"COMPUTERS, COMPUTER PERIPHERAL EQUIPMENT, SOFTWARE",GPC
WALSALL COUNCIL,HTTP://OPENDATACOMMUNITIES.ORG/ID/METROPOLITAN-DISTRICT-COUNCIL/WALSALL,30/09/2020,CHILDRENS SERVICES,AMAZON.CO.UK*0S04L5M95,13/07/2020,H59620200714HCDLCNGNM-1,17.89,GENERAL-MATERIALS,OTHER DIRECT MARKETING-OTHER DIRECT MARKETERS,GPC
WALSALL COUNCIL,HTTP://OPENDATACOMMUNITIES.ORG/ID/METROPOLITAN-DISTRICT-COUNCIL/WALSALL,30/09/2020,CHILDRENS SERVICES,THETRAINLINE.COM,13/07/2020,H59620200714HQORMTMDU-1,12.87,SAFEGUARDING & FAMILY SUPPORT-SECTION 34 (CONTACT),PASSENGER RAILWAYS,GPC
WALSALL COUNCIL,HTTP://OPENDATACOMMUNITIES.ORG/ID/METROPOLITAN-DISTRICT-COUNCIL/WALSALL,30/09/2020,CHILDRENS SERVICES - SCHOOLS,HP INC UK LIMITED,13/07/2020,H59620200714HQTJUHKKT-1,7.99,ADMINISTRATIVE SUPPLIES-MATERIALS,"COMPUTERS, COMPUTER PERIPHERAL EQUIPMENT, SOFTWARE",GPC
WALSALL COUNCIL,HTTP://OPENDATACOMMUNITIES.ORG/ID/METROPOLITAN-DISTRICT-COUNCIL/WALSALL,30/09/2020,RESOURCES & TRANSFORMATION,AMZNMKTPLACE,13/07/2020,H59620200714HTXBNFIUQ-1,46.98,COMMUNICATIONS-COMPUTER EQUIPMENT,MISCELLANEOUS AND SPECIALTY RETAIL STORES,GPC
WALSALL COUNCIL,HTTP://OPENDATACOMMUNITIES.ORG/ID/METROPOLITAN-DISTRICT-COUNCIL/WALSALL,30/09/2020,CHILDRENS SERVICES,HOLLYBUSH GARDEN CENTR,13/07/2020,H59620200714IFKDVCIMV-1,47.91,OUTDOOR RESOURCES-MATERIALS,"NURSERIES, LAWN AND GARDEN SUPPLY STORES",GPC
WALSALL COUNCIL,HTTP://OPENDATACOMMUNITIES.ORG/ID/METROPOLITAN-DISTRICT-COUNCIL/WALSALL,30/09/2020,CHILDRENS SERVICES,HOLLYBUSH GARDEN CENTR,13/07/2020,H59620200714IFKDVCIMV-2,15.92,OUTDOOR RESOURCES-MATERIALS,"NURSERIES, LAWN AND GARDEN SUPPLY STORES",GPC
WALSALL COUNCIL,HTTP://OPENDATACOMMUNITIES.ORG/ID/METROPOLITAN-DISTRICT-COUNCIL/WALSALL,30/09/2020,ECONOMY & ENVIRONMENT,ST JOHN AMBULANCE,13/07/2020,H59620200714IKQTAHOOO-1,-90.00,STRUCTURES & GEOTECHNICS-EXTERNAL TRAINING,"ORGANIZATIONS, CHARITABLE AND SOCIAL SERVICE",GPC
WALSALL COUNCIL,HTTP://OPENDATACOMMUNITIES.ORG/ID/METROPOLITAN-DISTRICT-COUNCIL/WALSALL,30/09/2020,CHILDRENS SERVICES,SIGNET SIGNS LIMITED,13/07/2020,H59620200714JMJTFMGEA-1,384.00,SPECIAL FACILITIES-MATERIALS,"COMMERCIAL ART, GRAPHICS, PHOTOGRAPHY ",GPC
WALSALL COUNCIL,HTTP://OPENDATACOMMUNITIES.ORG/ID/METROPOLITAN-DISTRICT-COUNCIL/WALSALL,30/09/2020,ECONOMY & ENVIRONMENT,A1EXPRESS45921268,13/07/2020,H59620200714JSUFGVRTN-1,11.00,YEI (IMPACT) PROGRAMME-PROFESSIONAL FEES & SERVICES,TAXI SERVICES,GPC
WALSALL COUNCIL,HTTP://OPENDATACOMMUNITIES.ORG/ID/METROPOLITAN-DISTRICT-COUNCIL/WALSALL,30/09/2020,ECONOMY & ENVIRONMENT,A1EXPRESS45921268,13/07/2020,H59620200714JSUFGVRTN-2,11.00,YEI ESF FUNDING-PROFESSIONAL FEES & SERVICES,TAXI SERVICES,GPC
WALSALL COUNCIL,HTTP://OPENDATACOMMUNITIES.ORG/ID/METROPOLITAN-DISTRICT-COUNCIL/WALSALL,30/09/2020,CHILDRENS SERVICES,ARGOS LTD,13/07/2020,H59620200714JVDOMBOTR-1,154.95,SAFEGUARDING & FAMILY SUPPORT-SECTION 1/17CHILD CARE ACT 198,DISCOUNT STORES,GPC
WALSALL COUNCIL,HTTP://OPENDATACOMMUNITIES.ORG/ID/METROPOLITAN-DISTRICT-COUNCIL/WALSALL,30/09/2020,CHILDRENS SERVICES,AMZNMKTPLACE AMAZON.CO.UK,13/07/2020,H59620200714LFNSEIXKW-1,39.90,CONTACT SESSIONAL STAFF-STATIONERY & GENERAL OFFICE SU,MISCELLANEOUS AND SPECIALTY RETAIL STORES,GPC
WALSALL COUNCIL,HTTP://OPENDATACOMMUNITIES.ORG/ID/METROPOLITAN-DISTRICT-COUNCIL/WALSALL,30/09/2020,CHILDRENS SERVICES,SIGN SOURCE,13/07/2020,H59620200714LGFDERTMJ-1,39.00,GENERAL-MATERIALS,OTHER SCHOOLS AND EDUCATIONAL SERVICES,GPC
WALSALL COUNCIL,HTTP://OPENDATACOMMUNITIES.ORG/ID/METROPOLITAN-DISTRICT-COUNCIL/WALSALL,30/09/2020,CHILDRENS SERVICES,AMZNMKTPLACE,13/07/2020,H59620200714LGYZDOLCS-1,30.99,ADMINISTRATIVE SUPPLIES-MATERIALS,MISCELLANEOUS AND SPECIALTY RETAIL STORES,GPC
WALSALL COUNCIL,HTTP://OPENDATACOMMUNITIES.ORG/ID/METROPOLITAN-DISTRICT-COUNCIL/WALSALL,30/09/2020,CHILDRENS SERVICES,AMZNMKTPLACE,13/07/2020,H59620200714LMTHJXLGD-1,42.11,"43A HILTON ROAD, WILLENHALL-PURCHASE OF FURNITURE & EQUIPM",MISCELLANEOUS AND SPECIALTY RETAIL STORES,GPC
WALSALL COUNCIL,HTTP://OPENDATACOMMUNITIES.ORG/ID/METROPOLITAN-DISTRICT-COUNCIL/WALSALL,30/09/2020,RESOURCES & TRANSFORMATION,AMZNMKTPLACE,13/07/2020,H59620200714NEQMMQNXF-1,14.96,COMMUNICATIONS-PURCHASE OF FURNITURE & EQUIPM,MISCELLANEOUS AND SPECIALTY RETAIL STORES,GPC
WALSALL COUNCIL,HTTP://OPENDATACOMMUNITIES.ORG/ID/METROPOLITAN-DISTRICT-COUNCIL/WALSALL,30/09/2020,RESOURCES & TRANSFORMATION,PREMIER INN44014625,13/07/2020,H59620200714NFXHJVRPK-1,147.00,BED & BREAKFAST PAYMENTS-BED & BREAKFAST PAYMENTS,PREMIER INN,GPC
WALSALL COUNCIL,HTTP://OPENDATACOMMUNITIES.ORG/ID/METROPOLITAN-DISTRICT-COUNCIL/WALSALL,30/09/2020,RESOURCES & TRANSFORMATION,AMAZON.CO.UK*BZ8VI2QN5,13/07/2020,H59620200714NHZEXYQID-1,193.44,LAW LIBRARY-STATIONERY & GENERAL OFFICE SU,OTHER DIRECT MARKETING-OTHER DIRECT MARKETERS,GPC
WALSALL COUNCIL,HTTP://OPENDATACOMMUNITIES.ORG/ID/METROPOLITAN-DISTRICT-COUNCIL/WALSALL,30/09/2020,CHILDRENS SERVICES,AMZNMKTPLACE,13/07/2020,H59620200714NQKFLOADE-1,54.25,SPECIAL FACILITIES-MATERIALS,MISCELLANEOUS AND SPECIALTY RETAIL STORES,GPC
WALSALL COUNCIL,HTTP://OPENDATACOMMUNITIES.ORG/ID/METROPOLITAN-DISTRICT-COUNCIL/WALSALL,30/09/2020,CHILDRENS SERVICES,AMAZON.CO.UK*GG97V9DM5,13/07/2020,H59620200714NYWIGHVJK-1,24.70,LITERACY-LIBRARY BOOKS,OTHER DIRECT MARKETING-OTHER DIRECT MARKETERS,GPC
WALSALL COUNCIL,HTTP://OPENDATACOMMUNITIES.ORG/ID/METROPOLITAN-DISTRICT-COUNCIL/WALSALL,30/09/2020,CHILDRENS SERVICES - SCHOOLS,SAFEGUARDING IN SCHOOL,13/07/2020,H59620200714NZCQTWBGS-1,236.40,CHUCKERY PRIMARY SCHOOL-EXTERNAL TRAINING,OTHER SCHOOLS AND EDUCATIONAL SERVICES,GPC
WALSALL COUNCIL,HTTP://OPENDATACOMMUNITIES.ORG/ID/METROPOLITAN-DISTRICT-COUNCIL/WALSALL,30/09/2020,RESOURCES & TRANSFORMATION,NOBISCO LIMITED,13/07/2020,H59620200714OPXCGFPJV-1,58.48,CATERING - SCHOOLS-FOOD & DRINK SUPPLIES,OTHER INDUSTRIAL SUPPLIES,GPC
WALSALL COUNCIL,HTTP://OPENDATACOMMUNITIES.ORG/ID/METROPOLITAN-DISTRICT-COUNCIL/WALSALL,30/09/2020,CHILDRENS SERVICES,WM MORRISONS STORE,13/07/2020,H59620200714OWEPDOGTZ-1,92.80,EARLY HELP HUB-PROFESSIONAL SERVICES-PRIV CON,GROCERY STORES AND SUPERMARKETS,GPC
WALSALL COUNCIL,HTTP://OPENDATACOMMUNITIES.ORG/ID/METROPOLITAN-DISTRICT-COUNCIL/WALSALL,30/09/2020,CHILDRENS SERVICES,WM MORRISONS STORE,13/07/2020,H59620200714OWEPDOGTZ-2,3.90,EARLY HELP HUB-PROFESSIONAL SERVICES-PRIV CON,GROCERY STORES AND SUPERMARKETS,GPC
WALSALL COUNCIL,HTTP://OPENDATACOMMUNITIES.ORG/ID/METROPOLITAN-DISTRICT-COUNCIL/WALSALL,30/09/2020,CHILDRENS SERVICES,WM MORRISONS STORE,13/07/2020,H59620200714OWEPDOGTZ-3,39.85,EARLY HELP HUB-PROFESSIONAL SERVICES-PRIV CON,GROCERY STORES AND SUPERMARKETS,GPC
WALSALL COUNCIL,HTTP://OPENDATACOMMUNITIES.ORG/ID/METROPOLITAN-DISTRICT-COUNCIL/WALSALL,30/09/2020,ECONOMY & ENVIRONMENT,PIRTEK BIRMINGHAM,13/07/2020,H59620200714PGTUMJYIE-1,84.24,FLEET-PAYMENT TO CONTRACTORS,"ARCHITECTURAL, ENGINEERING, AND SURVEYING SERVICES",GPC
WALSALL COUNCIL,HTTP://OPENDATACOMMUNITIES.ORG/ID/METROPOLITAN-DISTRICT-COUNCIL/WALSALL,30/09/2020,CHILDRENS SERVICES,AMAZON.CO.UK*ME8ZN1W54,13/07/2020,H59620200714PMJURXJLF-1,31.82,ICT LEARNING RESOURCES-MATERIALS,OTHER DIRECT MARKETING-OTHER DIRECT MARKETERS,GPC
WALSALL COUNCIL,HTTP://OPENDATACOMMUNITIES.ORG/ID/METROPOLITAN-DISTRICT-COUNCIL/WALSALL,30/09/2020,CHILDRENS SERVICES,POUNDLAND LTD 1427,13/07/2020,H59620200714QCROTPUGB-1,5.00,ADOLESCENT SERVICE-FOOD & DRINK SUPPLIES,DISCOUNT STORES,GPC
WALSALL COUNCIL,HTTP://OPENDATACOMMUNITIES.ORG/ID/METROPOLITAN-DISTRICT-COUNCIL/WALSALL,30/09/2020,CHILDRENS SERVICES,WWW.BANNERUK.COM,13/07/2020,H59620200714QLVSBIDDV-1,60.52,SAFEGUARDING & FAMILY SUPPORT-STATIONERY & GENERAL OFFICE SU,"STATIONERY, OFFICE SUPPLIES AND WRITING PAPER",GPC
WALSALL COUNCIL,HTTP://OPENDATACOMMUNITIES.ORG/ID/METROPOLITAN-DISTRICT-COUNCIL/WALSALL,30/09/2020,RESOURCES & TRANSFORMATION,METRO INNS WALSALL,13/07/2020,H59620200714QLWJBRZIE-1,532.00,BED & BREAKFAST PAYMENTS-HOTEL ACCOMMODATION-EMPLOYEES,"HOTELS, MOTELS, RESORTS",GPC
WALSALL COUNCIL,HTTP://OPENDATACOMMUNITIES.ORG/ID/METROPOLITAN-DISTRICT-COUNCIL/WALSALL,30/09/2020,CHILDRENS SERVICES,POST OFFICE COUNTER,13/07/2020,H59620200714RCPGNGTKK-1,39.14,SPECIAL FACILITIES-MATERIALS,POSTAL SERVICES - GOVERNMENT ONLY,GPC
WALSALL COUNCIL,HTTP://OPENDATACOMMUNITIES.ORG/ID/METROPOLITAN-DISTRICT-COUNCIL/WALSALL,30/09/2020,CHILDRENS SERVICES,AMAZON.CO.UK*JV2F14WD5 AM,13/07/2020,H59620200714REEDTREMT-1,68.72,SPECIAL FACILITIES-MATERIALS,MISCELLANEOUS AND SPECIALTY RETAIL STORES,GPC
WALSALL COUNCIL,HTTP://OPENDATACOMMUNITIES.ORG/ID/METROPOLITAN-DISTRICT-COUNCIL/WALSALL,30/09/2020,CHILDRENS SERVICES,AMAZON.CO.UK*961XC6765 AM,13/07/2020,H59620200714RKGPMSMZG-1,54.89,EARLY HELP HUB-PROFESSIONAL SERVICES-PRIV CON,MISCELLANEOUS AND SPECIALTY RETAIL STORES,GPC
WALSALL COUNCIL,HTTP://OPENDATACOMMUNITIES.ORG/ID/METROPOLITAN-DISTRICT-COUNCIL/WALSALL,30/09/2020,CHILDRENS SERVICES,AMAZON PRIME*MJ0BH7KV0,13/07/2020,H59620200714SJORTGRUM-1,10.34,"43A HILTON ROAD, WILLENHALL-RESIDENTS PERSONAL EXPENSES-AL",DIRECT MARKETING CONTINUITY SUBSCRIPTION MERCHANTS,GPC
WALSALL COUNCIL,HTTP://OPENDATACOMMUNITIES.ORG/ID/METROPOLITAN-DISTRICT-COUNCIL/WALSALL,30/09/2020,CHILDRENS SERVICES,PARTICIPANT UK LTD,13/07/2020,H59620200714SKEXGYQSF-1,354.00,LOOKED AFTER CHILDRENS SOCIAL -COMPUTER EQUIPMENT,COMPUTER NETWORK/INFORMATION SERVICES,GPC
WALSALL COUNCIL,HTTP://OPENDATACOMMUNITIES.ORG/ID/METROPOLITAN-DISTRICT-COUNCIL/WALSALL,30/09/2020,ADULT SOCIAL CARE,FAIRWAY DOG BOARDING KENN,13/07/2020,H59620200714SKLAWCYUY-1,224.00,SOCIAL SUPPORT-OTHER EXPENSES,OTHER SERVICES,GPC
WALSALL COUNCIL,HTTP://OPENDATACOMMUNITIES.ORG/ID/METROPOLITAN-DISTRICT-COUNCIL/WALSALL,30/09/2020,CHILDRENS SERVICES,CH FURNITURE SUPPLIES,13/07/2020,H59620200714SKVWOFHRK-1,420.00,TRANSITION AND LEAVING CARE PL-CARE LEAVERS MTCE PAYMENTS,"EQUIPMENT, FURNITURE, AND HOME FURNISHINGS STORES ",GPC
WALSALL COUNCIL,HTTP://OPENDATACOMMUNITIES.ORG/ID/METROPOLITAN-DISTRICT-COUNCIL/WALSALL,30/09/2020,CHILDRENS SERVICES,AMZNMKTPLACE,13/07/2020,H59620200714TBREPJYHM-1,25.09,SPECIAL FACILITIES-MATERIALS,MISCELLANEOUS AND SPECIALTY RETAIL STORES,GPC
WALSALL COUNCIL,HTTP://OPENDATACOMMUNITIES.ORG/ID/METROPOLITAN-DISTRICT-COUNCIL/WALSALL,30/09/2020,CHILDRENS SERVICES,AMZNMKTPLACE,13/07/2020,H59620200714TBREPJYHM-2,25.73,SPECIAL FACILITIES-MATERIALS,MISCELLANEOUS AND SPECIALTY RETAIL STORES,GPC
WALSALL COUNCIL,HTTP://OPENDATACOMMUNITIES.ORG/ID/METROPOLITAN-DISTRICT-COUNCIL/WALSALL,30/09/2020,CHILDRENS SERVICES,ARGOS LTD,13/07/2020,H59620200714TRBFJXWWG-1,53.90,SAFEGUARDING & FAMILY SUPPORT-SECTION 1/17CHILD CARE ACT 198,DISCOUNT STORES,GPC
WALSALL COUNCIL,HTTP://OPENDATACOMMUNITIES.ORG/ID/METROPOLITAN-DISTRICT-COUNCIL/WALSALL,30/09/2020,RESOURCES & TRANSFORMATION,CHICKEN JOES LTD,13/07/2020,H59620200714TREFSNBSO-1,48.64,CATERING - SCHOOLS-FOOD & DRINK SUPPLIES,CATERERS,GPC
WALSALL COUNCIL,HTTP://OPENDATACOMMUNITIES.ORG/ID/METROPOLITAN-DISTRICT-COUNCIL/WALSALL,30/09/2020,ECONOMY & ENVIRONMENT,GILMORE BUILDING SUPPL,13/07/2020,H59620200714UCJNTIKQG-1,47.40,INFRASTRUCTURE MAINTENANCE-MATERIALS,LUMBER & BUILDING MATERIALS STORES,GPC
WALSALL COUNCIL,HTTP://OPENDATACOMMUNITIES.ORG/ID/METROPOLITAN-DISTRICT-COUNCIL/WALSALL,30/09/2020,CHILDRENS SERVICES - SCHOOLS,AMZNMKTPLACE,13/07/2020,H59620200714UEMCVODGT-1,29.99,CHUCKERY PRIMARY SCHOOL-OPERATIONAL MAINTENANCE,MISCELLANEOUS AND SPECIALTY RETAIL STORES,GPC
WALSALL COUNCIL,HTTP://OPENDATACOMMUNITIES.ORG/ID/METROPOLITAN-DISTRICT-COUNCIL/WALSALL,30/09/2020,RESOURCES & TRANSFORMATION,METRO INNS WALSALL,13/07/2020,H59620200714UHIMYWBZF-1,-494.00,BED & BREAKFAST PAYMENTS-HOTEL ACCOMMODATION-EMPLOYEES,"HOTELS, MOTELS, RESORTS",GPC
WALSALL COUNCIL,HTTP://OPENDATACOMMUNITIES.ORG/ID/METROPOLITAN-DISTRICT-COUNCIL/WALSALL,30/09/2020,CHILDRENS SERVICES,FOREIGN EXCHANGE FEE,13/07/2020,H59620200714UHPXJJKUZ-1,0.28,"43A HILTON ROAD, WILLENHALL-RESIDENTS PERSONAL EXPENSES-AL",,GPC
WALSALL COUNCIL,HTTP://OPENDATACOMMUNITIES.ORG/ID/METROPOLITAN-DISTRICT-COUNCIL/WALSALL,30/09/2020,CHILDRENS SERVICES,AMAZON.CO.UK*HZ7EO0FT5,13/07/2020,H59620200714UIOXWOYTX-1,18.00,CONTINGENCY-MATERIALS,OTHER DIRECT MARKETING-OTHER DIRECT MARKETERS,GPC
WALSALL COUNCIL,HTTP://OPENDATACOMMUNITIES.ORG/ID/METROPOLITAN-DISTRICT-COUNCIL/WALSALL,30/09/2020,CHILDRENS SERVICES - SCHOOLS,AMZNMKTPLACE,13/07/2020,H59620200714UKMIFIKOG-1,14.88,E19-MATERIALS,MISCELLANEOUS AND SPECIALTY RETAIL STORES,GPC
WALSALL COUNCIL,HTTP://OPENDATACOMMUNITIES.ORG/ID/METROPOLITAN-DISTRICT-COUNCIL/WALSALL,30/09/2020,CHILDRENS SERVICES,ABC SKIP HIRE LTD,13/07/2020,H59620200714UOWQKERYK-1,198.00,PELSALL VILLAGE SCHOOL-OPERATIONAL MAINTENANCE,"UTILITIES - ELECTRIC, GAS, SANITARY & WATER",GPC
WALSALL COUNCIL,HTTP://OPENDATACOMMUNITIES.ORG/ID/METROPOLITAN-DISTRICT-COUNCIL/WALSALL,30/09/2020,CHILDRENS SERVICES - SCHOOLS,VIZPRO WHITEBOARD,13/07/2020,H59620200714UVDSOHPKL-1,179.98,LEIGHSWOOD PRIMARY SCHOOL-PURCHASE OF FURNITURE & EQUIPM,ADVERTISING SERVICES,GPC
WALSALL COUNCIL,HTTP://OPENDATACOMMUNITIES.ORG/ID/METROPOLITAN-DISTRICT-COUNCIL/WALSALL,30/09/2020,CHILDRENS SERVICES,HTTP://WWW.FORWARDPRODUC,13/07/2020,H59620200714UZVNONYSE-1,22.40,CURRICULUM STOCK-MATERIALS,"STATIONERY, OFFICE SUPPLIES AND WRITING PAPER",GPC
WALSALL COUNCIL,HTTP://OPENDATACOMMUNITIES.ORG/ID/METROPOLITAN-DISTRICT-COUNCIL/WALSALL,30/09/2020,CHILDRENS SERVICES,MCDONALDS,13/07/2020,H59620200714VFQBNHXYP-1,5.11,ADOLESCENT SERVICE-FOOD & DRINK SUPPLIES,QUICK PAYMENT SERVICE-FAST-FOOD RESTAURANTS,GPC
WALSALL COUNCIL,HTTP://OPENDATACOMMUNITIES.ORG/ID/METROPOLITAN-DISTRICT-COUNCIL/WALSALL,30/09/2020,CHILDRENS SERVICES,AMZNMKTPLACE,13/07/2020,H59620200714VOCILXTII-1,29.86,"43A HILTON ROAD, WILLENHALL-RESIDENTS PERSONAL EXPENSES-AL",MISCELLANEOUS AND SPECIALTY RETAIL STORES,GPC
WALSALL COUNCIL,HTTP://OPENDATACOMMUNITIES.ORG/ID/METROPOLITAN-DISTRICT-COUNCIL/WALSALL,30/09/2020,RESOURCES & TRANSFORMATION,METRO INNS WALSALL,13/07/2020,H59620200714VUEOUJMFK-1,114.00,BED & BREAKFAST PAYMENTS-BED & BREAKFAST PAYMENTS,"HOTELS, MOTELS, RESORTS",GPC
WALSALL COUNCIL,HTTP://OPENDATACOMMUNITIES.ORG/ID/METROPOLITAN-DISTRICT-COUNCIL/WALSALL,30/09/2020,CHILDRENS SERVICES,AMZNMKTPLACE AMAZON.CO.UK,13/07/2020,H59620200714VURBEHYQC-1,51.98,SPECIAL FACILITIES-MATERIALS,MISCELLANEOUS AND SPECIALTY RETAIL STORES,GPC
WALSALL COUNCIL,HTTP://OPENDATACOMMUNITIES.ORG/ID/METROPOLITAN-DISTRICT-COUNCIL/WALSALL,30/09/2020,ADULT SOCIAL CARE,WURTH UK LTD,13/07/2020,H59620200714VWPRDCFMB-1,7273.25,ASC PARTNERSHIPS-CLEANING MATERIALS,HARDWARE EQUIPMENT AND SUPPLIES,GPC
WALSALL COUNCIL,HTTP://OPENDATACOMMUNITIES.ORG/ID/METROPOLITAN-DISTRICT-COUNCIL/WALSALL,30/09/2020,CHILDRENS SERVICES,AMZNMKTPLACE,13/07/2020,H59620200714VXGMWEBXW-1,50.37,GENERAL-MATERIALS,MISCELLANEOUS AND SPECIALTY RETAIL STORES,GPC
WALSALL COUNCIL,HTTP://OPENDATACOMMUNITIES.ORG/ID/METROPOLITAN-DISTRICT-COUNCIL/WALSALL,30/09/2020,CHILDRENS SERVICES,HOME BARGAINS,13/07/2020,H59620200714VYDPNCYQM-1,10.94,CONTACT SESSIONAL STAFF-MATERIALS,HARDWARE STORES,GPC
WALSALL COUNCIL,HTTP://OPENDATACOMMUNITIES.ORG/ID/METROPOLITAN-DISTRICT-COUNCIL/WALSALL,30/09/2020,CHILDRENS SERVICES - SCHOOLS,AMZNMKTPLACE,13/07/2020,H59620200714VYFKUXMBV-1,13.99,CHUCKERY PRIMARY SCHOOL-OPERATIONAL MAINTENANCE,MISCELLANEOUS AND SPECIALTY RETAIL STORES,GPC
WALSALL COUNCIL,HTTP://OPENDATACOMMUNITIES.ORG/ID/METROPOLITAN-DISTRICT-COUNCIL/WALSALL,30/09/2020,CHILDRENS SERVICES,AMAZON.CO.UK*S383F7YU5 AM,13/07/2020,H59620200714VZYPUDEHQ-1,34.36,SPECIAL FACILITIES-MATERIALS,MISCELLANEOUS AND SPECIALTY RETAIL STORES,GPC
WALSALL COUNCIL,HTTP://OPENDATACOMMUNITIES.ORG/ID/METROPOLITAN-DISTRICT-COUNCIL/WALSALL,30/09/2020,RESOURCES & TRANSFORMATION,WWW.BANNERUK.COM,13/07/2020,H59620200714WOJIGKSCT-1,172.30,LAW LIBRARY-MATERIALS,"STATIONERY, OFFICE SUPPLIES AND WRITING PAPER",GPC
WALSALL COUNCIL,HTTP://OPENDATACOMMUNITIES.ORG/ID/METROPOLITAN-DISTRICT-COUNCIL/WALSALL,30/09/2020,CHILDRENS SERVICES,THE WORKS,13/07/2020,H59620200714WQMSRGNDM-1,15.00,EARLY HELP HUB-PROFESSIONAL SERVICES-PRIV CON,DISCOUNT STORES,GPC
WALSALL COUNCIL,HTTP://OPENDATACOMMUNITIES.ORG/ID/METROPOLITAN-DISTRICT-COUNCIL/WALSALL,30/09/2020,CHILDRENS SERVICES,CH FURNITURE SUPPLIES,13/07/2020,H59620200714WYQQYOZHU-1,414.00,TRANSITION AND LEAVING CARE PL-CARE LEAVERS MTCE PAYMENTS,"EQUIPMENT, FURNITURE, AND HOME FURNISHINGS STORES ",GPC
WALSALL COUNCIL,HTTP://OPENDATACOMMUNITIES.ORG/ID/METROPOLITAN-DISTRICT-COUNCIL/WALSALL,30/09/2020,RESOURCES & TRANSFORMATION,AMZNMKTPLACE AMAZON.CO.UK,13/07/2020,H59620200714XUTEJIHJY-1,45.89,COMMUNITY SAFETY 2012/2013-STATIONERY & GENERAL OFFICE SU,MISCELLANEOUS AND SPECIALTY RETAIL STORES,GPC
WALSALL COUNCIL,HTTP://OPENDATACOMMUNITIES.ORG/ID/METROPOLITAN-DISTRICT-COUNCIL/WALSALL,30/09/2020,CHILDRENS SERVICES,WALSALL COUNCIL,13/07/2020,H59620200714XVDXNSKSP-1,17.00,SAFEGUARDING & FAMILY SUPPORT-FEES & LICENCES,GOVERNMENT SERVICES,GPC
WALSALL COUNCIL,HTTP://OPENDATACOMMUNITIES.ORG/ID/METROPOLITAN-DISTRICT-COUNCIL/WALSALL,30/09/2020,ECONOMY & ENVIRONMENT,SCREWFIX DIRECT,13/07/2020,H59620200714XZQLKKVEK-1,38.30,FLEET-MATERIALS,HOME SUPPLY WAREHOUSE STORES,GPC
WALSALL COUNCIL,HTTP://OPENDATACOMMUNITIES.ORG/ID/METROPOLITAN-DISTRICT-COUNCIL/WALSALL,30/09/2020,CHILDRENS SERVICES,MONKEYOFFICE.CO.UK,13/07/2020,H59620200714YCURLLBIO-1,102.96,EARLY YEARS DEPARTMENT-MATERIALS,"OFFICE, SCHOOL SUPPLY, AND STATIONERY STORES",GPC
WALSALL COUNCIL,HTTP://OPENDATACOMMUNITIES.ORG/ID/METROPOLITAN-DISTRICT-COUNCIL/WALSALL,30/09/2020,CHILDRENS SERVICES,PAYPAL *BLOOMINGART,13/07/2020,H59620200714YMUYLPKNL-1,308.00,ST FRANCIS OF ASSISI CATHOLIC -OPERATIONAL MAINTENANCE,MISCELLANEOUS HOUSE FURNISHING SPECIALTY SHOPS,GPC
WALSALL COUNCIL,HTTP://OPENDATACOMMUNITIES.ORG/ID/METROPOLITAN-DISTRICT-COUNCIL/WALSALL,30/09/2020,CHILDRENS SERVICES,AMAZON.CO.UK*1F6LM2AH5 AM,13/07/2020,H59620200714ZJOUZDEXX-1,100.00,"43A HILTON ROAD, WILLENHALL-RESIDENTS PERSONAL EXPENSES-AL",MISCELLANEOUS AND SPECIALTY RETAIL STORES,GPC
WALSALL COUNCIL,HTTP://OPENDATACOMMUNITIES.ORG/ID/METROPOLITAN-DISTRICT-COUNCIL/WALSALL,30/09/2020,RESOURCES & TRANSFORMATION,BLAKEMORE FOODSERVICE,14/07/2020,H59620200715AEXQISFXM-1,118.68,CATERING - SCHOOLS-FOOD & DRINK SUPPLIES,CATERERS,GPC
WALSALL COUNCIL,HTTP://OPENDATACOMMUNITIES.ORG/ID/METROPOLITAN-DISTRICT-COUNCIL/WALSALL,30/09/2020,CHILDRENS SERVICES,WWW.THEWORKS.CO.UK,14/07/2020,H59620200715BDEXWPEFD-1,96.00,EARLY HELP HUB-PROFESSIONAL SERVICES-PRIV CON,DISCOUNT STORES,GPC
WALSALL COUNCIL,HTTP://OPENDATACOMMUNITIES.ORG/ID/METROPOLITAN-DISTRICT-COUNCIL/WALSALL,30/09/2020,CHILDRENS SERVICES,ICELAND,14/07/2020,H59620200715CGOWTGAFD-1,287.87,EARLY HELP HUB-PROFESSIONAL SERVICES-PRIV CON,GROCERY STORES AND SUPERMARKETS,GPC
WALSALL COUNCIL,HTTP://OPENDATACOMMUNITIES.ORG/ID/METROPOLITAN-DISTRICT-COUNCIL/WALSALL,30/09/2020,RESOURCES & TRANSFORMATION,BLAKEMORE FOODSERVICE,14/07/2020,H59620200715CINLHEJST-1,140.11,CATERING - SCHOOLS-FOOD & DRINK SUPPLIES,CATERERS,GPC
WALSALL COUNCIL,HTTP://OPENDATACOMMUNITIES.ORG/ID/METROPOLITAN-DISTRICT-COUNCIL/WALSALL,30/09/2020,RESOURCES & TRANSFORMATION,BLAKEMORE FOODSERVICE,14/07/2020,H59620200715CINLHEJST-2,8.83,CATERING - SCHOOLS-FOOD & DRINK SUPPLIES,CATERERS,GPC
WALSALL COUNCIL,HTTP://OPENDATACOMMUNITIES.ORG/ID/METROPOLITAN-DISTRICT-COUNCIL/WALSALL,30/09/2020,CHILDRENS SERVICES,POUNDLAND,14/07/2020,H59620200715CVOEYQXQB-1,25.10,ADOLESCENT SERVICE-STATIONERY & GENERAL OFFICE SU,DISCOUNT STORES,GPC
WALSALL COUNCIL,HTTP://OPENDATACOMMUNITIES.ORG/ID/METROPOLITAN-DISTRICT-COUNCIL/WALSALL,30/09/2020,ECONOMY & ENVIRONMENT,DVLA VEHICLE TAX,14/07/2020,H59620200715DOXIJQYTG-1,267.50,FLEET-LICENCES FOR VEHICLES,TAX PAYMENTS,GPC
WALSALL COUNCIL,HTTP://OPENDATACOMMUNITIES.ORG/ID/METROPOLITAN-DISTRICT-COUNCIL/WALSALL,30/09/2020,ECONOMY & ENVIRONMENT,DVLA VEHICLE TAX,14/07/2020,H59620200715ETRUQQUPP-1,267.50,FLEET-LICENCES FOR VEHICLES,TAX PAYMENTS,GPC
WALSALL COUNCIL,HTTP://OPENDATACOMMUNITIES.ORG/ID/METROPOLITAN-DISTRICT-COUNCIL/WALSALL,30/09/2020,CHILDRENS SERVICES,AMAZON.CO.UK*ZB8H57U55 AM,14/07/2020,H59620200715EUVDELWTR-1,47.49,"43A HILTON ROAD, WILLENHALL-RESIDENTS PERSONAL EXPENSES-AL",MISCELLANEOUS AND SPECIALTY RETAIL STORES,GPC
WALSALL COUNCIL,HTTP://OPENDATACOMMUNITIES.ORG/ID/METROPOLITAN-DISTRICT-COUNCIL/WALSALL,30/09/2020,CHILDRENS SERVICES - SCHOOLS,TRAFALGAR CLEANING EQU,14/07/2020,H59620200715FOVHOUUOR-1,1323.00,CHUCKERY PRIMARY SCHOOL-OPERATIONAL MAINTENANCE,"CLEANING AND MAINTENANCE, JANITORIAL SERVICES",GPC
WALSALL COUNCIL,HTTP://OPENDATACOMMUNITIES.ORG/ID/METROPOLITAN-DISTRICT-COUNCIL/WALSALL,30/09/2020,CHILDRENS SERVICES,AMZNMKTPLACE,14/07/2020,H59620200715FUQOCLAXN-1,29.97,SPECIAL FACILITIES-MATERIALS,MISCELLANEOUS AND SPECIALTY RETAIL STORES,GPC
WALSALL COUNCIL,HTTP://OPENDATACOMMUNITIES.ORG/ID/METROPOLITAN-DISTRICT-COUNCIL/WALSALL,30/09/2020,RESOURCES & TRANSFORMATION,123 REG LTD,14/07/2020,H59620200715GHNVKUJJS-1,11.99,APPLICATIONS-COMPUTER EQUIPMENT,DIRECT MARKETING CONTINUITY SUBSCRIPTION MERCHANTS,GPC
WALSALL COUNCIL,HTTP://OPENDATACOMMUNITIES.ORG/ID/METROPOLITAN-DISTRICT-COUNCIL/WALSALL,30/09/2020,RESOURCES & TRANSFORMATION,BLAKEMORE FOODSERVICE,14/07/2020,H59620200715GKCNARWZE-1,615.95,CATERING - SCHOOLS-FOOD & DRINK SUPPLIES,CATERERS,GPC
WALSALL COUNCIL,HTTP://OPENDATACOMMUNITIES.ORG/ID/METROPOLITAN-DISTRICT-COUNCIL/WALSALL,30/09/2020,ECONOMY & ENVIRONMENT,DVLA VEHICLE TAX,14/07/2020,H59620200715GMXQUUMXT-1,167.50,FLEET-LICENCES FOR VEHICLES,TAX PAYMENTS,GPC
WALSALL COUNCIL,HTTP://OPENDATACOMMUNITIES.ORG/ID/METROPOLITAN-DISTRICT-COUNCIL/WALSALL,30/09/2020,CHILDRENS SERVICES,PAYPAL *ARGOSDIRECT,14/07/2020,H59620200715GOYOXCWQF-1,102.98,PUPIL PREMIUM-MATERIALS,VARIETY STORES,GPC
WALSALL COUNCIL,HTTP://OPENDATACOMMUNITIES.ORG/ID/METROPOLITAN-DISTRICT-COUNCIL/WALSALL,30/09/2020,CHILDRENS SERVICES,AMZNMKTPLACE,14/07/2020,H59620200715GTRVTMLDG-1,43.96,ART-MATERIALS,MISCELLANEOUS AND SPECIALTY RETAIL STORES,GPC
WALSALL COUNCIL,HTTP://OPENDATACOMMUNITIES.ORG/ID/METROPOLITAN-DISTRICT-COUNCIL/WALSALL,30/09/2020,CHILDRENS SERVICES - SCHOOLS,PAYPAL *HARTSOFSTUR,14/07/2020,H59620200715HQYGQXVLB-1,54.24,E19-MATERIALS,"ANTIQUE SALES, REPAIRS, AND RESTORATION SERVICES",GPC
WALSALL COUNCIL,HTTP://OPENDATACOMMUNITIES.ORG/ID/METROPOLITAN-DISTRICT-COUNCIL/WALSALL,30/09/2020,ECONOMY & ENVIRONMENT,BLAKEMORE FOODSERVICE,14/07/2020,H59620200715HSMHVTNVO-1,3157.65,CIVIC LEADERSHIP AND MOBILISIN-STATIONERY & GENERAL OFFICE SU,CATERERS,GPC
WALSALL COUNCIL,HTTP://OPENDATACOMMUNITIES.ORG/ID/METROPOLITAN-DISTRICT-COUNCIL/WALSALL,30/09/2020,ECONOMY & ENVIRONMENT,DISPLAYSENSE.CO.UK,14/07/2020,H59620200715HUBSDXAVZ-1,141.00,OAK PARK-MATERIALS,OTHER COMMERCIAL EQUIPMENT,GPC
WALSALL COUNCIL,HTTP://OPENDATACOMMUNITIES.ORG/ID/METROPOLITAN-DISTRICT-COUNCIL/WALSALL,30/09/2020,ECONOMY & ENVIRONMENT,DVLA VEHICLE TAX,14/07/2020,H59620200715IXDVHOVUC-1,617.50,FLEET-LICENCES FOR VEHICLES,TAX PAYMENTS,GPC
WALSALL COUNCIL,HTTP://OPENDATACOMMUNITIES.ORG/ID/METROPOLITAN-DISTRICT-COUNCIL/WALSALL,30/09/2020,CHILDRENS SERVICES,AMZNMKTPLACE,14/07/2020,H59620200715JKBTDUGTU-1,38.86,SPECIAL FACILITIES-MATERIALS,MISCELLANEOUS AND SPECIALTY RETAIL STORES,GPC
WALSALL COUNCIL,HTTP://OPENDATACOMMUNITIES.ORG/ID/METROPOLITAN-DISTRICT-COUNCIL/WALSALL,30/09/2020,CHILDRENS SERVICES,AMZNMKTPLACE,14/07/2020,H59620200715JKBTDUGTU-2,8.99,SPECIAL FACILITIES-MATERIALS,MISCELLANEOUS AND SPECIALTY RETAIL STORES,GPC
WALSALL COUNCIL,HTTP://OPENDATACOMMUNITIES.ORG/ID/METROPOLITAN-DISTRICT-COUNCIL/WALSALL,30/09/2020,CHILDRENS SERVICES,HUBBARD CONSULTANCY,14/07/2020,H59620200715JUBIQEUNP-1,60.00,SALISBURY PRIMARY SCHOOL-EXTERNAL TRAINING,"COMPUTER PROGRAM, SYSTEM DESIGN",GPC
WALSALL COUNCIL,HTTP://OPENDATACOMMUNITIES.ORG/ID/METROPOLITAN-DISTRICT-COUNCIL/WALSALL,30/09/2020,ECONOMY & ENVIRONMENT,DVLA VEHICLE TAX,14/07/2020,H59620200715JXCVKPALX-1,617.50,FLEET-LICENCES FOR VEHICLES,TAX PAYMENTS,GPC
WALSALL COUNCIL,HTTP://OPENDATACOMMUNITIES.ORG/ID/METROPOLITAN-DISTRICT-COUNCIL/WALSALL,30/09/2020,ECONOMY & ENVIRONMENT,FUEL TANK SHOP LTD,14/07/2020,H59620200715KKSHRBQQQ-1,72.00,ARBORETUM-MATERIALS,MISCELLANEOUS AND SPECIALTY RETAIL STORES,GPC
WALSALL COUNCIL,HTTP://OPENDATACOMMUNITIES.ORG/ID/METROPOLITAN-DISTRICT-COUNCIL/WALSALL,30/09/2020,CHILDRENS SERVICES,POST OFFICE COUNTER,14/07/2020,H59620200715KNEUFKLJU-1,195.00,FAMILY PLACEMENTS-POSTAGES & COURIER SERVICES,POSTAL SERVICES - GOVERNMENT ONLY,GPC
WALSALL COUNCIL,HTTP://OPENDATACOMMUNITIES.ORG/ID/METROPOLITAN-DISTRICT-COUNCIL/WALSALL,30/09/2020,CHILDRENS SERVICES - SCHOOLS,123 REG LTD,14/07/2020,H59620200715KQHJKLXDG-1,50.33,ADMINISTRATIVE SUPPLIES-MATERIALS,COMPUTER NETWORK/INFORMATION SERVICES,GPC
WALSALL COUNCIL,HTTP://OPENDATACOMMUNITIES.ORG/ID/METROPOLITAN-DISTRICT-COUNCIL/WALSALL,30/09/2020,ECONOMY & ENVIRONMENT,B & Q 1276,14/07/2020,H59620200715LBGFDPYDG-1,16.36,DEPOT-MATERIALS,HOME SUPPLY WAREHOUSE STORES,GPC
WALSALL COUNCIL,HTTP://OPENDATACOMMUNITIES.ORG/ID/METROPOLITAN-DISTRICT-COUNCIL/WALSALL,30/09/2020,ECONOMY & ENVIRONMENT,BLAKEMORE FOODSERVICE,14/07/2020,H59620200715LKNJHPVGG-1,937.44,CIVIC LEADERSHIP AND MOBILISIN-STATIONERY & GENERAL OFFICE SU,CATERERS,GPC
WALSALL COUNCIL,HTTP://OPENDATACOMMUNITIES.ORG/ID/METROPOLITAN-DISTRICT-COUNCIL/WALSALL,30/09/2020,RESOURCES & TRANSFORMATION,NOBISCO LIMITED,14/07/2020,H59620200715MCWRBCUMK-1,122.20,CATERING - SCHOOLS-PURCHASE OF FURNITURE & EQUIPM,OTHER INDUSTRIAL SUPPLIES,GPC
WALSALL COUNCIL,HTTP://OPENDATACOMMUNITIES.ORG/ID/METROPOLITAN-DISTRICT-COUNCIL/WALSALL,30/09/2020,CHILDRENS SERVICES,AMZNMKTPLACE,14/07/2020,H59620200715MDJTVPICL-1,43.96,SPECIAL FACILITIES-MATERIALS,MISCELLANEOUS AND SPECIALTY RETAIL STORES,GPC
WALSALL COUNCIL,HTTP://OPENDATACOMMUNITIES.ORG/ID/METROPOLITAN-DISTRICT-COUNCIL/WALSALL,30/09/2020,CHILDRENS SERVICES,WWW.FURNITUREATWORK.CO,14/07/2020,H59620200715MTCPEFFOU-1,199.20,SPECIAL FACILITIES -  BEFORE/A-MATERIALS,"EQUIPMENT, FURNITURE, AND HOME FURNISHINGS STORES ",GPC
WALSALL COUNCIL,HTTP://OPENDATACOMMUNITIES.ORG/ID/METROPOLITAN-DISTRICT-COUNCIL/WALSALL,30/09/2020,ECONOMY & ENVIRONMENT,DVLA VEHICLE TAX,14/07/2020,H59620200715NEAIJOCXY-1,267.50,FLEET-LICENCES FOR VEHICLES,TAX PAYMENTS,GPC
WALSALL COUNCIL,HTTP://OPENDATACOMMUNITIES.ORG/ID/METROPOLITAN-DISTRICT-COUNCIL/WALSALL,30/09/2020,CHILDRENS SERVICES,AMZNMKTPLACE,14/07/2020,H59620200715OGCEICYRK-1,5.98,EARLY HELP HUB-PROFESSIONAL SERVICES-PRIV CON,MISCELLANEOUS AND SPECIALTY RETAIL STORES,GPC
WALSALL COUNCIL,HTTP://OPENDATACOMMUNITIES.ORG/ID/METROPOLITAN-DISTRICT-COUNCIL/WALSALL,30/09/2020,CHILDRENS SERVICES,TESCO STORE 3351,14/07/2020,H59620200715OXANQRGSR-1,26.58,BREAKFAST CLUB-MATERIALS,GROCERY STORES AND SUPERMARKETS,GPC
WALSALL COUNCIL,HTTP://OPENDATACOMMUNITIES.ORG/ID/METROPOLITAN-DISTRICT-COUNCIL/WALSALL,30/09/2020,ECONOMY & ENVIRONMENT,MIDLANDNEWS.COM,14/07/2020,H59620200715PGLITZWDI-1,110.40,DEVELOPMENT MANAGEMENT-SUBSCRIPTIONS,NEWS DEALERS AND NEWSSTANDS,GPC
WALSALL COUNCIL,HTTP://OPENDATACOMMUNITIES.ORG/ID/METROPOLITAN-DISTRICT-COUNCIL/WALSALL,30/09/2020,RESOURCES & TRANSFORMATION,BLAKEMORE FOODSERVICE,14/07/2020,H59620200715PREROWLRU-1,60.17,CATERING - SCHOOLS-FOOD & DRINK SUPPLIES,CATERERS,GPC
WALSALL COUNCIL,HTTP://OPENDATACOMMUNITIES.ORG/ID/METROPOLITAN-DISTRICT-COUNCIL/WALSALL,30/09/2020,RESOURCES & TRANSFORMATION,BLAKEMORE FOODSERVICE,14/07/2020,H59620200715PREROWLRU-2,127.44,CATERING - SCHOOLS-FOOD & DRINK SUPPLIES,CATERERS,GPC
WALSALL COUNCIL,HTTP://OPENDATACOMMUNITIES.ORG/ID/METROPOLITAN-DISTRICT-COUNCIL/WALSALL,30/09/2020,ECONOMY & ENVIRONMENT,WILKO RETAIL LIMITED,14/07/2020,H59620200715PTSUBZWWR-1,13.55,LIBRARY OPERATIONS - MOBILE SE-STATIONERY & GENERAL OFFICE SU,MISCELLANEOUS GENERAL MERCHANDISE,GPC
WALSALL COUNCIL,HTTP://OPENDATACOMMUNITIES.ORG/ID/METROPOLITAN-DISTRICT-COUNCIL/WALSALL,30/09/2020,CHILDRENS SERVICES,ONE BELOW,14/07/2020,H59620200715QNXXUCULJ-1,24.10,EARLY HELP HUB-PROFESSIONAL SERVICES-PRIV CON,GROCERY STORES AND SUPERMARKETS,GPC
WALSALL COUNCIL,HTTP://OPENDATACOMMUNITIES.ORG/ID/METROPOLITAN-DISTRICT-COUNCIL/WALSALL,30/09/2020,CHILDRENS SERVICES,WM MORRISONS STORE,14/07/2020,H59620200715QOXIULNWP-1,22.61,57 LICHFIELD ROAD-FOOD & DRINK SUPPLIES,GROCERY STORES AND SUPERMARKETS,GPC
WALSALL COUNCIL,HTTP://OPENDATACOMMUNITIES.ORG/ID/METROPOLITAN-DISTRICT-COUNCIL/WALSALL,30/09/2020,CHILDRENS SERVICES,WM MORRISONS STORE,14/07/2020,H59620200715QOXIULNWP-2,68.57,57 LICHFIELD ROAD-FOOD & DRINK SUPPLIES,GROCERY STORES AND SUPERMARKETS,GPC
WALSALL COUNCIL,HTTP://OPENDATACOMMUNITIES.ORG/ID/METROPOLITAN-DISTRICT-COUNCIL/WALSALL,30/09/2020,RESOURCES & TRANSFORMATION,NOBISCO LIMITED,14/07/2020,H59620200715QXKPLQBAD-1,155.09,CATERING - SCHOOLS-FOOD & DRINK SUPPLIES,OTHER INDUSTRIAL SUPPLIES,GPC
WALSALL COUNCIL,HTTP://OPENDATACOMMUNITIES.ORG/ID/METROPOLITAN-DISTRICT-COUNCIL/WALSALL,30/09/2020,CHILDRENS SERVICES,POUNDLAND LTD 1427,14/07/2020,H59620200715RBTKDYPIF-1,15.00,EARLY HELP HUB-PROFESSIONAL SERVICES-PRIV CON,DISCOUNT STORES,GPC
WALSALL COUNCIL,HTTP://OPENDATACOMMUNITIES.ORG/ID/METROPOLITAN-DISTRICT-COUNCIL/WALSALL,30/09/2020,CHILDRENS SERVICES,AMAZON.CO.UK*Q51RH3O35 AM,14/07/2020,H59620200715RFSOVAIWX-1,27.47,SEN-LIBRARY BOOKS,MISCELLANEOUS AND SPECIALTY RETAIL STORES,GPC
WALSALL COUNCIL,HTTP://OPENDATACOMMUNITIES.ORG/ID/METROPOLITAN-DISTRICT-COUNCIL/WALSALL,30/09/2020,CHILDRENS SERVICES,AMAZON.CO.UK*Q51RH3O35 AM,14/07/2020,H59620200715RFSOVAIWX-2,27.48,SEN-LIBRARY BOOKS,MISCELLANEOUS AND SPECIALTY RETAIL STORES,GPC
WALSALL COUNCIL,HTTP://OPENDATACOMMUNITIES.ORG/ID/METROPOLITAN-DISTRICT-COUNCIL/WALSALL,30/09/2020,CHILDRENS SERVICES,PULSE FITNESS,14/07/2020,H59620200715SAUGKLUDY-1,66.60,ST FRANCIS OF ASSISI CATHOLIC -OPERATIONAL MAINTENANCE,SPORTING GOODS STORES,GPC
WALSALL COUNCIL,HTTP://OPENDATACOMMUNITIES.ORG/ID/METROPOLITAN-DISTRICT-COUNCIL/WALSALL,30/09/2020,RESOURCES & TRANSFORMATION,AMZNMKTPLACE,14/07/2020,H59620200715SNOWXVLHY-1,50.95,ACCOMMODATION SERVICES MANAGEM-PURCHASE OF FURNITURE & EQUIPM,MISCELLANEOUS AND SPECIALTY RETAIL STORES,GPC
WALSALL COUNCIL,HTTP://OPENDATACOMMUNITIES.ORG/ID/METROPOLITAN-DISTRICT-COUNCIL/WALSALL,30/09/2020,CHILDRENS SERVICES,ALDI 42 772,14/07/2020,H59620200715SNYVTTNNG-1,13.63,REDRUTH ROAD-FOOD & DRINK SUPPLIES,GROCERY STORES AND SUPERMARKETS,GPC
WALSALL COUNCIL,HTTP://OPENDATACOMMUNITIES.ORG/ID/METROPOLITAN-DISTRICT-COUNCIL/WALSALL,30/09/2020,CHILDRENS SERVICES,ALDI 42 772,14/07/2020,H59620200715SNYVTTNNG-2,94.68,REDRUTH ROAD-FOOD & DRINK SUPPLIES,GROCERY STORES AND SUPERMARKETS,GPC
WALSALL COUNCIL,HTTP://OPENDATACOMMUNITIES.ORG/ID/METROPOLITAN-DISTRICT-COUNCIL/WALSALL,30/09/2020,CHILDRENS SERVICES - SCHOOLS,AMAZON.CO.UK*MN14D80I5,14/07/2020,H59620200715TJBFGXJWK-1,15.99,E19-MATERIALS,OTHER DIRECT MARKETING-OTHER DIRECT MARKETERS,GPC
WALSALL COUNCIL,HTTP://OPENDATACOMMUNITIES.ORG/ID/METROPOLITAN-DISTRICT-COUNCIL/WALSALL,30/09/2020,CHILDRENS SERVICES,AMZNMKTPLACE,14/07/2020,H59620200715TKKUOCGAL-1,42.94,CURRICULUM STATIONERY-MATERIALS,MISCELLANEOUS AND SPECIALTY RETAIL STORES,GPC
WALSALL COUNCIL,HTTP://OPENDATACOMMUNITIES.ORG/ID/METROPOLITAN-DISTRICT-COUNCIL/WALSALL,30/09/2020,CHILDRENS SERVICES,A F BLAKEMORE & SON LTD,14/07/2020,H59620200715TNFRBGFTF-1,149.88,MARY ELLIOTT SCHOOL-FOOD & DRINK SUPPLIES,GROCERY STORES AND SUPERMARKETS,GPC
WALSALL COUNCIL,HTTP://OPENDATACOMMUNITIES.ORG/ID/METROPOLITAN-DISTRICT-COUNCIL/WALSALL,30/09/2020,CHILDRENS SERVICES,ALDI 42 772,14/07/2020,H59620200715UBLMXBKZI-1,12.99,REDRUTH ROAD-PURCHASE OF FURNITURE & EQUIPM,GROCERY STORES AND SUPERMARKETS,GPC
WALSALL COUNCIL,HTTP://OPENDATACOMMUNITIES.ORG/ID/METROPOLITAN-DISTRICT-COUNCIL/WALSALL,30/09/2020,ECONOMY & ENVIRONMENT,LINWOOD TRADE SUPPLIES,14/07/2020,H59620200715UBSQEVTFR-1,66.00,WALSALL ARENA AND ARTS CENTRE-PURCHASE OF FURNITURE & EQUIPM,HOME SUPPLY WAREHOUSE STORES,GPC
WALSALL COUNCIL,HTTP://OPENDATACOMMUNITIES.ORG/ID/METROPOLITAN-DISTRICT-COUNCIL/WALSALL,30/09/2020,CHILDRENS SERVICES,WM MORRISONS STORE,14/07/2020,H59620200715UTKIBDTEL-1,420.00,EARLY HELP HUB-PROFESSIONAL SERVICES-PRIV CON,GROCERY STORES AND SUPERMARKETS,GPC
WALSALL COUNCIL,HTTP://OPENDATACOMMUNITIES.ORG/ID/METROPOLITAN-DISTRICT-COUNCIL/WALSALL,30/09/2020,CHILDRENS SERVICES,WM MORRISONS STORE,14/07/2020,H59620200715UTKIBDTEL-2,8.45,EARLY HELP HUB-PROFESSIONAL SERVICES-PRIV CON,GROCERY STORES AND SUPERMARKETS,GPC
WALSALL COUNCIL,HTTP://OPENDATACOMMUNITIES.ORG/ID/METROPOLITAN-DISTRICT-COUNCIL/WALSALL,30/09/2020,CHILDRENS SERVICES,WM MORRISONS STORE,14/07/2020,H59620200715UTKIBDTEL-3,7.00,EARLY HELP HUB-PROFESSIONAL SERVICES-PRIV CON,GROCERY STORES AND SUPERMARKETS,GPC
WALSALL COUNCIL,HTTP://OPENDATACOMMUNITIES.ORG/ID/METROPOLITAN-DISTRICT-COUNCIL/WALSALL,30/09/2020,CHILDRENS SERVICES,POUNDLAND LTD 1427,14/07/2020,H59620200715VUUVMLDSS-1,4.00,EARLY HELP HUB-PROFESSIONAL SERVICES-PRIV CON,DISCOUNT STORES,GPC
WALSALL COUNCIL,HTTP://OPENDATACOMMUNITIES.ORG/ID/METROPOLITAN-DISTRICT-COUNCIL/WALSALL,30/09/2020,CHILDRENS SERVICES,AMZNMKTPLACE,14/07/2020,H59620200715VXYOGQFOM-1,278.82,SAFEGUARDING & FAMILY SUPPORT-SECTION 1/17CHILD CARE ACT 198,MISCELLANEOUS AND SPECIALTY RETAIL STORES,GPC
WALSALL COUNCIL,HTTP://OPENDATACOMMUNITIES.ORG/ID/METROPOLITAN-DISTRICT-COUNCIL/WALSALL,30/09/2020,CHILDRENS SERVICES,BAKER ROSS,14/07/2020,H59620200715WFMTTFQNP-1,69.60,EARLY HELP HUB-PROFESSIONAL SERVICES-PRIV CON,"ARTIST SUPPLY STORES, CRAFT SHOPS",GPC
WALSALL COUNCIL,HTTP://OPENDATACOMMUNITIES.ORG/ID/METROPOLITAN-DISTRICT-COUNCIL/WALSALL,30/09/2020,CHILDRENS SERVICES,WILKO RETAIL LIMITED,14/07/2020,H59620200715WMPMTJBRX-1,12.00,EARLY HELP HUB-PROFESSIONAL SERVICES-PRIV CON,MISCELLANEOUS GENERAL MERCHANDISE,GPC
WALSALL COUNCIL,HTTP://OPENDATACOMMUNITIES.ORG/ID/METROPOLITAN-DISTRICT-COUNCIL/WALSALL,30/09/2020,ECONOMY & ENVIRONMENT,AMZNMKTPLACE,14/07/2020,H59620200715WYDRQOTSU-1,48.20,OAK PARK-STATIONERY & GENERAL OFFICE SU,MISCELLANEOUS AND SPECIALTY RETAIL STORES,GPC
WALSALL COUNCIL,HTTP://OPENDATACOMMUNITIES.ORG/ID/METROPOLITAN-DISTRICT-COUNCIL/WALSALL,30/09/2020,ECONOMY & ENVIRONMENT,AMZNMKTPLACE,14/07/2020,H59620200715XMFROBNRY-1,15.88,OAK PARK-STATIONERY & GENERAL OFFICE SU,MISCELLANEOUS AND SPECIALTY RETAIL STORES,GPC
WALSALL COUNCIL,HTTP://OPENDATACOMMUNITIES.ORG/ID/METROPOLITAN-DISTRICT-COUNCIL/WALSALL,30/09/2020,CHILDRENS SERVICES,AMZNMKTPLACE,14/07/2020,H59620200715YDWXBTRMO-1,25.78,REDRUTH ROAD-PURCHASE OF FURNITURE & EQUIPM,MISCELLANEOUS AND SPECIALTY RETAIL STORES,GPC
WALSALL COUNCIL,HTTP://OPENDATACOMMUNITIES.ORG/ID/METROPOLITAN-DISTRICT-COUNCIL/WALSALL,30/09/2020,CHILDRENS SERVICES,RYANAIR 22400000P96RN,14/07/2020,H59620200715YNSHOZTGE-1,164.59,SAFEGUARDING & FAMILY SUPPORT-SECTION 1/17CHILD CARE ACT 198,RYANAIR,GPC
WALSALL COUNCIL,HTTP://OPENDATACOMMUNITIES.ORG/ID/METROPOLITAN-DISTRICT-COUNCIL/WALSALL,30/09/2020,CHILDRENS SERVICES,WWW.THEWORKS.CO.UK,14/07/2020,H59620200715YORYXHOYX-1,56.00,EARLY HELP HUB-PROFESSIONAL SERVICES-PRIV CON,DISCOUNT STORES,GPC
WALSALL COUNCIL,HTTP://OPENDATACOMMUNITIES.ORG/ID/METROPOLITAN-DISTRICT-COUNCIL/WALSALL,30/09/2020,ECONOMY & ENVIRONMENT,DVLA VEHICLE TAX,14/07/2020,H59620200715YWFLVEMNA-1,167.50,FLEET-LICENCES FOR VEHICLES,TAX PAYMENTS,GPC
WALSALL COUNCIL,HTTP://OPENDATACOMMUNITIES.ORG/ID/METROPOLITAN-DISTRICT-COUNCIL/WALSALL,30/09/2020,CHILDRENS SERVICES,SIGNMAX AB,14/07/2020,H59620200715YWYASTXPY-1,267.97,MEADOW VIEW JMI PRIMARY SCHOOL-OPERATIONAL MAINTENANCE,"TYPESETTING, PLATE MAKING, AND RELATED SERVICES",GPC
WALSALL COUNCIL,HTTP://OPENDATACOMMUNITIES.ORG/ID/METROPOLITAN-DISTRICT-COUNCIL/WALSALL,30/09/2020,ECONOMY & ENVIRONMENT,DVLA VEHICLE TAX,14/07/2020,H59620200715ZGIRYUUFY-1,267.50,FLEET-LICENCES FOR VEHICLES,TAX PAYMENTS,GPC
WALSALL COUNCIL,HTTP://OPENDATACOMMUNITIES.ORG/ID/METROPOLITAN-DISTRICT-COUNCIL/WALSALL,30/09/2020,CHILDRENS SERVICES,WWW.RADIO-SOLUTION.CO.,15/07/2020,H59620200716BJPACOCFN-1,199.98,ADMINISTRATIVE SUPPLIES-PURCHASE OF FURNITURE & EQUIPM,ELECTRONIC SALES,GPC
WALSALL COUNCIL,HTTP://OPENDATACOMMUNITIES.ORG/ID/METROPOLITAN-DISTRICT-COUNCIL/WALSALL,30/09/2020,CHILDRENS SERVICES,WALSALL COUNCIL,15/07/2020,H59620200716CDWTCVRAN-1,39.00,LOOKED AFTER CHILDRENS SOCIAL -FEES & LICENCES,GOVERNMENT SERVICES,GPC
WALSALL COUNCIL,HTTP://OPENDATACOMMUNITIES.ORG/ID/METROPOLITAN-DISTRICT-COUNCIL/WALSALL,30/09/2020,ECONOMY & ENVIRONMENT,AMZNMKTPLACE,15/07/2020,H59620200716CGIWYLGPM-1,223.10,BLOXWICH LEISURE CENTRE-MATERIALS,MISCELLANEOUS AND SPECIALTY RETAIL STORES,GPC
WALSALL COUNCIL,HTTP://OPENDATACOMMUNITIES.ORG/ID/METROPOLITAN-DISTRICT-COUNCIL/WALSALL,30/09/2020,ECONOMY & ENVIRONMENT,AMZNMKTPLACE,15/07/2020,H59620200716CGIWYLGPM-2,223.10,OAK PARK-MATERIALS,MISCELLANEOUS AND SPECIALTY RETAIL STORES,GPC
WALSALL COUNCIL,HTTP://OPENDATACOMMUNITIES.ORG/ID/METROPOLITAN-DISTRICT-COUNCIL/WALSALL,30/09/2020,CHILDRENS SERVICES,AMZNMKTPLACE AMAZON.CO.UK,15/07/2020,H59620200716CXITDGCKE-1,4.24,"43A HILTON ROAD, WILLENHALL-PURCHASE OF FURNITURE & EQUIPM",MISCELLANEOUS AND SPECIALTY RETAIL STORES,GPC
WALSALL COUNCIL,HTTP://OPENDATACOMMUNITIES.ORG/ID/METROPOLITAN-DISTRICT-COUNCIL/WALSALL,30/09/2020,RESOURCES & TRANSFORMATION,MAILCHIMP *MONTHLY,15/07/2020,H59620200716DNRJWHCQH-1,476.04,APPLICATIONS-COMPUTER EQUIPMENT,DIRECT MARKETING CONTINUITY SUBSCRIPTION MERCHANTS,GPC
WALSALL COUNCIL,HTTP://OPENDATACOMMUNITIES.ORG/ID/METROPOLITAN-DISTRICT-COUNCIL/WALSALL,30/09/2020,CHILDRENS SERVICES,SAINSBURYS S/MKTS,15/07/2020,H59620200716DXFBKYYDH-1,17.92,ADOLESCENT SERVICE-FOOD & DRINK SUPPLIES,GROCERY STORES AND SUPERMARKETS,GPC
WALSALL COUNCIL,HTTP://OPENDATACOMMUNITIES.ORG/ID/METROPOLITAN-DISTRICT-COUNCIL/WALSALL,30/09/2020,CHILDRENS SERVICES,POST OFFICE COUNTER,15/07/2020,H59620200716EGQWEFSEN-1,17.96,LOOKED AFTER CHILDRENS SOCIAL -POSTAGES & COURIER SERVICES,POSTAL SERVICES - GOVERNMENT ONLY,GPC
WALSALL COUNCIL,HTTP://OPENDATACOMMUNITIES.ORG/ID/METROPOLITAN-DISTRICT-COUNCIL/WALSALL,30/09/2020,CHILDRENS SERVICES,WWW.THECONSORTIUM/WMS,15/07/2020,H59620200716EGTRIJTUC-1,138.17,CURRICULUM STOCK-MATERIALS,DIRECT MARKETING CONTINUITY SUBSCRIPTION MERCHANTS,GPC
WALSALL COUNCIL,HTTP://OPENDATACOMMUNITIES.ORG/ID/METROPOLITAN-DISTRICT-COUNCIL/WALSALL,30/09/2020,CHILDRENS SERVICES,TRAVELODGE GB0000,15/07/2020,H59620200716EVQNVXYOE-1,90.51,SAFEGUARDING & FAMILY SUPPORT-SECTION 1/17CHILD CARE ACT 198,TRAVELODGE,GPC
WALSALL COUNCIL,HTTP://OPENDATACOMMUNITIES.ORG/ID/METROPOLITAN-DISTRICT-COUNCIL/WALSALL,30/09/2020,CHILDRENS SERVICES,HOME BARGAINS,15/07/2020,H59620200716FSSSQLPBS-1,84.85,ADOLESCENT SERVICE-MATERIALS,HARDWARE STORES,GPC
WALSALL COUNCIL,HTTP://OPENDATACOMMUNITIES.ORG/ID/METROPOLITAN-DISTRICT-COUNCIL/WALSALL,30/09/2020,CHILDRENS SERVICES,POST OFFICE COUNTER,15/07/2020,H59620200716GERPOPGMB-1,8.80,FAMILY PLACEMENTS-POSTAGES & COURIER SERVICES,POSTAL SERVICES - GOVERNMENT ONLY,GPC
WALSALL COUNCIL,HTTP://OPENDATACOMMUNITIES.ORG/ID/METROPOLITAN-DISTRICT-COUNCIL/WALSALL,30/09/2020,CHILDRENS SERVICES,THE WORKS,15/07/2020,H59620200716GFGENSWGM-1,78.30,ADOLESCENT SERVICE-MATERIALS,DISCOUNT STORES,GPC
WALSALL COUNCIL,HTTP://OPENDATACOMMUNITIES.ORG/ID/METROPOLITAN-DISTRICT-COUNCIL/WALSALL,30/09/2020,ECONOMY & ENVIRONMENT,MEDISAVE,15/07/2020,H59620200716GHJIHYILP-1,64.98,WALSALL GALA CENTRE-MATERIALS,DENTAL/LABORATORY/MEDICAL EQUIPMENT & SUPPLIES,GPC
WALSALL COUNCIL,HTTP://OPENDATACOMMUNITIES.ORG/ID/METROPOLITAN-DISTRICT-COUNCIL/WALSALL,30/09/2020,ECONOMY & ENVIRONMENT,MEDISAVE,15/07/2020,H59620200716GHJIHYILP-2,80.81,WALSALL GALA CENTRE-MATERIALS,DENTAL/LABORATORY/MEDICAL EQUIPMENT & SUPPLIES,GPC
WALSALL COUNCIL,HTTP://OPENDATACOMMUNITIES.ORG/ID/METROPOLITAN-DISTRICT-COUNCIL/WALSALL,30/09/2020,CHILDRENS SERVICES,PAYPAL *KEYSTAGEHIS,15/07/2020,H59620200716GPQCMOGMU-1,72.00,HISTORY-MATERIALS,"SCHOOLS, ELEMENTARY AND SECONDARY",GPC
WALSALL COUNCIL,HTTP://OPENDATACOMMUNITIES.ORG/ID/METROPOLITAN-DISTRICT-COUNCIL/WALSALL,30/09/2020,CHILDRENS SERVICES,NISA LOCAL,15/07/2020,H59620200716GWJILIYON-1,6.83,REDRUTH ROAD-FOOD & DRINK SUPPLIES,MISCELLANEOUS FOOD STORES & CONVENIENCE STORES,GPC
WALSALL COUNCIL,HTTP://OPENDATACOMMUNITIES.ORG/ID/METROPOLITAN-DISTRICT-COUNCIL/WALSALL,30/09/2020,CHILDRENS SERVICES,HOME BARGAINS,15/07/2020,H59620200716HIHBFYKYD-1,7.98,"43A HILTON ROAD, WILLENHALL-RESIDENTS PERSONAL EXPENSES-AL",HARDWARE STORES,GPC
WALSALL COUNCIL,HTTP://OPENDATACOMMUNITIES.ORG/ID/METROPOLITAN-DISTRICT-COUNCIL/WALSALL,30/09/2020,CHILDRENS SERVICES,BULL DOG APPLIANCES LT,15/07/2020,H59620200716IDRGESLKV-1,414.00,TRANSITION AND LEAVING CARE PL-CARE LEAVERS MTCE PAYMENTS,HOUSEHOLD APPLIANCE STORES,GPC
WALSALL COUNCIL,HTTP://OPENDATACOMMUNITIES.ORG/ID/METROPOLITAN-DISTRICT-COUNCIL/WALSALL,30/09/2020,RESOURCES & TRANSFORMATION,METRO INNS WALSALL,15/07/2020,H59620200716ILLKRXWBT-1,304.00,BED & BREAKFAST PAYMENTS-BED & BREAKFAST PAYMENTS,"HOTELS, MOTELS, RESORTS",GPC
WALSALL COUNCIL,HTTP://OPENDATACOMMUNITIES.ORG/ID/METROPOLITAN-DISTRICT-COUNCIL/WALSALL,30/09/2020,CHILDRENS SERVICES,HOME BARGAINS,15/07/2020,H59620200716IPSJNLVPP-1,11.42,EARLY HELP HUB-PROFESSIONAL SERVICES-PRIV CON,HARDWARE STORES,GPC
WALSALL COUNCIL,HTTP://OPENDATACOMMUNITIES.ORG/ID/METROPOLITAN-DISTRICT-COUNCIL/WALSALL,30/09/2020,CHILDRENS SERVICES,HOME BARGAINS,15/07/2020,H59620200716IPSJNLVPP-2,3.08,LOCALITY FAMILY SUPPORT-NORTH-EVENTS & VISUAL ARTS,HARDWARE STORES,GPC
WALSALL COUNCIL,HTTP://OPENDATACOMMUNITIES.ORG/ID/METROPOLITAN-DISTRICT-COUNCIL/WALSALL,30/09/2020,RESOURCES & TRANSFORMATION,TESCO STORES 6161,15/07/2020,H59620200716IRSCSCFML-1,14.99,ROUGH SLEEPING INITIATIVE GRAN-CRISIS SUPPORT PAYMENTS,GROCERY STORES AND SUPERMARKETS,GPC
WALSALL COUNCIL,HTTP://OPENDATACOMMUNITIES.ORG/ID/METROPOLITAN-DISTRICT-COUNCIL/WALSALL,30/09/2020,CHILDRENS SERVICES,PAYPAL *WORKSSTORES,15/07/2020,H59620200716JJJYMYNOQ-1,13.49,ADMINISTRATIVE SUPPLIES-MATERIALS,DISCOUNT STORES,GPC
WALSALL COUNCIL,HTTP://OPENDATACOMMUNITIES.ORG/ID/METROPOLITAN-DISTRICT-COUNCIL/WALSALL,30/09/2020,RESOURCES & TRANSFORMATION,WM MORRISONS STORE,15/07/2020,H59620200716MEKJYGGEX-1,7.80,ACCOMMODATION SERVICES MANAGEM-STATIONERY & GENERAL OFFICE SU,GROCERY STORES AND SUPERMARKETS,GPC
WALSALL COUNCIL,HTTP://OPENDATACOMMUNITIES.ORG/ID/METROPOLITAN-DISTRICT-COUNCIL/WALSALL,30/09/2020,CHILDRENS SERVICES,AMAZON.CO.UK*5J0L96T15,15/07/2020,H59620200716MVURBCVXN-1,192.08,VIRTUAL SCHOOL - CENTRAL PUPIL-OTHER EXPENSES,OTHER DIRECT MARKETING-OTHER DIRECT MARKETERS,GPC
WALSALL COUNCIL,HTTP://OPENDATACOMMUNITIES.ORG/ID/METROPOLITAN-DISTRICT-COUNCIL/WALSALL,30/09/2020,ECONOMY & ENVIRONMENT,J2 EFAX PLUS SERVICE,15/07/2020,H59620200716NBIDHHATH-1,7.20,REGISTRAR-SUBSCRIPTIONS,DIRECT MARKETING CONTINUITY SUBSCRIPTION MERCHANTS,GPC
WALSALL COUNCIL,HTTP://OPENDATACOMMUNITIES.ORG/ID/METROPOLITAN-DISTRICT-COUNCIL/WALSALL,30/09/2020,CHILDRENS SERVICES,BLACK COUNTRY WIND,15/07/2020,H59620200716NFXUMQSDO-1,36.72,REDRUTH ROAD-OPERATIONAL MAINTENANCE,SPECIAL TRADE CONTRACTORS,GPC
WALSALL COUNCIL,HTTP://OPENDATACOMMUNITIES.ORG/ID/METROPOLITAN-DISTRICT-COUNCIL/WALSALL,30/09/2020,CHILDRENS SERVICES,HOBBYCRAFT,15/07/2020,H59620200716NKDJMUBSM-1,16.83,EARLY HELP HUB-PROFESSIONAL SERVICES-PRIV CON,"ARTIST SUPPLY STORES, CRAFT SHOPS",GPC
WALSALL COUNCIL,HTTP://OPENDATACOMMUNITIES.ORG/ID/METROPOLITAN-DISTRICT-COUNCIL/WALSALL,30/09/2020,CHILDRENS SERVICES,AMZNMKTPLACE AMAZON.CO.UK,15/07/2020,H59620200716NLSSIMSQR-1,35.99,"43A HILTON ROAD, WILLENHALL-PURCHASE OF FURNITURE & EQUIPM",MISCELLANEOUS AND SPECIALTY RETAIL STORES,GPC
WALSALL COUNCIL,HTTP://OPENDATACOMMUNITIES.ORG/ID/METROPOLITAN-DISTRICT-COUNCIL/WALSALL,30/09/2020,RESOURCES & TRANSFORMATION,AMZNMKTPLACE,15/07/2020,H59620200716OHMSFKDFU-1,32.00,PRINTING SERVICES-STATIONERY & GENERAL OFFICE SU,MISCELLANEOUS AND SPECIALTY RETAIL STORES,GPC
WALSALL COUNCIL,HTTP://OPENDATACOMMUNITIES.ORG/ID/METROPOLITAN-DISTRICT-COUNCIL/WALSALL,30/09/2020,RESOURCES & TRANSFORMATION,PREMIER INN44014625,15/07/2020,H59620200716ONVFXIQTH-1,-38.50,BED & BREAKFAST PAYMENTS-BED & BREAKFAST PAYMENTS,PREMIER INN,GPC
WALSALL COUNCIL,HTTP://OPENDATACOMMUNITIES.ORG/ID/METROPOLITAN-DISTRICT-COUNCIL/WALSALL,30/09/2020,CHILDRENS SERVICES,AMZNMKTPLACE,15/07/2020,H59620200716OXFNMUKZE-1,16.97,VIRTUAL SCHOOL - CENTRAL PUPIL-OTHER EXPENSES,MISCELLANEOUS AND SPECIALTY RETAIL STORES,GPC
WALSALL COUNCIL,HTTP://OPENDATACOMMUNITIES.ORG/ID/METROPOLITAN-DISTRICT-COUNCIL/WALSALL,30/09/2020,RESOURCES & TRANSFORMATION,PREMIER INN44014625,15/07/2020,H59620200716OZJWWRHSI-1,54.50,BED & BREAKFAST PAYMENTS-BED & BREAKFAST PAYMENTS,PREMIER INN,GPC
WALSALL COUNCIL,HTTP://OPENDATACOMMUNITIES.ORG/ID/METROPOLITAN-DISTRICT-COUNCIL/WALSALL,30/09/2020,CHILDRENS SERVICES,B&M 419 - HS REEDSWOOD,15/07/2020,H59620200716OZTTGABEJ-1,160.00,TRANSITION AND LEAVING CARE PL-CARE LEAVERS MTCE PAYMENTS,MISCELLANEOUS GENERAL MERCHANDISE,GPC
WALSALL COUNCIL,HTTP://OPENDATACOMMUNITIES.ORG/ID/METROPOLITAN-DISTRICT-COUNCIL/WALSALL,30/09/2020,CHILDRENS SERVICES,HTTP://WWW.FORWARDPRODUC,15/07/2020,H59620200716PIXCRKFSD-1,16.50,EARLY YEARS DEPARTMENT-MATERIALS,"STATIONERY, OFFICE SUPPLIES AND WRITING PAPER",GPC
